Workbook

Sheet Round B1
C1: Legend
C2: Published Flow Equation Parameters
C3: For sample flow calculations: enter pressure data
C4: identifies the same Range but depending on PrA sign (or if 'set to 0 Pa' is implemented), different flow equation parameters are used
C5: "Round" | D5: Date released | H5: Version released
C6: 1 | D6: 2025-06-17 | H6: 1.1.5 12A-3D
C7: B1 | D7: 2015-12-01 | H7: 2.4.71B1
C8: B | D8: 2015-06-23 | H8: 2.3.62
C9: A | D9: 2014-11-09 | H9: 2.2.49
C11: Hide detailed specs: | E11: Yes
C12: Metric Units: | E12: m3/h
G14: Flow = (P-|PrA|*K1)N*(K+P*K3) Since K1 and K3 are 0 for 300 & 340 & 350 & 450 systems, this equation can be simplified to: Flow = PN*K , i.e. no backpressure compensation because PrA becomes irrelevant Condition that must be true, or else “- -“ is displayed for flow result: PrB>=MF, PrB>=|PrA|*K2, PrB>0
C15: Enter Pressures appearing on gauge | E15: Fan Pressure used in flow equation | O15: min Fan Pressure, Pa | S15: max Fan Pressure, Pa | U15: min Flow, CFM | X15: max Flow, CFM | AA15: Master plug S/N
A16: Device | B16: Range | C16: PrA, Pa | D16: PrB, Pa | E16: P, Pa | F16: CFM calculation | G16: =IF($E$12="m3/h","m3/h displayed on DM32",IF($E$12="m3/s","m3/s displayed on DM32",IF($E$12="L/s","L/s displayed on DM32","Metric displayed on DM32"))) -> m3/h displayed on DM32 | H16: CFM displayed on DM32 | I16: N | J16: K | K16: K1 | L16: K2 | M16: K3 | N16: MF | O16: 0 | P16: 25 | Q16: 50 | R16: 0 | S16: 50 | U16: 0 | V16: 25 | W16: 50 | X16: 0 | Y16: 50
A17: 240 | B17: Open | C17: 25 | D17: 300 | E17: =IF(OR(C17="",D17="", D17<0),"---", IF(AND(D17>=N17,D17>=ABS(C17)*L17),D17,"---")) -> 300 | F17: =IF(OR(#REF!="", E17=""),"",(E17-#REF!*K17)^I17*(J17+E17*M17)) ->  | G17: =IF($E$12="m3/h",IF(H17="---","---",(H17*(1/0.58857777866))),IF($E$12="m3/s",IF(H17="---","---",FIXED((H17*0.0004719474432),5,FALSE)),IF($E$12="L/s",IF(H17="---","---",(H17*0.47194745)),"---"))) -> 967.1093657 | H17: =IF(E17="---","---", (E17-ABS(C17)*K17)^I17*(J17+E17*M17)) -> 569.2190822 | I17: 0.5115 | J17: 30.7774 | K17: 0 | L17: 0.2 | M17: 0 | N17: 10 | O17: =IF($L17*O$16>$N17, $L17*O$16, $N17) -> 10 | P17: =IF($L17*P$16>$N17, $L17*P$16, $N17) -> 10 | Q17: =IF($L17*Q$16>$N17, $L17*Q$16, $N17) -> 10 | U17: =(O$17-ABS(U$16)*$K17)^$I17*($J17+O$17*$M17) -> 99.93829339 | V17: =(P$17-ABS(V$16)*$K17)^$I17*($J17+P$17*$M17) -> 99.93829339 | W17: =(Q$17-ABS(W$16)*$K17)^$I17*($J17+Q$17*$M17) -> 99.93829339
B18: Mid | C18: 25 | D18: 200 | E18: =IF(OR(C18="",D18="", D18<0),"---", IF(AND(D18>=N18,D18>=ABS(C18)*L18),D18,"---")) -> 200 | F18: =IF(OR(#REF!="", E18=""),"",(E18-#REF!*K18)^I18*(J18+E18*M18)) ->  | G18: =IF($E$12="m3/h",IF(H18="---","---",(H18*(1/0.58857777866))),IF($E$12="m3/s",IF(H18="---","---",FIXED((H18*0.0004719474432),5,FALSE)),IF($E$12="L/s",IF(H18="---","---",(H18*0.47194745)),"---"))) -> 177.0635878 | H18: =IF(E18="---","---", (E18-ABS(C18)*K18)^I18*(J18+E18*M18)) -> 104.2156932 | I18: 0.5415 | J18: 5.9146 | K18: 0 | L18: 0.5 | M18: 0 | N18: 25 | O18: =IF($L18*O$16>$N18, $L18*O$16, $N18) -> 25 | P18: 25 | Q18: 25 | U18: =(O$18-ABS(U$16)*$K18)^$I18*($J18+O$18*$M18) -> 33.79947026 | V18: =(P$18-ABS(V$16)*$K18)^$I18*($J18+P$18*$M18) -> 33.79947026 | W18: =(Q$18-ABS(W$16)*$K18)^$I18*($J18+Q$18*$M18) -> 33.79947026
B19: Low | C19: 25 | D19: 300 | E19: =IF(OR(C19="",D19="", D19<0),"---", IF(AND(D19>=N19,D19>=ABS(C19)*L19),D19,"---")) -> 300 | F19: =IF(OR(#REF!="", E19=""),"",(E19-#REF!*K19)^I19*(J19+E19*M19)) ->  | G19: 56.28460869 | H19: =IF(E19="---","---", (E19-ABS(C19)*K19)^I19*(J19+E19*M19)) -> 33.12786995 | I19: 0.6125 | J19: 1.0056 | K19: -0.024 | L19: 0.5 | M19: 0 | N19: 25 | O19: 25 | P19: 25 | Q19: 25 | U19: =(O$19-ABS(U$16)*$K19)^$I19*($J19+O$19*$M19) -> 7.222100373 | V19: =(P$19-ABS(V$16)*$K19)^$I19*($J19+P$19*$M19) -> 7.327776985 | W19: =(Q$19-ABS(W$16)*$K19)^$I19*($J19+Q$19*$M19) -> 7.432498079
T20: @50 Pa with 10" flex | Z20: @50 Pa with 10" flex | AG20: high | AH20: low | AI20: delta | AK20: Flow Chart:
A21: 300 | B21: Open | C21: 25 | D21: 100 | E21: =IF(OR(C21="",D21="", D21<0),"---", IF(AND(D21>=N21,D21>=ABS(C21)*L21),D21,"---")) -> 100 | F21: =IF(OR(#REF!="", E21=""),"",(E21-#REF!*K21)^I21*(J21+E21*M21)) ->  | G21: 472.3725977 | H21: =IF(E21="---","---", (E21-ABS(C21)*K21)^I21*(J21+E21*M21)) -> 278.0280143 | I21: 0.492 | J21: 28.84619652 | K21: 0 | L21: 0.4 | M21: 0 | N21: 20 | O21: =IF($L21*O$16>$N21, $L21*O$16, $N21) -> 20 | P21: =IF($L21*P$16>$N21, $L21*P$16, $N21) -> 20 | Q21: =IF($L21*Q$16>$N21, $L21*Q$16, $N21) -> 20 | R21: 730 | S21: 690 | T21: 605 | U21: =O21^$I21*$J21 -> 125.9491717 | V21: 125.9491717 | W21: =Q21^$I21*$J21 -> 125.9491717 | X21: 739.3386413 | Y21: 719.1215616 | Z21: 674.0811803 | AG21: =IF('Flow charts'!$A$7=$O$16,X21, IF('Flow charts'!$A$7=$Q$16,Y21,"NO DATA")) -> 719.1215616 | AH21: =IF('Flow charts'!$A$7=$O$16,U21, IF('Flow charts'!$A$7=$Q$16,W21,"NO DATA")) -> 125.9491717 | AI21: =AG21-AH21 -> 593.1723899 | AK21: =O16 -> 0
B22: 102 | C22: 25 | D22: 100 | E22: =IF(OR(C22="",D22="", D22<0),"---", IF(AND(D22>=N22,D22>=ABS(C22)*L22),D22,"---")) -> 100 | F22: =IF(OR(#REF!="", E22=""),"",(E22-#REF!*K22)^I22*(J22+E22*M22)) ->  | G22: 286.3848159 | H22: =IF(E22="---","---", (E22-ABS(C22)*K22)^I22*(J22+E22*M22)) -> 168.5597388 | I22: 0.565 | J22: 12.49550606 | K22: 0 | L22: 0.4 | M22: 0 | N22: 100 | O22: =IF($L22*O$16>$N22, $L22*O$16, $N22) -> 100 | P22: 100 | Q22: 100 | R22: 730 | S22: 695 | U22: =O22^$I22*$J22 -> 168.5597388 | V22: =P22^$I22*$J22 -> 168.5597388 | W22: =Q22^$I22*$J22 -> 168.5597388 | X22: =R22^$I22*$J22 -> 518.2403995 | Y22: =S22^$I22*$J22 -> 504.0519093 | AG22: =IF('Flow charts'!$A$7=$O$16,X22, IF('Flow charts'!$A$7=$Q$16,Y22,"NO DATA")) -> 504.0519093 | AH22: =IF('Flow charts'!$A$7=$O$16,U22, IF('Flow charts'!$A$7=$Q$16,W22,"NO DATA")) -> 168.5597388 | AI22: =AG22-AH22 -> 335.4921705 | AK22: =Q16 -> 50
B23: 74 | C23: 25 | D23: 100 | E23: 100 | F23: =IF(OR(#REF!="", E23=""),"",(E23-#REF!*K23)^I23*(J23+E23*M23)) ->  | G23: 121.759432 | H23: 71.66489604 | I23: 0.501 | J23: 7.133562575 | K23: 0 | L23: 0.25 | M23: 0 | N23: 25 | O23: 25 | P23: 25 | Q23: 25 | R23: 760 | S23: 695 | T23: 686.5 | U23: 35.78280811 | V23: 35.78280811 | W23: 35.78280811 | X23: 197.9675849 | Y23: 189.2957495 | Z23: =T23^$I23*$J23 -> 188.1323093 | AA23: 1026580 | AG23: =IF('Flow charts'!$A$7=$O$16,X23, IF('Flow charts'!$A$7=$Q$16,Y23,"NO DATA")) -> 189.2957495 | AH23: =IF('Flow charts'!$A$7=$O$16,U23, IF('Flow charts'!$A$7=$Q$16,W23,"NO DATA")) -> 35.78280811 | AI23: 153.5129414
B24: 47 | C24: 25 | D24: 100 | E24: 100 | F24: =IF(OR(#REF!="", E24=""),"",(E24-#REF!*K24)^I24*(J24+E24*M24)) ->  | G24: 52.96320762 | H24: 31.17296709 | I24: 0.497 | J24: 3.160662626 | K24: 0 | L24: 0.1 | M24: 0 | N24: 30 | O24: 30 | P24: 30 | Q24: 30 | R24: 860 | S24: 805 | U24: 17.13591916 | V24: =P24^$I24*$J24 -> 17.13591916 | W24: 17.13591916 | X24: 90.82886167 | Y24: 87.89389157 | AA24: 1000962 | AG24: =IF('Flow charts'!$A$7=$O$16,X24, IF('Flow charts'!$A$7=$Q$16,Y24,"NO DATA")) -> 87.89389157 | AH24: =IF('Flow charts'!$A$7=$O$16,U24, IF('Flow charts'!$A$7=$Q$16,W24,"NO DATA")) -> 17.13591916 | AI24: 70.75797241
B25: 29 | C25: 25 | D25: 100 | E25: 100 | F25: =IF(OR(#REF!="", E25=""),"",(E25-#REF!*K25)^I25*(J25+E25*M25)) ->  | G25: 19.62246643 | H25: 11.5493477 | I25: 0.507 | J25: 1.118297763 | K25: 0 | L25: 0.2 | M25: 0 | N25: 30 | O25: 30 | P25: 30 | Q25: 30 | R25: 915 | S25: 850 | U25: 6.272749326 | V25: 6.272749326 | W25: 6.272749326 | X25: 35.48117152 | Y25: 34.18006243 | AA25: 1000986 | AG25: =IF('Flow charts'!$A$7=$O$16,X25, IF('Flow charts'!$A$7=$Q$16,Y25,"NO DATA")) -> 34.18006243 | AH25: =IF('Flow charts'!$A$7=$O$16,U25, IF('Flow charts'!$A$7=$Q$16,W25,"NO DATA")) -> 6.272749326 | AI25: 27.90731311
B26: 18 | C26: 25 | D26: 100 | E26: 100 | F26: =IF(OR(#REF!="", E26=""),"",(E26-#REF!*K26)^I26*(J26+E26*M26)) ->  | G26: 7.803798294 | H26: 4.593142265 | I26: 0.519 | J26: 0.4208331057 | K26: 0 | L26: 0.25 | M26: 0 | N26: 30 | O26: 30 | P26: 30 | Q26: 30 | R26: 940 | S26: 890 | U26: 2.458871473 | V26: 2.458871473 | W26: 2.458871473 | X26: 14.69478557 | Y26: 14.2837852 | AA26: 1000405 | AB26: Optional | AG26: =IF('Flow charts'!$A$7=$O$16,X26, IF('Flow charts'!$A$7=$Q$16,Y26,"NO DATA")) -> 14.2837852 | AH26: =IF('Flow charts'!$A$7=$O$16,U26, IF('Flow charts'!$A$7=$Q$16,W26,"NO DATA")) -> 2.458871473 | AI26: 11.82491373
B27: 11 | C27: 25 | D27: 100 | E27: 100 | F27: =IF(OR(#REF!="", E27=""),"",(E27-#REF!*K27)^I27*(J27+E27*M27)) ->  | G27: 3.199912312 | H27: 1.883397281 | I27: 0.492 | J27: 0.1954078197 | K27: 0 | L27: 0.25 | M27: 0 | N27: 30 | O27: 30 | P27: 30 | Q27: 30 | R27: 695 | S27: 660 | U27: 1.041563126 | V27: 1.041563126 | W27: 1.041563126 | X27: 4.888757136 | Y27: 4.7660386 | AA27: 1000481 | AB27: Optional | AG27: =IF('Flow charts'!$A$7=$O$16,X27, IF('Flow charts'!$A$7=$Q$16,Y27,"NO DATA")) -> 4.7660386 | AH27: =IF('Flow charts'!$A$7=$O$16,U27, IF('Flow charts'!$A$7=$Q$16,W27,"NO DATA")) -> 1.041563126 | AI27: 3.724475474
B28: 7 | C28: 25 | D28: 100 | E28: 100 | F28: =IF(OR(#REF!="", E28=""),"",(E28-#REF!*K28)^I28*(J28+E28*M28)) ->  | G28: 1.212974399 | H28: 0.7139297773 | I28: 0.48 | J28: 0.07828084344 | K28: 0 | L28: 0.11 | M28: 0 | N28: 30 | O28: 30 | P28: 30 | Q28: 30 | R28: 940 | S28: 885 | U28: 0.4005656448 | V28: 0.4005656448 | W28: 0.4005656448 | X28: 2.092940423 | Y28: 2.033238227 | AA28: 1003185 | AB28: Optional | AG28: =IF('Flow charts'!$A$7=$O$16,X28, IF('Flow charts'!$A$7=$Q$16,Y28,"NO DATA")) -> 2.033238227 | AH28: =IF('Flow charts'!$A$7=$O$16,U28, IF('Flow charts'!$A$7=$Q$16,W28,"NO DATA")) -> 0.4005656448 | AI28: 1.632672582
T29: @25 Pa with 10" flex | Z29: @25 Pa with 10" flex | AD29: @25w/flex - @50 | AK29: Flow Chart:
A30: 340 | B30: Open | C30: 25 | D30: 300 | E30: =IF(OR(C30="",D30="", D30<0),"---", IF(AND(D30>=N30,D30>=ABS(C30)*L30),D30,"---")) -> 300 | F30: =IF(OR(#REF!="", E30=""),"",(E30-#REF!*K30)^I30*(J30+E30*M30)) ->  | G30: =IF($E$12="m3/h",IF(H30="---","---",(H30*(1/0.58857777866))),IF($E$12="m3/s",IF(H30="---","---",FIXED((H30*0.0004719474432),5,FALSE)),IF($E$12="L/s",IF(H30="---","---",(H30*0.47194745)),"---"))) -> 811.0140045 | H30: =IF(E30="---","---", (E30-ABS(C30)*K30)^I30*(J30+E30*M30)) -> 477.3448212 | I30: 0.492 | J30: 28.84619652 | K30: 0 | L30: 0.4 | M30: 0 | N30: 20 | O30: =IF($L30*O$16>$N30, $L30*O$16, $N30) -> 20 | P30: 20 | Q30: 20 | R30: 730 | S30: 690 | T30: 731.7 | U30: 125.9491717 | V30: 125.9491717 | W30: 125.9491717 | X30: 739.3386413 | Y30: =S30^$I30*$J30 -> 719.1215616 | Z30: =T30^$I30*$J30 -> 740.1852406 | AD30: =Z30-Y30 -> 21.06367898 | AG30: =IF('Flow charts'!$A$40=$O$16,X30, IF('Flow charts'!$A$40=$T$29,Z30,"NO DATA")) -> 739.3386413 | AH30: =IF('Flow charts'!$A$40=$O$16,U30, IF('Flow charts'!$A$40=$T$29,V30, "NO DATA")) -> 125.9491717 | AI30: =AG30-AH30 -> 613.3894696 | AK30: =O16 -> 0
B31: 102 | C31: 25 | D31: 300 | E31: =IF(OR(C31="",D31="", D31<0),"---", IF(AND(D31>=N31,D31>=ABS(C31)*L31),D31,"---")) -> 300 | F31: =IF(OR(#REF!="", E31=""),"",(E31-#REF!*K31)^I31*(J31+E31*M31)) ->  | G31: =IF($E$12="m3/h",IF(H31="---","---",(H31*(1/0.58857777866))),IF($E$12="m3/s",IF(H31="---","---",FIXED((H31*0.0004719474432),5,FALSE)),IF($E$12="L/s",IF(H31="---","---",(H31*0.47194745)),"---"))) -> 532.7500472 | H31: =IF(E31="---","---", (E31-ABS(C31)*K31)^I31*(J31+E31*M31)) -> 313.5648394 | I31: 0.565 | J31: 12.49550606 | K31: 0 | L31: 0.4 | M31: 0 | N31: 100 | O31: 100 | P31: 100 | Q31: 100 | R31: 730 | S31: 695 | T31: 695 | U31: =O31^$I31*$J31 -> 168.5597388 | V31: 168.5597388 | W31: 168.5597388 | X31: 518.2403995 | Y31: 504.0519093 | Z31: 504.0519093 | AD31: 0 | AG31: =IF('Flow charts'!$A$40=$O$16,X31, IF('Flow charts'!$A$40=$T$29,Z31,"NO DATA")) -> 518.2403995 | AH31: =IF('Flow charts'!$A$40=$O$16,U31, IF('Flow charts'!$A$40=$T$29,V31, "NO DATA")) -> 168.5597388 | AI31: =AG31-AH31 -> 349.6806608
B32: 74 | C32: 25 | D32: 300 | E32: 300 | F32: =IF(OR(#REF!="", E32=""),"",(E32-#REF!*K32)^I32*(J32+E32*M32)) ->  | G32: 211.1253401 | H32: 124.2636837 | I32: 0.501 | J32: 7.133562575 | K32: 0 | L32: 0.25 | M32: 0 | N32: 25 | O32: 25 | P32: 25 | Q32: 25 | R32: 760 | S32: 695 | T32: 330 | U32: 35.78280811 | V32: 35.78280811 | W32: 35.78280811 | X32: 197.9675849 | Y32: 189.2957495 | Z32: 130.3412732 | AD32: -58.95447626 | AG32: =IF('Flow charts'!$A$40=$O$16,X32, IF('Flow charts'!$A$40=$T$29,Z32,"NO DATA")) -> 197.9675849 | AH32: =IF('Flow charts'!$A$40=$O$16,U32, IF('Flow charts'!$A$40=$T$29,V32, "NO DATA")) -> 35.78280811 | AI32: 162.1847768
B33: 47 | C33: 25 | D33: 300 | E33: 300 | F33: =IF(OR(#REF!="", E33=""),"",(E33-#REF!*K33)^I33*(J33+E33*M33)) ->  | G33: 91.43312073 | H33: 53.8155031 | I33: 0.497 | J33: 3.160662626 | K33: 0 | L33: 0.1 | M33: 0 | N33: 30 | O33: 30 | P33: 30 | Q33: 30 | R33: 860 | S33: 805 | T33: 415 | U33: 17.13591916 | V33: 17.13591916 | W33: 17.13591916 | X33: 90.82886167 | Y33: 87.89389157 | Z33: 63.23362001 | AD33: -24.66027155 | AG33: =IF('Flow charts'!$A$40=$O$16,X33, IF('Flow charts'!$A$40=$T$29,Z33,"NO DATA")) -> 90.82886167 | AH33: =IF('Flow charts'!$A$40=$O$16,U33, IF('Flow charts'!$A$40=$T$29,V33, "NO DATA")) -> 17.13591916 | AI33: 73.69294251
B34: 29 | C34: 25 | D34: 300 | E34: 300 | F34: =IF(OR(#REF!="", E34=""),"",(E34-#REF!*K34)^I34*(J34+E34*M34)) ->  | G34: 34.249487 | H34: 20.15848698 | I34: 0.507 | J34: 1.118297763 | K34: 0 | L34: 0.2 | M34: 0 | N34: 30 | O34: 30 | P34: 30 | Q34: 30 | R34: 915 | S34: 850 | T34: 425.7319909 | U34: 6.272749326 | V34: 6.272749326 | W34: 6.272749326 | X34: 35.48117152 | Y34: 34.18006243 | Z34: 24.07296327 | AB34: Optional | AD34: -10.10709916 | AG34: =IF('Flow charts'!$A$40=$O$16,X34, IF('Flow charts'!$A$40=$T$29,Z34,"NO DATA")) -> 35.48117152 | AH34: =IF('Flow charts'!$A$40=$O$16,U34, IF('Flow charts'!$A$40=$T$29,V34, "NO DATA")) -> 6.272749326 | AI34: 29.2084222
B35: 18 | C35: 25 | D35: 300 | E35: 300 | F35: =IF(OR(#REF!="", E35=""),"",(E35-#REF!*K35)^I35*(J35+E35*M35)) ->  | G35: 13.80168041 | H35: 8.123362398 | I35: 0.519 | J35: 0.4208331057 | K35: 0 | L35: 0.25 | M35: 0 | N35: 30 | O35: 30 | P35: 30 | Q35: 30 | R35: 940 | S35: 890 | T35: 472.307511 | U35: 2.458871473 | V35: 2.458871473 | W35: 2.458871473 | X35: 14.69478557 | Y35: 14.2837852 | Z35: 10.28093457 | AB35: Optional | AD35: -4.002850624 | AG35: =IF('Flow charts'!$A$40=$O$16,X35, IF('Flow charts'!$A$40=$T$29,Z35,"NO DATA")) -> 14.69478557 | AH35: =IF('Flow charts'!$A$40=$O$16,U35, IF('Flow charts'!$A$40=$T$29,V35, "NO DATA")) -> 2.458871473 | AI35: 12.2359141
B36: 11 | C36: 25 | D36: 300 | E36: 300 | F36: =IF(OR(#REF!="", E36=""),"",(E36-#REF!*K36)^I36*(J36+E36*M36)) ->  | G36: 5.493912456 | H36: 3.23359479 | I36: 0.492 | J36: 0.1954078197 | K36: 0 | L36: 0.25 | M36: 0 | N36: 30 | O36: 30 | P36: 30 | Q36: 30 | R36: 695 | S36: 660 | T36: 478.7569606 | U36: 1.041563126 | V36: 1.041563126 | W36: 1.041563126 | X36: 4.888757136 | Y36: 4.7660386 | Z36: 4.069664135 | AB36: Optional | AD36: -0.6963744648 | AG36: =IF('Flow charts'!$A$40=$O$16,X36, IF('Flow charts'!$A$40=$T$29,Z36,"NO DATA")) -> 4.888757136 | AH36: =IF('Flow charts'!$A$40=$O$16,U36, IF('Flow charts'!$A$40=$T$29,V36, "NO DATA")) -> 1.041563126 | AI36: 3.84719401
B37: 7 | C37: 25 | D37: 300 | E37: 300 | F37: =IF(OR(#REF!="", E37=""),"",(E37-#REF!*K37)^I37*(J37+E37*M37)) ->  | G37: 2.055274514 | H37: 1.209688908 | I37: 0.48 | J37: 0.07828084344 | K37: 0 | L37: 0.11 | M37: 0 | N37: 30 | O37: 30 | P37: 30 | Q37: 30 | R37: 940 | S37: 885 | T37: 479.8076195 | U37: 0.4005656448 | V37: 0.4005656448 | W37: 0.4005656448 | X37: 2.092940423 | Y37: 2.033238227 | Z37: 1.515541118 | AB37: Optional | AD37: -0.5176971086 | AG37: =IF('Flow charts'!$A$40=$O$16,X37, IF('Flow charts'!$A$40=$T$29,Z37,"NO DATA")) -> 2.092940423 | AH37: =IF('Flow charts'!$A$40=$O$16,U37, IF('Flow charts'!$A$40=$T$29,V37, "NO DATA")) -> 0.4005656448 | AI37: 1.692374778
Q38: 250 | T38: @250 Pa with 10-4" flex | W38: 250 | Z38: @250 Pa with 10-4" flex | AK38: Flow Chart:
A39: 350 | B39: 102 | C39: 25 | D39: 300 | E39: =IF(OR(C39="",D39="", D39<0),"---", IF(AND(D39>=N39,D39>=ABS(C39)*L39),D39,"---")) -> 300 | F39: =IF(OR(#REF!="", E39=""),"",(E39-#REF!*K39)^I39*(J39+E39*M39)) ->  | G39: =IF($E$12="m3/h",IF(H39="---","---",(H39*(1/0.58857777866))),IF($E$12="m3/s",IF(H39="---","---",FIXED((H39*0.0004719474432),5,FALSE)),IF($E$12="L/s",IF(H39="---","---",(H39*0.47194745)),"---"))) -> 532.7500472 | H39: =IF(E39="---","---", (E39-ABS(C39)*K39)^I39*(J39+E39*M39)) -> 313.5648394 | I39: 0.565 | J39: 12.49550606 | K39: 0 | L39: 0.4 | M39: 0 | N39: 100 | O39: =IF($L39*O$16>$N39, $L39*O$16, $N39) -> 100 | P39: 100 | Q39: =IF($L39*Q$38>$N39, $L39*Q$38, $N39) -> 100 | R39: 730 | S39: 695 | T39: 496 | U39: =O39^$I39*$J39 -> 168.5597388 | V39: 168.5597388 | W39: 168.5597388 | X39: 518.2403995 | Y39: 504.0519093 | Z39: 416.5824758 | AG39: 535.8753709 | AH39: 161.9510536 | AI39: 373.9243173 | AK39: =O16 -> 0
B40: 74 | C40: 25 | D40: 300 | E40: 300 | F40: =IF(OR(#REF!="", E40=""),"",(E40-#REF!*K40)^I40*(J40+E40*M40)) ->  | G40: 211.1253401 | H40: 124.2636837 | I40: 0.501 | J40: 7.133562575 | K40: 0 | L40: 0.25 | M40: 0 | N40: 25 | O40: 25 | P40: 25 | Q40: 62.5 | R40: 760 | S40: 695 | T40: 553 | U40: 35.78280811 | V40: 35.78280811 | W40: 56.62945264 | X40: 197.9675849 | Y40: 189.2957495 | Z40: 168.8152849 | AG40: 201.0199874 | AH40: 27.74641159 | AI40: 173.2735758 | AK40: =T38 -> @250 Pa with 10-4" flex
B41: 47 | C41: 25 | D41: 300 | E41: 300 | F41: =IF(OR(#REF!="", E41=""),"",(E41-#REF!*K41)^I41*(J41+E41*M41)) ->  | G41: 91.43312073 | H41: 53.8155031 | I41: 0.497 | J41: 3.160662626 | K41: 0 | L41: 0.1 | M41: 0 | N41: 30 | O41: 30 | P41: 30 | Q41: 30 | R41: 860 | S41: 805 | T41: 479 | U41: 17.13591916 | V41: 17.13591916 | W41: 17.13591916 | X41: 90.82886167 | Y41: 87.89389157 | Z41: 67.9054906 | AG41: 87.5652672 | AH41: 10.24873933 | AI41: 77.31652787
B42: 29 | C42: 25 | D42: 300 | E42: 300 | F42: =IF(OR(#REF!="", E42=""),"",(E42-#REF!*K42)^I42*(J42+E42*M42)) ->  | G42: 34.249487 | H42: 20.15848698 | I42: 0.507 | J42: 1.118297763 | K42: 0 | L42: 0.2 | M42: 0 | N42: 30 | O42: 30 | P42: 30 | Q42: 50 | R42: 915 | S42: 850 | T42: 502.9747314 | U42: 6.272749326 | V42: 6.272749326 | W42: 8.127093356 | X42: 35.48117152 | Y42: 34.18006243 | Z42: 26.19638492 | AG42: 32.58563828 | AH42: 5.354947462 | AI42: 27.23069082
B43: 18 | C43: 25 | D43: 300 | E43: 300 | F43: =IF(OR(#REF!="", E43=""),"",(E43-#REF!*K43)^I43*(J43+E43*M43)) ->  | G43: 13.80168041 | H43: 8.123362398 | I43: 0.519 | J43: 0.4208331057 | K43: 0 | L43: 0.25 | M43: 0 | N43: 30 | O43: 30 | P43: 30 | Q43: 62.5 | R43: 940 | S43: 890 | T43: 502 | U43: 2.458871473 | V43: 2.458871473 | W43: 3.598915304 | X43: 14.69478557 | Y43: 14.2837852 | Z43: 10.61145963 | AG43: 12.26632048 | AH43: 2.277656694 | AI43: 9.988663787
B44: 11 | C44: 25 | D44: 300 | E44: 300 | F44: =IF(OR(#REF!="", E44=""),"",(E44-#REF!*K44)^I44*(J44+E44*M44)) ->  | G44: 5.493912456 | H44: 3.23359479 | I44: 0.492 | J44: 0.1954078197 | K44: 0 | L44: 0.25 | M44: 0 | N44: 30 | O44: 30 | P44: 30 | Q44: 62.5 | R44: 695 | S44: 660 | T44: 500 | U44: 1.041563126 | V44: 1.041563126 | W44: 1.494565344 | X44: 4.888757136 | Y44: 4.7660386 | Z44: 4.157527985 | AG44: 4.925590555 | AH44: 0.9751569922 | AI44: 3.950433563
B45: 7 | C45: 25 | D45: 300 | E45: 300 | F45: =IF(OR(#REF!="", E45=""),"",(E45-#REF!*K45)^I45*(J45+E45*M45)) ->  | G45: 2.055274514 | H45: 1.209688908 | I45: 0.48 | J45: 0.07828084344 | K45: 0 | L45: 0.11 | M45: 0 | N45: 30 | O45: 30 | P45: 30 | Q45: 30 | R45: 940 | S45: 885 | T45: 500 | U45: 0.4005656448 | V45: 0.4005656448 | W45: 0.4005656448 | X45: 2.092940423 | Y45: 2.033238227 | Z45: 1.545827747 | AG45: 1.939929174 | AH45: 0.359 | AI45: 1.580929174
B46: 3 | C46: 25 | D46: 300 | E46: 300 | F46: =IF(OR(#REF!="", E46=""),"",(E46-#REF!*K46)^I46*(J46+E46*M46)) ->  | G46: 0.5835172485 | H46: 0.3434452859 | I46: 0.485 | J46: 0.0216 | K46: 0 | L46: 0.3 | M46: 0 | N46: 30 | O46: 30 | P46: 30 | Q46: 75 | R46: 655 | S46: 635 | T46: 500 | U46: 0.1124236185 | V46: 0.1124236185 | W46: 0.1753309007 | X46: 0.5015691097 | Y46: 0.4940819723 | Z46: 0.4400015468 | AA46: 1006322 | AB46: Optional | AG46: 0.1015597675 | AH46: 0.01820141963 | AI46: 0.08335834792
O47: 250 | P47: 1000 | Q47: 4980 | R47: =O47 -> 250 | S47: =P47 -> 1000 | T47: =Q47 -> 4980 | U47: =O47 -> 250 | V47: =P47 -> 1000 | W47: =Q47 -> 4980 | X47: =O47 -> 250 | Y47: =P47 -> 1000 | Z47: =Q47 -> 4980
A48: 450 | B48: 74 | C48: 250 | D48: 300 | E48: =IF(OR(C48="",D48="", D48<0),"---", IF(AND(C48>0, D48>=N48,D48>=ABS(C48)*L48),D48,"---")) -> 300 | F48: =IF(OR(#REF!="", E48=""),"",(E48-#REF!*K48)^I48*(J48+E48*M48)) ->  | G48: 213.1210843 | H48: =IF(E48="---","---", (E48-ABS(C48)*K48)^I48*(J48+E48*M48)) -> 125.4383344 | I48: 0.504 | J48: 7.078824842 | K48: 0 | L48: 0.15 | M48: 0 | N48: 250 | O48: =IF($L48*O$47>$N48, $L48*O$47, $N48) -> 250 | P48: 250 | Q48: 747 | R48: 1680 | S48: 1530 | T48: 1480 | U48: =O48^$I48*$J48 -> 114.4255295 | V48: 114.4255295 | W48: 198.6619754 | X48: 298.8938949 | Y48: 285.1317946 | Z48: 280.3968116 | AG48: =IF('Flow charts'!$A$106=$O$47,X48, IF('Flow charts'!$A$106=$P$47,Y48, IF('Flow charts'!$A$106=$Q$47,Z48,"SELECT BP"))) -> 280.3968116 | AH48: =IF('Flow charts'!$A$106=$O$47,U48, IF('Flow charts'!$A$106=$P$47,V48, IF('Flow charts'!$A$106=$Q$47,W48,"SELECT BP"))) -> 198.6619754 | AI48: =AG48-AH48 -> 81.73483613
B49: 47 | C49: 250 | D49: 300 | E49: =IF(OR(C49="",D49="", D49<0),"---", IF(AND(D49>=N49,D49>=ABS(C49)*L49),D49,"---")) -> 300 | F49: =IF(OR(#REF!="", E49=""),"",(E49-#REF!*K49)^I49*(J49+E49*M49)) ->  | G49: 89.98672229 | H49: 52.96418511 | I49: 0.4975 | J49: 3.101804849 | K49: 0 | L49: 0.12 | M49: 0 | N49: 250 | O49: 250 | P49: 250 | Q49: 597.6 | R49: 4985 | S49: 4500 | T49: 4000 | U49: 48.37150778 | V49: 48.37150778 | W49: 74.62403679 | X49: 214.3891927 | Y49: 203.7453455 | Z49: 192.1495255 | AG49: =IF('Flow charts'!$A$106=$O$47,X49, IF('Flow charts'!$A$106=$P$47,Y49, IF('Flow charts'!$A$106=$Q$47,Z49,"SELECT BP"))) -> 192.1495255 | AH49: =IF('Flow charts'!$A$106=$O$47,U49, IF('Flow charts'!$A$106=$P$47,V49, IF('Flow charts'!$A$106=$Q$47,W49,"SELECT BP"))) -> 74.62403679 | AI49: =AG49-AH49 -> 117.5254887
B50: 29 | C50: 250 | D50: 300 | E50: 300 | F50: =IF(OR(#REF!="", E50=""),"",(E50-#REF!*K50)^I50*(J50+E50*M50)) ->  | G50: 32.39325567 | H50: 19.06595047 | I50: 0.49 | J50: 1.165383985 | K50: 0 | L50: 0.15 | M50: 0 | N50: 250 | O50: 250 | P50: 250 | Q50: 747 | R50: 4985 | S50: 4500 | T50: 4000 | U50: 17.43651348 | V50: 17.43651348 | W50: 29.81234514 | X50: 75.5657462 | Y50: 71.86926069 | Z50: 67.83884441 | AG50: =IF('Flow charts'!$A$106=$O$47,X50, IF('Flow charts'!$A$106=$P$47,Y50, IF('Flow charts'!$A$106=$Q$47,Z50,"SELECT BP"))) -> 67.83884441 | AH50: =IF('Flow charts'!$A$106=$O$47,U50, IF('Flow charts'!$A$106=$P$47,V50, IF('Flow charts'!$A$106=$Q$47,W50,"SELECT BP"))) -> 29.81234514 | AI50: 38.02649926
B51: 18 | C51: 250 | D51: 300 | E51: 300 | F51: =IF(OR(#REF!="", E51=""),"",(E51-#REF!*K51)^I51*(J51+E51*M51)) ->  | G51: 12.47076564 | H51: 7.340015536 | I51: 0.5 | J51: 0.4237759946 | K51: 0 | L51: 0.15 | M51: 0 | N51: 250 | O51: 250 | P51: 250 | Q51: 747 | R51: 4985 | S51: 4500 | T51: 4000 | U51: 6.700486802 | V51: 6.700486802 | W51: 11.58234915 | X51: 29.92050595 | Y51: 28.42775793 | Z51: 26.80194721 | AG51: =IF('Flow charts'!$A$106=$O$47,X51, IF('Flow charts'!$A$106=$P$47,Y51, IF('Flow charts'!$A$106=$Q$47,Z51,"SELECT BP"))) -> 26.80194721 | AH51: =IF('Flow charts'!$A$106=$O$47,U51, IF('Flow charts'!$A$106=$P$47,V51, IF('Flow charts'!$A$106=$Q$47,W51,"SELECT BP"))) -> 11.58234915 | AI51: 15.21959806
B52: 11 | C52: 250 | D52: 300 | E52: 300 | F52: =IF(OR(#REF!="", E52=""),"",(E52-#REF!*K52)^I52*(J52+E52*M52)) ->  | G52: 5.161511332 | H52: 3.037950875 | I52: 0.5 | J52: 0.1753961755 | K52: 0 | L52: 0.14 | M52: 0 | N52: 250 | O52: 250 | P52: 250 | Q52: 697.2 | R52: 4985 | S52: 4500 | T52: 4000 | U52: 2.773257038 | V52: 2.773257038 | W52: 4.631256221 | X52: 12.38376496 | Y52: 11.76593314 | Z52: 11.09302815 | AB52: Optional | AG52: =IF('Flow charts'!$A$106=$O$47,X52, IF('Flow charts'!$A$106=$P$47,Y52, IF('Flow charts'!$A$106=$Q$47,Z52,"SELECT BP"))) -> 11.09302815 | AH52: =IF('Flow charts'!$A$106=$O$47,U52, IF('Flow charts'!$A$106=$P$47,V52, IF('Flow charts'!$A$106=$Q$47,W52,"SELECT BP"))) -> 4.631256221 | AI52: 6.46177193
B53: 7 | C53: 250 | D53: 300 | E53: 300 | F53: =IF(OR(#REF!="", E53=""),"",(E53-#REF!*K53)^I53*(J53+E53*M53)) ->  | G53: 1.818653322 | H53: 1.070418932 | I53: 0.5 | J53: 0.06180066587 | K53: 0 | L53: 0.08 | M53: 0 | N53: 250 | O53: 250 | P53: 250 | Q53: 398.4 | R53: 4985 | S53: 4500 | T53: 4000 | U53: 0.9771543254 | V53: 0.9771543254 | W53: 1.233538814 | X53: 4.363407118 | Y53: 4.145714698 | Z53: 3.908617301 | AB53: Optional | AG53: =IF('Flow charts'!$A$106=$O$47,X53, IF('Flow charts'!$A$106=$P$47,Y53, IF('Flow charts'!$A$106=$Q$47,Z53,"SELECT BP"))) -> 3.908617301 | AH53: =IF('Flow charts'!$A$106=$O$47,U53, IF('Flow charts'!$A$106=$P$47,V53, IF('Flow charts'!$A$106=$Q$47,W53,"SELECT BP"))) -> 1.233538814 | AI53: 2.675078488
B54: 3 | C54: 250 | D54: 300 | E54: 300 | F54: =IF(OR(#REF!="", E54=""),"",(E54-#REF!*K54)^I54*(J54+E54*M54)) ->  | G54: 0.4663405774 | H54: 0.2744777012 | I54: 0.513 | J54: 0.01471444426 | K54: 0 | L54: 0.1 | M54: 0 | N54: 250 | O54: 250 | P54: 250 | Q54: 498 | R54: 4985 | S54: 4500 | T54: 4000 | U54: 0.2499695385 | V54: 0.2499695385 | W54: 0.3559774739 | X54: 1.160502532 | Y54: 1.101138338 | Z54: 1.036574783 | AB54: Optional | AG54: =IF('Flow charts'!$A$106=$O$47,X54, IF('Flow charts'!$A$106=$P$47,Y54, IF('Flow charts'!$A$106=$Q$47,Z54,"SELECT BP"))) -> 1.036574783 | AH54: =IF('Flow charts'!$A$106=$O$47,U54, IF('Flow charts'!$A$106=$P$47,V54, IF('Flow charts'!$A$106=$Q$47,W54,"SELECT BP"))) -> 0.3559774739 | AI54: 0.6805973094
O55: min Fan Pressure, Pa | S55: max Fan Pressure, Pa | W55: min Flow, CFM | AA55: max Flow, CFM
O56: 0 | P56: 30 | Q56: 50 | R56: 75 | S56: 0 | T56: 30 | U56: 50 | V56: 75 | W56: 0 | X56: 30 | Y56: 50 | Z56: 75 | AA56: 0 | AB56: 30 | AC56: 50 | AD56: 75
A57: 3000SR Green port on fan | B57: Open | C57: 25 | D57: 300 | E57: =IF(OR(C57="",D57="", D57<0),"---", IF(AND(D57>=N57,D57>=ABS(C57)*L57),D57,"---")) -> 300 | F57: =IF(OR(#REF!="", E57=""),"",(E57-#REF!*K57)^I57*(J57+E57*M57)) ->  | G57: =IF($E$12="m3/h",IF(H57="---","---",(H57*(1/0.58857777866))),IF($E$12="m3/s",IF(H57="---","---",FIXED((H57*0.0004719474432),5,FALSE)),IF($E$12="L/s",IF(H57="---","---",(H57*0.47194745)),"---"))) -> 17479.15707 | H57: =IF(E57="---","---", (E57-ABS(C57)*K57)^I57*(J57+E57*M57)) -> 10287.84344 | I57: 0.522 | J57: 523.9225022 | K57: 0 | L57: 0.8 | M57: 0 | N57: 10 | O57: =IF($L57*O$56>$N57, $L57*O$56, $N57) -> 10 | P57: 24 | Q57: 40 | R57: 60 | S57: 177 | T57: 162 | U57: 153 | V57: 140 | W57: =($O57-ABS(W$56)*$K57)^$I57*($J57+$O57*$M57) -> 1742.878255 | X57: =($P57-ABS(X$56)*$K57)^$I57*($J57+$P57*$M57) -> 2752.563329 | Y57: =($Q57-ABS(Y$56)*$K57)^$I57*($J57+$Q57*$M57) -> 3593.704529 | Z57: =($R57-ABS(Z$56)*$K57)^$I57*($J57+$R57*$M57) -> 4440.808077 | AA57: =($S57-ABS(AA$56)*$K57)^$I57*($J57+$S57*$M57) -> 7811.044222 | AB57: =($T57-ABS(AB$56)*$K57)^$I57*($J57+$T57*$M57) -> 7458.197662 | AC57: =($U57-ABS(AC$56)*$K57)^$I57*($J57+$U57*$M57) -> 7238.956692 | AD57: =($V57-ABS(AD$56)*$K57)^$I57*($J57+$V57*$M57) -> 6911.079458 | AG57: =IF('Flow charts'!$A$139=$O$56,AA57, IF('Flow charts'!$A$139=$P$56,AB57, IF('Flow charts'!$A$139=$Q$56,AC57, IF('Flow charts'!$A$139=$R$56,AD57,"SELECT BP")))) -> 6911.079458 | AH57: =IF('Flow charts'!$A$139=$O$56,W57, IF('Flow charts'!$A$139=$P$56,X57, IF('Flow charts'!$A$139=$Q$56,Y57, IF('Flow charts'!$A$139=$R$56,Z57,"SELECT BP")))) -> 4440.808077 | AI57: =AG57-AH57 -> 2470.271381
B58: A | C58: 25 | D58: 300 | E58: 300 | F58: =IF(OR(#REF!="", E58=""),"",(E58-#REF!*K58)^I58*(J58+E58*M58)) ->  | G58: 8183.008906 | H58: 4816.337205 | I58: 0.497 | J58: 282.8704764 | K58: 0 | L58: 1 | M58: 0 | N58: 10 | O58: 10 | P58: 30 | Q58: 50 | R58: 75 | S58: 345 | T58: 330 | U58: 315 | V58: 300 | W58: 888.3571903 | X58: 1533.616899 | Y58: 1976.85909 | Z58: 2418.204749 | AA58: 5162.781107 | AB58: 5049.972928 | AC58: 4934.554695 | AD58: 4816.337205 | AG58: =IF('Flow charts'!$A$139=$O$56,AA58, IF('Flow charts'!$A$139=$P$56,AB58, IF('Flow charts'!$A$139=$Q$56,AC58, IF('Flow charts'!$A$139=$R$56,AD58,"SELECT BP")))) -> 4816.337205 | AH58: =IF('Flow charts'!$A$139=$O$56,W58, IF('Flow charts'!$A$139=$P$56,X58, IF('Flow charts'!$A$139=$Q$56,Y58, IF('Flow charts'!$A$139=$R$56,Z58,"SELECT BP")))) -> 2418.204749 | AI58: 2398.132455
B59: B | C59: 25 | D59: 300 | E59: 300 | F59: =IF(OR(#REF!="", E59=""),"",(E59-#REF!*K59)^I59*(J59+E59*M59)) ->  | G59: 5006.492787 | H59: 2946.710404 | I59: 0.5 | J59: 170.1284045 | K59: 0 | L59: 0.3 | M59: 0 | N59: 10 | O59: 10 | P59: 10 | Q59: 15 | R59: 22.5 | S59: 455 | T59: 420 | U59: 397 | V59: 362 | W59: 537.9932528 | X59: 537.9932528 | Y59: 658.9044773 | Z59: 806.9898793 | AA59: 3628.962892 | AB59: 3486.594769 | AC59: 3389.784445 | AD59: 3236.913652 | AG59: =IF('Flow charts'!$A$139=$O$56,AA59, IF('Flow charts'!$A$139=$P$56,AB59, IF('Flow charts'!$A$139=$Q$56,AC59, IF('Flow charts'!$A$139=$R$56,AD59,"SELECT BP")))) -> 3236.913652 | AH59: =IF('Flow charts'!$A$139=$O$56,W59, IF('Flow charts'!$A$139=$P$56,X59, IF('Flow charts'!$A$139=$Q$56,Y59, IF('Flow charts'!$A$139=$R$56,Z59,"SELECT BP")))) -> 806.9898793 | AI59: 2429.923773
B60: C8 | C60: 25 | D60: 300 | E60: 300 | F60: =IF(OR(#REF!="", E60=""),"",(E60-#REF!*K60)^I60*(J60+E60*M60)) ->  | G60: 2412.74674 | H60: 1420.089117 | I60: 0.5 | J60: 81.98888339 | K60: 0 | L60: 0.5 | M60: 0 | N60: 10 | O60: 10 | P60: 15 | Q60: 25 | R60: 37.5 | S60: 570 | T60: 559 | U60: 540 | V60: 506 | W60: 259.2716143 | X60: 317.5415799 | Y60: 409.944417 | Z60: 502.0773222 | AA60: 1957.457762 | AB60: 1938.477996 | AC60: 1905.24948 | AD60: 1844.294326 | AG60: =IF('Flow charts'!$A$139=$O$56,AA60, IF('Flow charts'!$A$139=$P$56,AB60, IF('Flow charts'!$A$139=$Q$56,AC60, IF('Flow charts'!$A$139=$R$56,AD60,"SELECT BP")))) -> 1844.294326 | AH60: =IF('Flow charts'!$A$139=$O$56,W60, IF('Flow charts'!$A$139=$P$56,X60, IF('Flow charts'!$A$139=$Q$56,Y60, IF('Flow charts'!$A$139=$R$56,Z60,"SELECT BP")))) -> 502.0773222 | AI60: 1342.217004
B61: C6 | C61: 25 | D61: 300 | E61: 300 | F61: =IF(OR(#REF!="", E61=""),"",(E61-#REF!*K61)^I61*(J61+E61*M61)) ->  | G61: 1846.539339 | H61: 1086.832023 | I61: 0.5 | J61: 62.74827608 | K61: 0 | L61: 0.5 | M61: 0 | N61: 10 | O61: 10 | P61: 15 | Q61: 25 | R61: 37.5 | S61: 597 | T61: 570 | U61: 537 | V61: 508 | W61: 198.4274717 | X61: 243.0230283 | Y61: 313.7413804 | Z61: 384.2531466 | AA61: 1533.16524 | AB61: 1498.094559 | AC61: 1454.082145 | AD61: 1414.274317 | AG61: =IF('Flow charts'!$A$139=$O$56,AA61, IF('Flow charts'!$A$139=$P$56,AB61, IF('Flow charts'!$A$139=$Q$56,AC61, IF('Flow charts'!$A$139=$R$56,AD61,"SELECT BP")))) -> 1414.274317 | AH61: =IF('Flow charts'!$A$139=$O$56,W61, IF('Flow charts'!$A$139=$P$56,X61, IF('Flow charts'!$A$139=$Q$56,Y61, IF('Flow charts'!$A$139=$R$56,Z61,"SELECT BP")))) -> 384.2531466 | AI61: 1030.021171
B62: C4 | C62: 25 | D62: 300 | E62: 300 | F62: =IF(OR(#REF!="", E62=""),"",(E62-#REF!*K62)^I62*(J62+E62*M62)) ->  | G62: 1247.292932 | H62: 734.1289031 | I62: 0.51 | J62: 40.03505993 | K62: 0 | L62: 0.5 | M62: 0 | N62: 10 | O62: 10 | P62: 15 | Q62: 25 | R62: 37.5 | S62: 570 | T62: 530 | U62: 517 | V62: 502 | W62: 129.5509145 | X62: 159.3114627 | Y62: 206.7235181 | Z62: 254.2122236 | AA62: 1018.44284 | AB62: 981.3437852 | AC62: 968.9930451 | AD62: 954.5515313 | AG62: =IF('Flow charts'!$A$139=$O$56,AA62, IF('Flow charts'!$A$139=$P$56,AB62, IF('Flow charts'!$A$139=$Q$56,AC62, IF('Flow charts'!$A$139=$R$56,AD62,"SELECT BP")))) -> 954.5515313 | AH62: =IF('Flow charts'!$A$139=$O$56,W62, IF('Flow charts'!$A$139=$P$56,X62, IF('Flow charts'!$A$139=$Q$56,Y62, IF('Flow charts'!$A$139=$R$56,Z62,"SELECT BP")))) -> 254.2122236 | AI62: 700.3393077
B63: C2 | C63: 25 | D63: 300 | E63: 300 | F63: =IF(OR(#REF!="", E63=""),"",(E63-#REF!*K63)^I63*(J63+E63*M63)) ->  | G63: 667.7654886 | H63: 393.0319279 | I63: 0.53 | J63: 19.12289175 | K63: 0 | L63: 0.5 | M63: 0 | N63: 10 | O63: 10 | P63: 15 | Q63: 25 | R63: 37.5 | S63: 541 | T63: 509 | U63: 496 | V63: 480 | W63: 64.79680119 | X63: 80.33077077 | Y63: 105.3080986 | Z63: 130.5539868 | AA63: 537.2149836 | AB63: 520.1325003 | AC63: 513.0490116 | AD63: 504.2099625 | AG63: =IF('Flow charts'!$A$139=$O$56,AA63, IF('Flow charts'!$A$139=$P$56,AB63, IF('Flow charts'!$A$139=$Q$56,AC63, IF('Flow charts'!$A$139=$R$56,AD63,"SELECT BP")))) -> 504.2099625 | AH63: =IF('Flow charts'!$A$139=$O$56,W63, IF('Flow charts'!$A$139=$P$56,X63, IF('Flow charts'!$A$139=$Q$56,Y63, IF('Flow charts'!$A$139=$R$56,Z63,"SELECT BP")))) -> 130.5539868 | AI63: 373.6559757
B64: C1 | C64: 25 | D64: 300 | E64: =IF(OR(C64="",D64="", D64<0),"---", IF(AND(D64>=N64,D64>=ABS(C64)*L64),D64,"---")) -> 300 | F64: =IF(OR(#REF!="", E64=""),"",(E64-#REF!*K64)^I64*(J64+E64*M64)) ->  | G64: =IF($E$12="m3/h",IF(H64="---","---",(H64*(1/0.58857777866))),IF($E$12="m3/s",IF(H64="---","---",FIXED((H64*0.0004719474432),5,FALSE)),IF($E$12="L/s",IF(H64="---","---",(H64*0.47194745)),"---"))) -> 378.3553586 | H64: =IF(E64="---","---", (E64-ABS(C64)*K64)^I64*(J64+E64*M64)) -> 222.6915565 | I64: 0.532 | J64: 10.71211542 | K64: 0 | L64: 0.4 | M64: 0 | N64: 10 | O64: 10 | P64: 12 | Q64: 20 | R64: 30 | S64: 531 | T64: 503 | U64: 490 | V64: 475 | W64: 36.46491817 | X64: 40.17905021 | Y64: 52.7258028 | Z64: 65.41897736 | AA64: 301.7348882 | AB64: 293.1631715 | AC64: 289.1076329 | AD64: 284.3650667 | AG64: =IF('Flow charts'!$A$139=$O$56,AA64, IF('Flow charts'!$A$139=$P$56,AB64, IF('Flow charts'!$A$139=$Q$56,AC64, IF('Flow charts'!$A$139=$R$56,AD64,"SELECT BP")))) -> 284.3650667 | AH64: =IF('Flow charts'!$A$139=$O$56,W64, IF('Flow charts'!$A$139=$P$56,X64, IF('Flow charts'!$A$139=$Q$56,Y64, IF('Flow charts'!$A$139=$R$56,Z64,"SELECT BP")))) -> 65.41897736 | AI64: 218.9460893
H67: Flow = PN*K (Open, Ring A, B8) Flow = P3*a+P2*b+P*c+d+(g-|PrA|)*f (B4) P is calculated depending: If PrA<0: P = |PrB|-|PrA| If PrA>0: P = PrB Conditions that must be true, or else “- -“ is displayed for flow result: If PrA<0: (|PrB|-|PrA|)>MF, (|PrB|-|PrA|)>PrA*K2 If PrA>0: PrB>=MF, PrB>=|PrA|*K2
C68: Enter Pressures appearing on gauge | E68: Fan Pressure used in flow equation | S68: min Fan Pressure, Pa | U68: max Fan Pressure, Pa | W68: min Flow, CFM | Y68: max Flow, CFM
A69: Device | B69: Range | C69: PrA, Pa | D69: PrB, Pa | E69: P, Pa | F69: CFM calculation | G69: =IF($E$12="m3/h","m3/h displayed on DM32",IF($E$12="m3/s","m3/s displayed on DM32",IF($E$12="L/s","L/s displayed on DM32","Metric displayed on DM32"))) -> m3/h displayed on DM32 | H69: CFM displayed on DM32 | I69: N | J69: K | K69: g | L69: f | M69: a | N69: b | O69: c | P69: d | Q69: K2 | R69: MF | S69: 250 | T69: 500 | U69: 250 | V69: 500 | W69: 250 | X69: 500 | Y69: 250 | Z69: 500 | AG69: high | AH69: low | AI69: delta
A70: 4000 | B70: Open | C70: 25 | D70: 300 | E70: =IF(OR(C70="",D70="",D70<0),"", IF(AND(C70>=0,D70>=R70, D70>=ABS(C70)*Q70),D70, IF(AND(C70<0, (ABS(D70)-ABS(C70))>=R70, (ABS(D70)-ABS(C70))>=ABS(C70)*Q70),(ABS(D70)-ABS(C70)),"---"))) -> 300 | F70: =IF(OR(#REF!="", E70=""),"",E70^I70*J70) ->  | G70: =IF($E$12="m3/h",IF(H70="---","---",(H70*(1/0.58857777866))),IF($E$12="m3/s",IF(H70="---","---",FIXED((H70*0.0004719474432),5,FALSE)),IF($E$12="L/s",IF(H70="---","---",(H70*0.47194745)),"---"))) -> 15713.86136 | H70: =IF(E70="---","---", E70^I70*J70) -> 9248.829614 | I70: 0.53 | J70: 450 | Q70: 0.2 | R70: 10 | S70: =IF($Q70*S$69>$R70, $Q70*S$69, $R70) -> 50 | T70: =IF($Q70*T$69>$R70, $Q70*T$69, $R70) -> 100 | U70: 195 | V70: 105 | W70: =S70^$I70*$J70 -> 3578.216517 | X70: 5166.691297 | Y70: 7360.898984 | Z70: 5302.038076 | AG70: =IF('Flow charts'!$A$172=$S$69,Y70, IF('Flow charts'!$A$172=$T$69,Z70, "SELECT BP")) -> 7360.898984 | AH70: =IF('Flow charts'!$A$172=$S$69,W70, IF('Flow charts'!$A$172=$T$69,X70, "SELECT BP")) -> 3578.216517 | AI70: =AG70-AH70 -> 3782.682467
B71: Ring A | C71: 25 | D71: 300 | E71: =IF(OR(C71="",D71="",D71<0),"", IF(AND(C71>=0,D71>=R71, D71>=ABS(C71)*Q71),D71, IF(AND(C71<0, (ABS(D71)-ABS(C71))>=R71, (ABS(D71)-ABS(C71))>=ABS(C71)*Q71),(ABS(D71)-ABS(C71)),"---"))) -> 300 | F71: =IF(OR(#REF!="", E71=""),"",E71^I71*J71) ->  | G71: 8104.406229 | H71: =IF(E71="---","---", E71^I71*J71) -> 4770.073416 | I71: 0.485 | J71: 300 | Q71: 0.2 | R71: 20 | S71: =IF($Q71*S$69>$R71, $Q71*S$69, $R71) -> 50 | T71: 100 | U71: 395 | V71: 213 | W71: 2000.42239 | X71: 2799.762902 | Y71: 5450.933027 | Z71: 4040.037185 | AG71: =IF('Flow charts'!$A$172=$S$69,Y71, IF('Flow charts'!$A$172=$T$69,Z71, "SELECT BP")) -> 5450.933027 | AH71: =IF('Flow charts'!$A$172=$S$69,W71, IF('Flow charts'!$A$172=$T$69,X71, "SELECT BP")) -> 2000.42239 | AI71: =AG71-AH71 -> 3450.510637
B72: B8 | C72: 25 | D72: 300 | E72: =IF(OR(C72="",D72="",D72<0),"", IF(AND(C72>=0,D72>=R72, D72>=ABS(C72)*Q72),D72, IF(AND(C72<0, (ABS(D72)-ABS(C72))>=R72, (ABS(D72)-ABS(C72))>=ABS(C72)*Q72),(ABS(D72)-ABS(C72)),"---"))) -> 300 | F72: =IF(OR(#REF!="", E72=""),"",E72^I72*J72) ->  | G72: 4188.928155 | H72: =IF(E72="---","---", E72^I72*J72) -> 2465.510029 | I72: 0.52 | J72: 127 | Q72: 0.2 | R72: 15 | S72: 50 | T72: 100 | U72: 660 | V72: 330 | W72: 971.1093223 | X72: 1392.527309 | Y72: 3715.066289 | Z72: 2590.782589 | AG72: =IF('Flow charts'!$A$172=$S$69,Y72, IF('Flow charts'!$A$172=$T$69,Z72, "SELECT BP")) -> 3715.066289 | AH72: =IF('Flow charts'!$A$172=$S$69,W72, IF('Flow charts'!$A$172=$T$69,X72, "SELECT BP")) -> 971.1093223 | AI72: =AG72-AH72 -> 2743.956967
B73: B4 | C73: 25 | D73: 300 | E73: =IF(OR(C73="",D73="",D73<0),"", IF(AND(C73>=0,D73>=R73, D73>=ABS(C73)*Q73),D73, IF(AND(C73<0, (ABS(D73)-ABS(C73))>=R73, (ABS(D73)-ABS(C73))>=ABS(C73)*Q73),(ABS(D73)-ABS(C73)),"---"))) -> 300 | F73: =IF(OR(#REF!="", E73=""),"",E73^3*M73+E73^2*N73+E73*O73+P73+(K73-#REF!)*L73) ->  | G73: 1850.630519 | H73: =IF(E73="---","---", E73^3*M73+E73^2*N73+E73*O73+P73+(K73-ABS(C73))*L73) -> 1089.24 | K73: 0 | L73: 0.7 | M73: 6.62e-06 | N73: -0.0078 | O73: 4.75 | P73: 205 | Q73: 0.2 | R73: 25 | S73: 50 | T73: 100 | U73: 485 | V73: 425 | W73: =S73^3*$M73+S73^2*$N73+S73*$O73+$P73+($K73-ABS(W$69))*$L73 -> 248.8275 | X73: =T73^3*$M73+T73^2*$N73+T73*$O73+$P73+($K73-ABS(X$69))*$L73 -> 258.62 | Y73: =U73^3*$M73+U73^2*$N73+U73*$O73+$P73+($K73-ABS(Y$69))*$L73 -> 1254.231908 | Z73: =V73^3*$M73+V73^2*$N73+V73*$O73+$P73+($K73-ABS(Z$69))*$L73 -> 973.0634375 | AG73: =IF('Flow charts'!$A$172=$S$69,Y73, IF('Flow charts'!$A$172=$T$69,Z73, "SELECT BP")) -> 1254.231908 | AH73: =IF('Flow charts'!$A$172=$S$69,W73, IF('Flow charts'!$A$172=$T$69,X73, "SELECT BP")) -> 248.8275 | AI73: =AG73-AH73 -> 1005.404408
H76: Flow = (P-|PrA|*K1)N*(K+P*K3) (1000, 2000, 3000 fans - all ranges) Flow = PN*K (5000, 6000 fans - Open, Ring A, B8) Flow = P3*a+P2*b+P*c+d+(g-|PrA|)*f (5000, 6000 fans - B4, B2, B1, B74, B47, B29) P is calculated depending: If PrA>0: P = |PrB|-PrA If PrA<0: P = PrB Conditions that must be true, or else “- -“ is displayed for flow result: If PrA>0: (|PrB|-PrA)>MF, (|PrB|-PrA)>PrA*K2 If PrA<0: PrB>=MF, PrB>=|PrA|*K2
C77: Enter Pressures appearing on gauge | E77: Fan Pressure used in flow equation | O77: min Fan Pressure, Pa | R77: max Fan Pressure, Pa | U77: min Flow, CFM | X77: max Flow, CFM
A78: Device | B78: Range | C78: PrA, Pa | D78: PrB, Pa | E78: P, Pa | F78: CFM calculation | G78: =IF($E$12="m3/h","m3/h displayed on DM32",IF($E$12="m3/s","m3/s displayed on DM32",IF($E$12="L/s","L/s displayed on DM32","Metric displayed on DM32"))) -> m3/h displayed on DM32 | H78: CFM displayed on DM32 | I78: N | J78: K | K78: K1 | L78: K2 | M78: K3 | N78: MF | O78: 0 | P78: 50 | Q78: 75 | R78: 0 | S78: 50 | T78: 75 | U78: 0 | V78: 50 | W78: 75 | X78: 0 | Y78: 50 | Z78: 75
A79: 1000 2000 3000 No green port on fan | B79: Open | C79: 25 | D79: 300 | E79: =IF(OR(C79="",D79="",D79<0),"", IF(AND(C79<=0,D79>=N79, D79>=ABS(C79)*L79),D79, IF(AND(C79>0, (ABS(D79)-C79)>=N79, (ABS(D79)-C79)>=ABS(C79)*L79),(ABS(D79)-C79),"---"))) -> 275 | F79: =IF(OR(#REF!="", E79=""),"",(E79-#REF!*K79)^I79*(J79+E79*M79)) ->  | G79: =IF($E$12="m3/h",IF(H79="---","---",(H79*(1/0.58857777866))),IF($E$12="m3/s",IF(H79="---","---",FIXED((H79*0.0004719474432),5,FALSE)),IF($E$12="L/s",IF(H79="---","---",(H79*0.47194745)),"---"))) -> 15556.59293 | H79: =IF(E79="---","---", (E79-ABS(C79)*K79)^I79*(J79+E79*M79)) -> 9156.264913 | I79: 0.5214 | J79: 519.6183 | K79: -0.07 | L79: 0.8 | M79: -0.115 | N79: 8.6 | O79: =IF($L79*O$78>$N79, $L79*O$78, $N79) -> 8.6 | P79: 40 | Q79: 60 | U79: =($O79-ABS(U$78)*$K79)^$I79*($J79+$O79*$M79) -> 1592.592041 | V79: =($P79-ABS(V$78)*$K79)^$I79*($J79+$P79*$M79) -> 3682.39998 | W79: =($Q79-ABS(W$78)*$K79)^$I79*($J79+$Q79*$M79) -> 4528.987267 | AG79: Flow away = negative PrA = no subtraction for PrB
B80: A | C80: 25 | D80: 300 | E80: =IF(OR(C80="",D80="",D80<0),"", IF(AND(C80<=0,D80>=N80, D80>=ABS(C80)*L80),D80, IF(AND(C80>0, (ABS(D80)-C80)>=N80, (ABS(D80)-C80)>=ABS(C80)*L80),(ABS(D80)-C80),"---"))) -> 275 | F80: =IF(OR(#REF!="", E80=""),"",(E80-#REF!*K80)^I80*(J80+E80*M80)) ->  | G80: 7619.106006 | H80: =IF(E80="---","---", (E80-ABS(C80)*K80)^I80*(J80+E80*M80)) -> 4484.436488 | I80: 0.503 | J80: 264.9959 | K80: -0.075 | L80: 1 | M80: 0 | N80: 12 | O80: 12 | P80: 50 | Q80: 75 | U80: 924.8415255 | V80: 1966.163023 | W80: 2410.979 | AG80: Flow towards = positive PrA = subtraction for PrA
B81: B | C81: 25 | D81: 300 | E81: 275 | F81: =IF(OR(#REF!="", E81=""),"",(E81-#REF!*K81)^I81*(J81+E81*M81)) ->  | G81: 4927.295289 | H81: =IF(E81="---","---", (E81-ABS(C81)*K81)^I81*(J81+E81*M81)) -> 2900.096516 | I81: 0.5 | J81: 174.8824 | K81: 0 | L81: 0.3 | M81: 0 | N81: 10 | O81: 10 | P81: 15 | Q81: 22.5 | U81: 553.0267067 | V81: 677.3166227 | W81: 829.54006
B82: C8 | C82: 25 | D82: 300 | E82: 275 | F82: =IF(OR(#REF!="", E82=""),"",(E82-#REF!*K82)^I82*(J82+E82*M82)) ->  | G82: 2337.822158 | H82: 1375.990173 | I82: 0.5 | J82: 78.5 | K82: -0.02 | L82: 0.5 | M82: 0.016 | N82: 10 | O82: 10 | P82: 25 | Q82: 37.5 | U82: 248.7447607 | V82: 402.3126396 | W82: 493.9793417
B83: C6 | C83: 25 | D83: 300 | E83: 275 | F83: =IF(OR(#REF!="", E83=""),"",(E83-#REF!*K83)^I83*(J83+E83*M83)) ->  | G83: 1803.700525 | H83: 1061.618048 | I83: 0.505 | J83: 61.3 | K83: 0.054 | L83: 0.5 | M83: 0.004 | N83: 10 | O83: 10 | P83: 25 | Q83: 37.5 | U83: 196.220226 | V83: 294.4844227 | W83: 361.69452
B84: C4 | C84: 25 | D84: 300 | E84: 275 | F84: =IF(OR(#REF!="", E84=""),"",(E84-#REF!*K84)^I84*(J84+E84*M84)) ->  | G84: 1242.412711 | H84: 731.2565135 | I84: 0.5077 | J84: 42 | K84: 0.009 | L84: 0.5 | M84: 0.0009 | N84: 10 | O84: 10 | P84: 25 | Q84: 37.5 | U84: 135.2204396 | V84: 213.4081646 | W84: 262.2580416
B85: C2 | C85: 25 | D85: 300 | E85: 275 | F85: =IF(OR(#REF!="", E85=""),"",(E85-#REF!*K85)^I85*(J85+E85*M85)) ->  | G85: 681.3013124 | H85: 400.998813 | I85: 0.52 | J85: 22 | K85: 0.11 | L85: 0.5 | M85: -0.001 | N85: 10 | O85: 10 | P85: 25 | Q85: 37.5 | U85: 72.81573361 | V85: 102.9785759 | W85: 127.07708
B86: C1 | C86: 25 | D86: 300 | E86: 275 | F86: =IF(OR(#REF!="", E86=""),"",(E86-#REF!*K86)^I86*(J86+E86*M86)) ->  | G86: 406.673877 | H86: 239.3592072 | I86: 0.541 | J86: 11.9239 | K86: 0.13 | L86: 0.4 | M86: -0.0014 | N86: 10 | O86: 10 | P86: 20 | Q86: 30 | U86: 41.39120929 | V86: 48.63040355 | W86: 60.48697043
B87: L4 | C87: 25 | D87: 300 | E87: 275 | F87: =IF(OR(#REF!="", E87=""),"",(E87-#REF!*K87)^I87*(J87+E87*M87)) ->  | G87: 105.9862398 | H87: 62.38114559 | I87: 0.48 | J87: 4.0995 | K87: 0.003 | L87: 1 | M87: 0.0004 | N87: 10 | O87: 10 | P87: 50 | Q87: 75 | U87: 12.39237188 | V87: 26.89823511 | W87: 32.75673089
B88: L2 | C88: 25 | D88: 300 | E88: 275 | F88: =IF(OR(#REF!="", E88=""),"",(E88-#REF!*K88)^I88*(J88+E88*M88)) ->  | G88: 59.70179154 | H88: 35.13914785 | I88: 0.502 | J88: 2.0678 | K88: 0 | L88: 0.5 | M88: 0.0001 | N88: 10 | O88: 10 | P88: 25 | Q88: 37.5 | U88: 6.572317077 | V88: 10.41835535 | W88: 12.77788916
B89: L1 | C89: 25 | D89: 300 | E89: 275 | F89: =IF(OR(#REF!="", E89=""),"",(E89-#REF!*K89)^I89*(J89+E89*M89)) ->  | G89: 31.97123921 | H89: =IF(E89="---","---", (E89-ABS(C89)*K89)^I89*(J89+E89*M89)) -> 18.81756096 | I89: 0.4925 | J89: 1.1614 | K89: 0.1 | L89: 0.5 | M89: 0.0001 | N89: 10 | O89: 10 | P89: 25 | Q89: 37.5 | U89: 3.612897173 | V89: 5.08947448 | W89: 6.221055237
S90: min Fan Pressure, Pa | V90: max Fan Pressure, Pa | Y90: min Flow, CFM | AB90: max Flow, CFM
I91: N | J91: K | K91: g | L91: f | M91: a | N91: b | O91: c | P91: d | Q91: K2 | R91: MF | S91: 0 | T91: 50 | U91: 75 | V91: 0 | W91: 50 | X91: 75 | Y91: 0 | Z91: 50 | AA91: 75 | AB91: 0 | AC91: 50 | AD91: 75 | AG91: high | AH91: low | AI91: delta
A92: 5000 | B92: Open | C92: -50 | D92: 100 | E92: =IF(OR(C92="",D92="",D92<0),"", IF(AND(C92<=0,D92>=R92, D92>=ABS(C92)*Q92),D92, IF(AND(C92>0, (ABS(D92)-C92)>=R92, (ABS(D92)-C92)>=ABS(C92)*Q92),(ABS(D92)-C92),"---"))) -> 100 | F92: =IF(OR(#REF!="", E92=""),"",E92^I92*J92) ->  | G92: =IF($E$12="m3/h",IF(H92="---","---",(H92*(1/0.58857777866))),IF($E$12="m3/s",IF(H92="---","---",FIXED((H92*0.0004719474432),5,FALSE)),IF($E$12="L/s",IF(H92="---","---",(H92*0.47194745)),"---"))) -> 9389.659167 | H92: =IF(E92="---","---", E92^I92*J92) -> 5526.544735 | I92: 0.499 | J92: 555.2054106 | Q92: 0.3 | R92: 10 | S92: =IF($Q92*S$91>$R92, $Q92*S$91, $R92) -> 10 | T92: =IF($Q92*T$91>$R92, $Q92*T$91, $R92) -> 15 | U92: =IF($Q92*U$91>$R92, $Q92*U$91, $R92) -> 22.5 | V92: 140 | W92: 121 | X92: 109 | Y92: =S92^$I92*$J92 -> 1751.675637 | Z92: 2144.486063 | AA92: 2625.38359 | AB92: 6536.896061 | AC92: 6078.0405 | AD92: 5769.384883 | AG92: =IF('Flow charts'!$A$205=$S$91,AB92, IF('Flow charts'!$A$205=$T$91,AC92, IF('Flow charts'!$A$205=$U$91,AD92,"SELECT BP"))) -> 6536.896061 | AH92: =IF('Flow charts'!$A$205=$S$91,Y92, IF('Flow charts'!$A$205=$T$91,Z92, IF('Flow charts'!$A$205=$U$91,AA92,"SELECT BP"))) -> 1751.675637 | AI92: =AG92-AH92 -> 4785.220424
B93: Ring A | C93: -50 | D93: 100 | E93: 100 | F93: =IF(OR(#REF!="", E93=""),"",E93^I93*J93) ->  | G93: 5010.749996 | H93: =IF(E93="---","---", E93^I93*J93) -> 2949.216102 | I93: 0.503 | J93: 290.875134 | Q93: 0.4 | R93: 20 | S93: =IF($Q93*S$91>$R93, $Q93*S$91, $R93) -> 20 | T93: 20 | U93: 30 | V93: 215 | W93: 165 | X93: 137 | Y93: 1312.576681 | Z93: 1312.576681 | AA93: 1609.52819 | AB93: 4334.341656 | AC93: 3794.032269 | AD93: 3455.230636 | AG93: =IF('Flow charts'!$A$205=$S$91,AB93, IF('Flow charts'!$A$205=$T$91,AC93, IF('Flow charts'!$A$205=$U$91,AD93,"SELECT BP"))) -> 4334.341656 | AH93: =IF('Flow charts'!$A$205=$S$91,Y93, IF('Flow charts'!$A$205=$T$91,Z93, IF('Flow charts'!$A$205=$U$91,AA93,"SELECT BP"))) -> 1312.576681 | AI93: =AG93-AH93 -> 3021.764976
B94: B8 | C94: 50 | D94: 160 | E94: 110 | F94: =IF(OR(#REF!="", E94=""),"",E94^I94*J94) ->  | G94: 2458.861092 | H94: =IF(E94="---","---", E94^I94*J94) -> 1447.230999 | I94: 0.527 | J94: 121.5413095 | Q94: 0.7 | R94: 35 | S94: 35 | T94: =IF($Q94*T$91>$R94, $Q94*T$91, $R94) -> 35 | U94: =IF($Q94*U$91>$R94, $Q94*U$91, $R94) -> 52.5 | V94: 350 | W94: 295 | X94: 263 | Y94: 791.4942619 | Z94: 791.4942619 | AA94: 980.0491678 | AB94: 2663.469762 | AC94: 2433.997421 | AD94: 2291.081776 | AG94: =IF('Flow charts'!$A$205=$S$91,AB94, IF('Flow charts'!$A$205=$T$91,AC94, IF('Flow charts'!$A$205=$U$91,AD94,"SELECT BP"))) -> 2663.469762 | AH94: =IF('Flow charts'!$A$205=$S$91,Y94, IF('Flow charts'!$A$205=$T$91,Z94, IF('Flow charts'!$A$205=$U$91,AA94,"SELECT BP"))) -> 791.4942619 | AI94: 1871.9755
B95: B4 | C95: -50 | D95: 160 | E95: 160 | F95: =IF(OR(#REF!="", E95=""),"",E95^3*M95+E95^2*N95+E95*O95+P95+(K95-#REF!)*L95) ->  | G95: 1398.05998 | H95: =IF(E95="---","---", E95^3*M95+E95^2*N95+E95*O95+P95+(K95-ABS(C95))*L95) -> 822.8670374 | K95: 50 | L95: 0.5885777702 | M95: 1.765733311e-05 | N95: -0.01530302203 | O95: 6.27423903 | P95: 138.42172 | Q95: 0.8 | R95: 40 | S95: 40 | T95: 40 | U95: 60 | V95: 350 | W95: 297 | X95: 262 | Y95: =S95^3*$M95+S95^2*$N95+S95*$O95+$P95+($K95-ABS(Y$91))*$L95 -> 395.4654038 | Z95: 366.0365153 | AA95: 448.8847222 | AB95: 1246.272228 | AC95: 1114.594544 | AD95: =X95^3*$M95+X95^2*$N95+X95*$O95+$P95+($K95-ABS(X$91))*$L95 -> 1034.659591 | AG95: =IF('Flow charts'!$A$205=$S$91,AB95, IF('Flow charts'!$A$205=$T$91,AC95, IF('Flow charts'!$A$205=$U$91,AD95,"SELECT BP"))) -> 1246.272228 | AH95: =IF('Flow charts'!$A$205=$S$91,Y95, IF('Flow charts'!$A$205=$T$91,Z95, IF('Flow charts'!$A$205=$U$91,AA95,"SELECT BP"))) -> 395.4654038 | AI95: 850.8068242
B96: B2 | C96: -50 | D96: 160 | E96: 160 | F96: =IF(OR(#REF!="", E96=""),"",E96^3*M96+E96^2*N96+E96*O96+P96+(K96-#REF!)*L96) ->  | G96: 607.3407913 | H96: 357.4672938 | K96: 50 | L96: 0.9181813215 | M96: 2.530884412e-06 | N96: -0.00466153594 | O96: 2.754543965 | P96: 25.709077 | Q96: 1 | R96: 50 | S96: 50 | T96: 50 | U96: 75 | V96: 336 | W96: 289 | X96: 266 | Y96: 198.007862 | Z96: 152.0987959 | AA96: 184.1919185 | AB96: 566.8803338 | AC96: 493.5255366 | AD96: 453.2656201 | AG96: =IF('Flow charts'!$A$205=$S$91,AB96, IF('Flow charts'!$A$205=$T$91,AC96, IF('Flow charts'!$A$205=$U$91,AD96,"SELECT BP"))) -> 566.8803338 | AH96: =IF('Flow charts'!$A$205=$S$91,Y96, IF('Flow charts'!$A$205=$T$91,Z96, IF('Flow charts'!$A$205=$U$91,AA96,"SELECT BP"))) -> 198.007862 | AI96: 368.8724718
B97: B1 | C97: -50 | D97: 160 | E97: 160 | F97: =IF(OR(#REF!="", E97=""),"",E97^3*M97+E97^2*N97+E97*O97+P97+(K97-#REF!)*L97) ->  | G97: 305.5983956 | H97: 179.8684249 | K97: 50 | L97: 0.4473191054 | M97: 2.736886631e-06 | N97: -0.003137119515 | O97: 1.489101759 | P97: 10.71211542 | Q97: 1 | R97: 60 | S97: 60 | T97: 60 | U97: 75 | V97: 336 | W97: 288 | X97: 260 | Y97: 111.7217135 | Z97: 89.35575819 | AA97: 94.72009646 | AB97: 283.0664907 | AC97: 244.7465784 | AD97: 222.7298352 | AG97: =IF('Flow charts'!$A$205=$S$91,AB97, IF('Flow charts'!$A$205=$T$91,AC97, IF('Flow charts'!$A$205=$U$91,AD97,"SELECT BP"))) -> 283.0664907 | AH97: =IF('Flow charts'!$A$205=$S$91,Y97, IF('Flow charts'!$A$205=$T$91,Z97, IF('Flow charts'!$A$205=$U$91,AA97,"SELECT BP"))) -> 111.7217135 | AI97: 171.3447772
B98: B74 | C98: -50 | D98: 160 | E98: 160 | F98: =IF(OR(#REF!="", E98=""),"",E98^3*M98+E98^2*N98+E98*O98+P98+(K98-#REF!)*L98) ->  | G98: 148.3447979 | H98: 87.31245161 | K98: 30 | L98: 0.1294871094 | M98: 1.648017757e-06 | N98: -0.001494987536 | O98: 0.6592071026 | P98: 15.95045757 | Q98: 0.8 | R98: 55 | S98: 55 | T98: 55 | U98: 60 | V98: 336 | W98: 228 | X98: 364 | Y98: 51.84331316 | Z98: 45.36895769 | AA98: 44.64998051 | AB98: 135.0648943 | AC98: 105.4773892 | AD98: 131.4765513 | AG98: =IF('Flow charts'!$A$205=$S$91,AB98, IF('Flow charts'!$A$205=$T$91,AC98, IF('Flow charts'!$A$205=$U$91,AD98,"SELECT BP"))) -> 135.0648943 | AH98: =IF('Flow charts'!$A$205=$S$91,Y98, IF('Flow charts'!$A$205=$T$91,Z98, IF('Flow charts'!$A$205=$U$91,AA98,"SELECT BP"))) -> 51.84331316 | AI98: 83.22158113
B99: B47 | C99: -50 | D99: 160 | E99: 160 | F99: =IF(OR(#REF!="", E99=""),"",E99^3*M99+E99^2*N99+E99*O99+P99+(K99-#REF!)*L99) ->  | G99: 70.25135899 | H99: 41.34838882 | K99: 30 | L99: 0.02354311081 | M99: 8.29894656e-07 | N99: -0.0007298364351 | O99: 0.3072375961 | P99: 7.945799898 | Q99: 0.8 | R99: 25 | S99: 25 | T99: 40 | U99: 60 | V99: 343 | W99: 302 | X99: 277 | Y99: 15.88985246 | Z99: 18.64981649 | AA99: 22.87246175 | AB99: 61.65930472 | AC99: 56.55498255 | AD99: 53.63007961 | AG99: =IF('Flow charts'!$A$205=$S$91,AB99, IF('Flow charts'!$A$205=$T$91,AC99, IF('Flow charts'!$A$205=$U$91,AD99,"SELECT BP"))) -> 61.65930472 | AH99: =IF('Flow charts'!$A$205=$S$91,Y99, IF('Flow charts'!$A$205=$T$91,Z99, IF('Flow charts'!$A$205=$U$91,AA99,"SELECT BP"))) -> 15.88985246 | AI99: 45.76945226
B100: B29 | C100: -50 | D100: 160 | E100: 160 | F100: =IF(OR(#REF!="", E100=""),"",E100^3*M100+E100^2*N100+E100*O100+P100+(K100-#REF!)*L100) ->  | G100: 24.59951965 | H100: 14.47873063 | K100: 30 | L100: 0.01765733311 | M100: 1.442015537e-07 | N100: -0.0001854019976 | O100: 0.1000582209 | P100: 2.978203517 | Q100: 0.6 | R100: 50 | S100: 50 | T100: 50 | U100: 50 | V100: 345 | W100: 292 | X100: 274 | Y100: 8.065354757 | Z100: 7.182488102 | AA100: 6.741054774 | AB100: 21.88197549 | AC100: 19.62414022 | AD100: 18.64668047 | AG100: =IF('Flow charts'!$A$205=$S$91,AB100, IF('Flow charts'!$A$205=$T$91,AC100, IF('Flow charts'!$A$205=$U$91,AD100,"SELECT BP"))) -> 21.88197549 | AH100: =IF('Flow charts'!$A$205=$S$91,Y100, IF('Flow charts'!$A$205=$T$91,Z100, IF('Flow charts'!$A$205=$U$91,AA100,"SELECT BP"))) -> 8.065354757 | AI100: 13.81662074
F101: =IF(OR(#REF!="", E101=""),"",E101^3*M101+E101^2*N101+E101*O101+P101+(K101-#REF!)*L101) -> 
A102: 6000 | B102: Open | C102: -50 | D102: 160 | E102: 160 | F102: =IF(OR(#REF!="", E102=""),"",E102^I102*J102) ->  | G102: 11834.52053 | H102: =IF(E102="---","---", E102^I102*J102) -> 6965.535804 | I102: 0.4925 | J102: 572.0387349 | Q102: 0.5 | R102: 25 | S102: =IF($Q102*S$91>$R102, $Q102*S$91, $R102) -> 25 | T102: =IF($Q102*T$91>$R102, $Q102*T$91, $R102) -> 25 | U102: =IF($Q102*U$91>$R102, $Q102*U$91, $R102) -> 37.5 | V102: 225 | W102: 204 | X102: 185 | Y102: =S102^$I102*$J102 -> 2791.970928 | Z102: 2791.970928 | AA102: 3409.069356 | AB102: 8239.015647 | AC102: 7850.879199 | AD102: 7481.824447 | AG102: =IF('Flow charts'!$A$238=$S$91,AB102, IF('Flow charts'!$A$238=$T$91,AC102, IF('Flow charts'!$A$238=$U$91,AD102,"SELECT BP"))) -> 7850.879199 | AH102: =IF('Flow charts'!$A$238=$S$91,Y102, IF('Flow charts'!$A$238=$T$91,Z102, IF('Flow charts'!$A$238=$U$91,AA102,"SELECT BP"))) -> 2791.970928 | AI102: =AG102-AH102 -> 5058.908271
B103: Ring A | C103: 50 | D103: 160 | E103: 110 | F103: =IF(OR(#REF!="", E103=""),"",E103^I103*J103) ->  | G103: 5240.356234 | H103: =IF(E103="---","---", E103^I103*J103) -> 3084.357232 | I103: 0.4951 | J103: 300.9339281 | Q103: 0.5 | R103: 25 | S103: =IF($Q103*S$91>$R103, $Q103*S$91, $R103) -> 25 | T103: 25 | U103: 37.5 | V103: 350 | W103: 269 | X103: 242 | Y103: 1481.123431 | Z103: 1481.123431 | AA103: 1810.39789 | AB103: 5470.653935 | AC103: 4802.213982 | AD103: 4557.200557 | AG103: =IF('Flow charts'!$A$238=$S$91,AB103, IF('Flow charts'!$A$238=$T$91,AC103, IF('Flow charts'!$A$238=$U$91,AD103,"SELECT BP"))) -> 4802.213982 | AH103: =IF('Flow charts'!$A$238=$S$91,Y103, IF('Flow charts'!$A$238=$T$91,Z103, IF('Flow charts'!$A$238=$U$91,AA103,"SELECT BP"))) -> 1481.123431 | AI103: =AG103-AH103 -> 3321.090551
B104: B8 | C104: 50 | D104: 160 | E104: 110 | F104: =IF(OR(#REF!="", E104=""),"",E104^I104*J104) ->  | G104: 2455.218364 | H104: =IF(E104="---","---", E104^I104*J104) -> 1445.086971 | I104: 0.534 | J104: 117.4330367 | Q104: 0.8 | R104: 40 | S104: 40 | T104: =IF($Q104*T$91>$R104, $Q104*T$91, $R104) -> 40 | U104: =IF($Q104*U$91>$R104, $Q104*U$91, $R104) -> 60 | V104: 477 | W104: 410 | X104: 363 | Y104: 841.9578043 | Z104: 841.9578043 | AA104: 1045.497646 | AB104: 3163.145038 | AC104: 2917.540349 | AD104: 2733.886178 | AG104: =IF('Flow charts'!$A$238=$S$91,AB104, IF('Flow charts'!$A$238=$T$91,AC104, IF('Flow charts'!$A$238=$U$91,AD104,"SELECT BP"))) -> 2917.540349 | AH104: =IF('Flow charts'!$A$238=$S$91,Y104, IF('Flow charts'!$A$238=$T$91,Z104, IF('Flow charts'!$A$238=$U$91,AA104,"SELECT BP"))) -> 841.9578043 | AI104: 2075.582545
B105: B4 | C105: -50 | D105: 160 | E105: 160 | F105: =IF(OR(#REF!="", E105=""),"",E105^3*M105+E105^2*N105+E105*O105+P105+(K105-#REF!)*L105) ->  | G105: 1379.15798 | H105: =IF(E105="---","---", E105^3*M105+E105^2*N105+E105*O105+P105+(K105-ABS(C105))*L105) -> 811.7417404 | K105: 50 | L105: 0.9240670992 | M105: 1.38315776e-05 | N105: -0.01446724159 | O105: 6.562642138 | P105: 75.42624125 | Q105: 0.8 | R105: 55 | S105: 55 | T105: 55 | U105: 60 | V105: 485 | W105: 425 | X105: 485 | Y105: =S105^3*$M105+S105^2*$N105+S105*$O105+$P105+($K105-ABS(Y$91))*$L105 -> 441.1127367 | Z105: 394.9093817 | AA105: 396.9886431 | AB105: 1479.417558 | AC105: 1313.193337 | AD105: =X105^3*$M105+X105^2*$N105+X105*$O105+$P105+($K105-ABS(X$91))*$L105 -> 1410.112525 | AG105: =IF('Flow charts'!$A$238=$S$91,AB105, IF('Flow charts'!$A$238=$T$91,AC105, IF('Flow charts'!$A$238=$U$91,AD105,"SELECT BP"))) -> 1313.193337 | AH105: =IF('Flow charts'!$A$238=$S$91,Y105, IF('Flow charts'!$A$238=$T$91,Z105, IF('Flow charts'!$A$238=$U$91,AA105,"SELECT BP"))) -> 394.9093817 | AI105: 918.2839548
B106: B2 | C106: -50 | D106: 160 | E106: 160 | F106: =IF(OR(#REF!="", E106=""),"",E106^3*M106+E106^2*N106+E106*O106+P106+(K106-#REF!)*L106) ->  | G106: 565.4903919 | H106: 332.8350787 | K106: 50 | L106: 1.118297763 | M106: 4.061186614e-06 | N106: -0.005102969268 | O106: 2.715697832 | P106: 12.32481851 | Q106: 1 | R106: 65 | S106: 65 | T106: 65 | U106: 75 | V106: 466 | W106: 430 | X106: 402 | Y106: 224.315324 | Z106: 168.4004358 | AA106: 161.0538228 | AB106: 636.5850468 | AC106: 559.4286327 | AD106: 515.2518659 | AG106: =IF('Flow charts'!$A$238=$S$91,AB106, IF('Flow charts'!$A$238=$T$91,AC106, IF('Flow charts'!$A$238=$U$91,AD106,"SELECT BP"))) -> 559.4286327 | AH106: =IF('Flow charts'!$A$238=$S$91,Y106, IF('Flow charts'!$A$238=$T$91,Z106, IF('Flow charts'!$A$238=$U$91,AA106,"SELECT BP"))) -> 168.4004358 | AI106: 391.0281969
B107: B1 | C107: -50 | D107: 160 | E107: 160 | F107: =IF(OR(#REF!="", E107=""),"",E107^3*M107+E107^2*N107+E107*O107+P107+(K107-#REF!)*L107) ->  | G107: 287.6599959 | H107: 169.3102814 | K107: 50 | L107: 0.5120626601 | M107: 2.207166638e-06 | N107: -0.002648599966 | O107: 1.386689227 | P107: 6.203609698 | Q107: 1 | R107: 70 | S107: 70 | T107: 70 | U107: 75 | V107: 475 | W107: 454 | X107: 415 | Y107: 116.6539069 | Z107: 91.05077389 | AA107: 83.43650881 | AB107: 329.4399451 | AC107: 296.3809789 | AD107: 270.4765919 | AG107: =IF('Flow charts'!$A$238=$S$91,AB107, IF('Flow charts'!$A$238=$T$91,AC107, IF('Flow charts'!$A$238=$U$91,AD107,"SELECT BP"))) -> 296.3809789 | AH107: =IF('Flow charts'!$A$238=$S$91,Y107, IF('Flow charts'!$A$238=$T$91,Z107, IF('Flow charts'!$A$238=$U$91,AA107,"SELECT BP"))) -> 91.05077389 | AI107: 205.330205
B108: B74 | C108: -50 | D108: 160 | E108: 160 | F108: =IF(OR(#REF!="", E108=""),"",E108^3*M108+E108^2*N108+E108*O108+P108+(K108-#REF!)*L108) ->  | G108: 143.3956779 | H108: 84.39950959 | K108: 30 | L108: 0.1648017757 | M108: 1.077097319e-06 | N108: -0.00117715554 | O108: 0.612120881 | P108: 15.47959536 | Q108: 0.8 | R108: 65 | S108: 65 | T108: 65 | U108: 65 | V108: 480 | W108: 454 | X108: 427 | Y108: 55.53382159 | Z108: 47.2937328 | AA108: 43.17368841 | AB108: 162.1433818 | AC108: 148.2470224 | AD108: 138.6663941 | AG108: =IF('Flow charts'!$A$238=$S$91,AB108, IF('Flow charts'!$A$238=$T$91,AC108, IF('Flow charts'!$A$238=$U$91,AD108,"SELECT BP"))) -> 148.2470224 | AH108: =IF('Flow charts'!$A$238=$S$91,Y108, IF('Flow charts'!$A$238=$T$91,Z108, IF('Flow charts'!$A$238=$U$91,AA108,"SELECT BP"))) -> 47.2937328 | AI108: 100.9532896
B109: B47 | C109: -50 | D109: 160 | E109: 160 | F109: =IF(OR(#REF!="", E109=""),"",E109^3*M109+E109^2*N109+E109*O109+P109+(K109-#REF!)*L109) ->  | G109: 66.54263904 | H109: 39.16551868 | K109: 30 | L109: 0.02942888851 | M109: 2.001164419e-07 | N109: -0.0002942888851 | O109: 0.2201280861 | P109: 11.24772119 | Q109: 1 | R109: 50 | S109: 50 | T109: 50 | U109: 75 | V109: 480 | W109: 462 | X109: 417 | Y109: 22.42628449 | Z109: 20.95484006 | AA109: 24.86207681 | AB109: 72.11918756 | AC109: 69.27783045 | AD109: 65.05401915 | AG109: =IF('Flow charts'!$A$238=$S$91,AB109, IF('Flow charts'!$A$238=$T$91,AC109, IF('Flow charts'!$A$238=$U$91,AD109,"SELECT BP"))) -> 69.27783045 | AH109: =IF('Flow charts'!$A$238=$S$91,Y109, IF('Flow charts'!$A$238=$T$91,Z109, IF('Flow charts'!$A$238=$U$91,AA109,"SELECT BP"))) -> 20.95484006 | AI109: 48.32299039
B110: B29 | C110: -50 | D110: 160 | E110: 160 | F110: =IF(OR(#REF!="", E110=""),"",E110^3*M110+E110^2*N110+E110*O110+P110+(K110-#REF!)*L110) ->  | G110: 22.41446432 | H110: 13.19265562 | K110: 30 | L110: 0.02354311081 | M110: 6.612082671e-08 | N110: -0.0001031776831 | O110: 0.07869284788 | P110: 3.443179956 | Q110: 0.6 | R110: 50 | S110: 50 | T110: 50 | U110: 50 | V110: 480 | W110: 457 | X110: 434 | Y110: 7.834436569 | Z110: 6.657281029 | AA110: 6.068703259 | AB110: 25.46233654 | AC110: 23.697229 | AD110: 22.50744669 | AG110: =IF('Flow charts'!$A$238=$S$91,AB110, IF('Flow charts'!$A$238=$T$91,AC110, IF('Flow charts'!$A$238=$U$91,AD110,"SELECT BP"))) -> 23.697229 | AH110: =IF('Flow charts'!$A$238=$S$91,Y110, IF('Flow charts'!$A$238=$T$91,Z110, IF('Flow charts'!$A$238=$U$91,AA110,"SELECT BP"))) -> 6.657281029 | AI110: 17.03994797
A112: 7000 | B112: Open | C112: -50 | D112: 160 | E112: =IF(OR(C112="",D112="",D112<0),"", IF(AND(C112<=0,D112>=R112, D112>=ABS(C112)*Q112),D112, IF(AND(C112>0, (ABS(D112)-C112)>=R112, (ABS(D112)-C112)>=ABS(C112)*Q112),(ABS(D112)-C112),"---"))) -> 160 | F112: =IF(OR(#REF!="", E112=""),"",E112^I112*J112) ->  | G112: =IF($E$12="m3/h",IF(H112="---","---",(H112*(1/0.58857777866))),IF($E$12="m3/s",IF(H112="---","---",FIXED((H112*0.0004719474432),5,FALSE)),IF($E$12="L/s",IF(H112="---","---",(H112*0.47194745)),"---"))) -> 11501.65713 | H112: =IF(E112="---","---", E112^I112*J112) -> 6769.619803 | I112: 0.493 | J112: 554.5403178 | Q112: 0 | R112: 10 | S112: =IF($Q112*S$91>$R112, $Q112*S$91, $R112) -> 10 | T112: =IF($Q112*T$91>$R112, $Q112*T$91, $R112) -> 10 | U112: =IF($Q112*U$91>$R112, $Q112*U$91, $R112) -> 10 | V112: 263 | W112: 239 | X112: 225 | Y112: =S112^$I112*$J112 -> 1725.572166 | Z112: =T112^$I112*$J112 -> 1725.572166 | AA112: =U112^$I112*$J112 -> 1725.572166 | AB112: =V112^$I112*$J112 -> 8649.107818 | AC112: =W112^$I112*$J112 -> 8250.557439 | AD112: =X112^$I112*$J112 -> 8008.646204 | AG112: =IF('Flow charts'!$A$238=$S$91,AB112, IF('Flow charts'!$A$238=$T$91,AC112, IF('Flow charts'!$A$238=$U$91,AD112,"SELECT BP"))) -> 8250.557439 | AH112: =IF('Flow charts'!$A$238=$S$91,Y112, IF('Flow charts'!$A$238=$T$91,Z112, IF('Flow charts'!$A$238=$U$91,AA112,"SELECT BP"))) -> 1725.572166 | AI112: =AG112-AH112 -> 6524.985272
B113: Ring A | C113: -50 | D113: 160 | E113: =IF(OR(C113="",D113="",D113<0),"", IF(AND(C113<=0,D113>=R113, D113>=ABS(C113)*Q113),D113, IF(AND(C113>0, (ABS(D113)-C113)>=R113, (ABS(D113)-C113)>=ABS(C113)*Q113),(ABS(D113)-C113),"---"))) -> 160 | F113: =IF(OR(#REF!="", E113=""),"",E113^I113*J113) ->  | G113: 6132.954103 | H113: 3609.720503 | I113: 0.507 | J113: 275.413196 | Q113: 0 | R113: 25 | S113: =IF($Q113*S$91>$R113, $Q113*S$91, $R113) -> 25 | T113: 25 | U113: 25 | V113: 420 | W113: 377 | X113: 359 | Y113: 1408.446417 | Z113: 1408.446417 | AA113: 1408.446417 | AB113: =V113^$I113*$J113 -> 5888.058758 | AC113: 5574.293217 | AD113: 5437.729883 | AG113: =IF('Flow charts'!$A$238=$S$91,AB113, IF('Flow charts'!$A$238=$T$91,AC113, IF('Flow charts'!$A$238=$U$91,AD113,"SELECT BP"))) -> 5574.293217 | AH113: =IF('Flow charts'!$A$238=$S$91,Y113, IF('Flow charts'!$A$238=$T$91,Z113, IF('Flow charts'!$A$238=$U$91,AA113,"SELECT BP"))) -> 1408.446417 | AI113: =AG113-AH113 -> 4165.846799
B114: B8 | C114: -50 | D114: 160 | E114: 160 | F114: =IF(OR(#REF!="", E114=""),"",E114^I114*J114) ->  | G114: 3031.168438 | H114: 1784.078386 | I114: 0.525 | J114: 124.2369957 | Q114: 0 | R114: 40 | S114: 40 | T114: =IF($Q114*T$91>$R114, $Q114*T$91, $R114) -> 40 | U114: =IF($Q114*U$91>$R114, $Q114*U$91, $R114) -> 40 | V114: 595 | W114: 547 | X114: 522 | Y114: 861.6530633 | Z114: 861.6530633 | AA114: 861.6530633 | AB114: =V114^$I114*$J114 -> 3555.268033 | AC114: 3401.686506 | AD114: 3319.158218 | AG114: =IF('Flow charts'!$A$238=$S$91,AB114, IF('Flow charts'!$A$238=$T$91,AC114, IF('Flow charts'!$A$238=$U$91,AD114,"SELECT BP"))) -> 3401.686506 | AH114: =IF('Flow charts'!$A$238=$S$91,Y114, IF('Flow charts'!$A$238=$T$91,Z114, IF('Flow charts'!$A$238=$U$91,AA114,"SELECT BP"))) -> 861.6530633 | AI114: 2540.033442
B115: B4 | C115: -50 | D115: 160 | E115: 160 | F115: =IF(OR(#REF!="", E115=""),"",E115^3*M115+E115^2*N115+E115*O115+P115+(K115-#REF!)*L115) ->  | G115: 1361.139417 | H115: 801.1364143 | I115: 0.542 | J115: 51.17683712 | Q115: 0 | R115: 40 | S115: =IF($Q115*S$91>$R115, $Q115*S$91, $R115) -> 40 | T115: =IF($Q115*T$91>$R115, $Q115*T$91, $R115) -> 40 | U115: =IF($Q115*U$91>$R115, $Q115*U$91, $R115) -> 40 | V115: 730 | W115: 680 | X115: 651 | Y115: 377.9113687 | Z115: 377.9113687 | AA115: 377.9113687 | AB115: 1823.872318 | AC115: 1755.06527 | AD115: 1714.092827 | AG115: =IF('Flow charts'!$A$238=$S$91,AB115, IF('Flow charts'!$A$238=$T$91,AC115, IF('Flow charts'!$A$238=$U$91,AD115,"SELECT BP"))) -> 1755.06527 | AH115: =IF('Flow charts'!$A$238=$S$91,Y115, IF('Flow charts'!$A$238=$T$91,Z115, IF('Flow charts'!$A$238=$U$91,AA115,"SELECT BP"))) -> 377.9113687 | AI115: =AG115-AH115 -> 1377.153902
B116: B2 | C116: -50 | D116: 160 | E116: 160 | F116: =IF(OR(#REF!="", E116=""),"",E116^3*M116+E116^2*N116+E116*O116+P116+(K116-#REF!)*L116) ->  | G116: 600.0871865 | H116: 353.1979832 | I116: 0.581 | J116: 18.51077087 | Q116: 0 | R116: 50 | S116: =IF($Q116*S$91>$R116, $Q116*S$91, $R116) -> 50 | T116: 50 | U116: 50 | V116: 664 | W116: 624 | X116: 595 | Y116: 179.6908974 | Z116: 179.6908974 | AA116: 179.6908974 | AB116: 807.4286571 | AC116: 778.8014506 | AD116: =X116^$I116*$J116 -> 757.5631867 | AG116: =IF('Flow charts'!$A$238=$S$91,AB116, IF('Flow charts'!$A$238=$T$91,AC116, IF('Flow charts'!$A$238=$U$91,AD116,"SELECT BP"))) -> 778.8014506 | AH116: =IF('Flow charts'!$A$238=$S$91,Y116, IF('Flow charts'!$A$238=$T$91,Z116, IF('Flow charts'!$A$238=$U$91,AA116,"SELECT BP"))) -> 179.6908974 | AI116: =AG116-AH116 -> 599.1105531
B117: B1 | C117: -50 | D117: 160 | E117: 160 | F117: =IF(OR(#REF!="", E117=""),"",E117^3*M117+E117^2*N117+E117*O117+P117+(K117-#REF!)*L117) ->  | G117: 339.8633982 | H117: 200.036044 | I117: 0.522 | J117: 14.14352382 | Q117: 0 | R117: 60 | S117: 60 | T117: =IF($Q117*T$91>$R117, $Q117*T$91, $R117) -> 60 | U117: =IF($Q117*U$91>$R117, $Q117*U$91, $R117) -> 60 | V117: 669 | W117: 637 | X117: 597 | Y117: 119.8816133 | Z117: 119.8816133 | AA117: 119.8816133 | AB117: 422.1142948 | AC117: 411.4512725 | AD117: =X117^$I117*$J117 -> 397.7555306 | AG117: =IF('Flow charts'!$A$238=$S$91,AB117, IF('Flow charts'!$A$238=$T$91,AC117, IF('Flow charts'!$A$238=$U$91,AD117,"SELECT BP"))) -> 411.4512725 | AH117: =IF('Flow charts'!$A$238=$S$91,Y117, IF('Flow charts'!$A$238=$T$91,Z117, IF('Flow charts'!$A$238=$U$91,AA117,"SELECT BP"))) -> 119.8816133 | AI117: 291.5696592
B118: B74 | C118: -50 | D118: 160 | E118: 160 | F118: =IF(OR(#REF!="", E118=""),"",E118^3*M118+E118^2*N118+E118*O118+P118+(K118-#REF!)*L118) ->  | G118: 156.2885894 | H118: 91.9879908 | I118: 0.515 | J118: 6.739215469 | Q118: 0 | R118: 50 | S118: =IF($Q118*S$91>$R118, $Q118*S$91, $R118) -> 50 | T118: =IF($Q118*T$91>$R118, $Q118*T$91, $R118) -> 50 | U118: =IF($Q118*U$91>$R118, $Q118*U$91, $R118) -> 50 | V118: 668 | W118: 625 | X118: 596 | Y118: 50.5334436 | Z118: 50.5334436 | AA118: 50.5334436 | AB118: 192.0300611 | AC118: 185.5613618 | AD118: 181.076114 | AG118: =IF('Flow charts'!$A$238=$S$91,AB118, IF('Flow charts'!$A$238=$T$91,AC118, IF('Flow charts'!$A$238=$U$91,AD118,"SELECT BP"))) -> 185.5613618 | AH118: =IF('Flow charts'!$A$238=$S$91,Y118, IF('Flow charts'!$A$238=$T$91,Z118, IF('Flow charts'!$A$238=$U$91,AA118,"SELECT BP"))) -> 50.5334436 | AI118: =AG118-AH118 -> 135.0279182
B119: B47 | C119: -50 | D119: 160 | E119: 160 | F119: =IF(OR(#REF!="", E119=""),"",E119^3*M119+E119^2*N119+E119*O119+P119+(K119-#REF!)*L119) ->  | G119: 71.97696572 | H119: 42.3640426 | I119: 0.514 | J119: 3.119462182 | Q119: 0 | R119: 50 | S119: =IF($Q119*S$91>$R119, $Q119*S$91, $R119) -> 50 | T119: 50 | U119: 50 | V119: 630 | W119: 596 | X119: 574 | Y119: 23.29969882 | Z119: 23.29969882 | AA119: 23.29969882 | AB119: 85.69209634 | AC119: 83.28298881 | AD119: 81.688409 | AG119: =IF('Flow charts'!$A$238=$S$91,AB119, IF('Flow charts'!$A$238=$T$91,AC119, IF('Flow charts'!$A$238=$U$91,AD119,"SELECT BP"))) -> 83.28298881 | AH119: =IF('Flow charts'!$A$238=$S$91,Y119, IF('Flow charts'!$A$238=$T$91,Z119, IF('Flow charts'!$A$238=$U$91,AA119,"SELECT BP"))) -> 23.29969882 | AI119: =AG119-AH119 -> 59.98328999
B120: B29 | C120: -50 | D120: 160 | E120: 160 | F120: =IF(OR(#REF!="", E120=""),"",E120^3*M120+E120^2*N120+E120*O120+P120+(K120-#REF!)*L120) ->  | G120: 25.53732179 | H120: 15.03070013 | I120: 0.513 | J120: 1.112411986 | Q120: 0 | R120: 50 | S120: 50 | T120: =IF($Q120*T$91>$R120, $Q120*T$91, $R120) -> 50 | U120: =IF($Q120*U$91>$R120, $Q120*U$91, $R120) -> 50 | V120: 611 | W120: 579 | X120: 530 | Y120: 8.276319955 | Z120: 8.276319955 | AA120: 8.276319955 | AB120: 29.88854683 | AC120: 29.07500263 | AD120: 27.7855617 | AG120: =IF('Flow charts'!$A$238=$S$91,AB120, IF('Flow charts'!$A$238=$T$91,AC120, IF('Flow charts'!$A$238=$U$91,AD120,"SELECT BP"))) -> 29.07500263 | AH120: =IF('Flow charts'!$A$238=$S$91,Y120, IF('Flow charts'!$A$238=$T$91,Z120, IF('Flow charts'!$A$238=$U$91,AA120,"SELECT BP"))) -> 8.276319955 | AI120: 20.79868268
C122: Enter Pressures appearing on gauge | E122: Fan Pressure used in flow equation | H122: Flow = PN*K
C123: PrA, Pa | D123: PrB, Pa | E123: P, Pa | G123: =IF($E$12="m3/h","m3/h displayed on DM32",IF($E$12="m3/s","m3/s displayed on DM32",IF($E$12="L/s","L/s displayed on DM32","Metric displayed on DM32"))) -> m3/h displayed on DM32 | H123: CFM displayed on DM32 | I123: N | J123: K
A124: MN 3 (110V) | B124: Open | C124: 30.9 | D124: 114.9 | E124: =IF(OR(C124="",D124="",D124<0),"", D124) -> 114.9 | G124: =IF($E$12="m3/h",IF(H124="---","---",(H124*(1/0.58857777866))),IF($E$12="m3/s",IF(H124="---","---",FIXED((H124*0.0004719474432),5,FALSE)),IF($E$12="L/s",IF(H124="---","---",(H124*0.47194745)),"---"))) -> 8714.909602 | H124: =IF(E124="---","---", E124^I124*J124) -> 5129.402135 | I124: 0.4879 | J124: 506.8
B125: A | C125: 29.7 | D125: 254.3 | E125: =IF(OR(C125="",D125="",D125<0),"", D125) -> 254.3 | G125: 4808.671841 | H125: =IF(E125="---","---", E125^I125*J125) -> 2830.277391 | I125: 0.4876 | J125: 190.1
B126: B | C126: 30 | D126: 371.1 | E126: =IF(OR(C126="",D126="",D126<0),"", D126) -> 371.1 | G126: 1933.538844 | H126: =IF(E126="---","---", E126^I126*J126) -> 1138.037998 | I126: 0.4955 | J126: 60.67
B127: C | C127: 27.8 | D127: 397.5 | E127: 397.5 | G127: 783.3944262 | H127: 461.0885512 | I127: 0.5132 | J127: 21.37
B128: D | C128: 29.3 | D128: 245 | E128: =IF(OR(C128="",D128="",D128<0),"", D128) -> 245 | G128: 185.8739558 | H128: 109.40128 | I128: 0.4942 | J128: 7.216
B129: E | C129: 31 | D129: 265.3 | E129: =IF(OR(C129="",D129="",D129<0),"", D129) -> 265.3 | G129: 87.55972713 | H129: 51.53570969 | I129: 0.5267 | J129: 2.726
A131: MN 3 (230V) | B131: Open | C131: 30.9 | D131: 114.9 | E131: =IF(OR(C131="",D131="",D131<0),"", D131) -> 114.9 | G131: 8739.267492 | H131: =IF(E131="---","---", E131^I131*J131) -> 5143.738648 | I131: 0.4918 | J131: 498.9
B132: A | C132: 29.7 | D132: 254.3 | E132: =IF(OR(C132="",D132="",D132<0),"", D132) -> 254.3 | G132: 4843.419554 | H132: =IF(E132="---","---", E132^I132*J132) -> 2850.729122 | I132: 0.4889 | J132: 190.1
B133: B | C133: 30 | D133: 371.1 | E133: =IF(OR(C133="",D133="",D133<0),"", D133) -> 371.1 | G133: 1926.757366 | H133: =IF(E133="---","---", E133^I133*J133) -> 1134.046571 | I133: 0.4958 | J133: 60.35
B134: C | C134: 27.8 | D134: 397.5 | E134: 397.5 | G134: 775.51491 | H134: 456.4508431 | I134: 0.5187 | J134: 20.47
B135: D | C135: 29.3 | D135: 245 | E135: =IF(OR(C135="",D135="",D135<0),"", D135) -> 245 | G135: 184.9234908 | H135: 108.8418574 | I135: 0.5022 | J135: 6.87
B136: E | C136: 31 | D136: 265.3 | E136: =IF(OR(C136="",D136="",D136<0),"", D136) -> 265.3 | G136: 83.79591395 | H136: 49.32041289 | I136: 0.5139 | J136: 2.802
A138: MN 4 (230V) | B138: Open | C138: 30.9 | D138: 114.9 | E138: =IF(OR(C138="",D138="",D138<0),"", D138) -> 114.9 | G138: 7433.73239 | H138: =IF(E138="---","---", E138^I138*J138) -> 4375.329698 | I138: 0.4848 | J138: 438.7
B139: A | C139: 29.7 | D139: 254.3 | E139: =IF(OR(C139="",D139="",D139<0),"", D139) -> 254.3 | G139: 4242.381306 | H139: =IF(E139="---","---", E139^I139*J139) -> 2496.971365 | I139: 0.4952 | J139: 160.8
B140: B | C140: 30 | D140: 371.1 | E140: =IF(OR(C140="",D140="",D140<0),"", D140) -> 371.1 | G140: 1544.129441 | H140: =IF(E140="---","---", E140^I140*J140) -> 908.8402764 | I140: 0.4968 | J140: 48.08
B141: C | C141: 27.8 | D141: 397.5 | E141: 397.5 | G141: 422.7198378 | H141: 248.8035031 | I141: 0.5157 | J141: 11.36
B142: D | C142: 29.3 | D142: 245 | E142: =IF(OR(C142="",D142="",D142<0),"", D142) -> 245 | G142: 196.1204322 | H142: 115.4321284 | I142: 0.5032 | J142: 7.246
B143: E | C143: 31 | D143: 265.3 | E143: =IF(OR(C143="",D143="",D143<0),"", D143) -> 265.3 | G143: 85.06813913 | H143: 50.06921636 | I143: 0.5166 | J143: 2.802
A145: MN DB | B145: Open | C145: 30.9 | D145: 114.9 | E145: =IF(OR(C145="",D145="",D145<0),"", D145) -> 114.9 | G145: 2009.919765 | H145: =J145*D145^I145 -> 1182.994111 | I145: 0.5032 | J145: 108.7
B146: Ring 1 | C146: 29.7 | D146: 254.3 | E146: =IF(OR(C146="",D146="",D146<0),"", D146) -> 254.3 | G146: 1120.636227 | H146: 659.5815812 | I146: 0.5038 | J146: 40.5
B147: Ring 2 | C147: 30 | D147: 371.1 | E147: =IF(OR(C147="",D147="",D147<0),"", D147) -> 371.1 | G147: 519.0693611 | H147: 305.5126916 | I147: 0.5064 | J147: 15.27
B148: Ring 3 | C148: 27.8 | D148: 397.5 | E148: 397.5 | G148: 215.1137999 | H148: 126.6112025 | I148: 0.514 | J148: 5.84

Sheet Round B (hidden)
A1: Published Flow Equation Parameters: | C1: "Round B" released: 2015-06-23, DM32 v2.3.62
C2: "Round A" released: 2014
C4: For sample flow calculations: enter pressure data into Columns C & D
C5: identifies the same Range but depending on PrA sign (or if 'set to 0 Pa' is implemented), different flow equation parameters are used
C8: Enter Pressures appearing on gauge | E8: Fan Pressure used in flow equations | G8: Condition that must be true, or else “---“ is displayed for flow result: PrB>=MF, PrB>=|PrA|*K2
A9: Device | B9: Range | C9: PrA, Pa | D9: PrB, Pa | E9: P, Pa | F9: CFM calculation | G9: CFM displayed on DM32 | H9: N | I9: K | J9: K1 | K9: K2 | L9: K3 | M9: MF | N9: Flow = (P-|PrA|)*K1)N*(K+P*K3) Since K1 and K3 are 0 for 300 & 340 & 350 & 450 systems, this equation can be simplified to: Flow = PN*K , i.e. no backpressure compensation because PrA becomes irrelevant
A10: 240 | B10: Open | C10: 25 | D10: 300 | E10: =IF(OR(C10="",D10="", D10<0),"---", IF(AND(D10>=M10,D10>=ABS(C10)*K10),D10,"---")) -> 300 | F10: =IF(OR(#REF!="", E10=""),"",(E10-#REF!*J10)^H10*(I10+E10*L10)) ->  | G10: =IF(E10="---","---", (E10-ABS(C10)*J10)^H10*(I10+E10*L10)) -> 569.2190822 | H10: 0.5115 | I10: 30.7774 | J10: 0 | K10: 0.2 | L10: 0 | M10: 10
B11: Mid | C11: 25 | D11: 300 | E11: =IF(OR(C11="",D11="", D11<0),"---", IF(AND(D11>=M11,D11>=ABS(C11)*K11),D11,"---")) -> 300 | F11: =IF(OR(#REF!="", E11=""),"",(E11-#REF!*J11)^H11*(I11+E11*L11)) ->  | G11: =IF(E11="---","---", (E11-ABS(C11)*J11)^H11*(I11+E11*L11)) -> 129.8035405 | H11: 0.5415 | I11: 5.9146 | J11: 0 | K11: 0.5 | L11: 0 | M11: 25
B12: Low | C12: 25 | D12: 300 | E12: =IF(OR(C12="",D12="", D12<0),"---", IF(AND(D12>=M12,D12>=ABS(C12)*K12),D12,"---")) -> 300 | F12: =IF(OR(#REF!="", E12=""),"",(E12-#REF!*J12)^H12*(I12+E12*L12)) ->  | G12: =IF(E12="---","---", (E12-ABS(C12)*J12)^H12*(I12+E12*L12)) -> 31.15126673 | H12: 0.6125 | I12: 1.0056 | J12: -0.024 | K12: 0.5 | L12: -0.0002 | M12: 25
A14: 300 | B14: Open | C14: 25 | D14: 9 | E14: =IF(OR(C14="",D14="", D14<0),"---", IF(AND(D14>=M14,D14>=ABS(C14)*K14),D14,"---")) -> --- | F14: =IF(OR(#REF!="", E14=""),"",(E14-#REF!*J14)^H14*(I14+E14*L14)) ->  | G14: =IF(E14="---","---", (E14-ABS(C14)*J14)^H14*(I14+E14*L14)) -> --- | H14: 0.501 | I14: 28.91 | J14: 0 | K14: 0.4 | L14: 0 | M14: 20 | N14: PrB cannot be less than MF and PrA*K2, or "---" is displayed
B15: 102 | C15: 25 | D15: 100 | E15: =IF(OR(C15="",D15="", D15<0),"---", IF(AND(D15>=M15,D15>=ABS(C15)*K15),D15,"---")) -> 100 | F15: =IF(OR(#REF!="", E15=""),"",(E15-#REF!*J15)^H15*(I15+E15*L15)) ->  | G15: =IF(E15="---","---", (E15-ABS(C15)*J15)^H15*(I15+E15*L15)) -> 161.9510536 | H15: 0.59 | I15: 10.7 | J15: 0 | K15: 0.4 | L15: 0 | M15: 100
B16: 74 | C16: 25 | D16: -10 | E16: --- | F16: =IF(OR(#REF!="", E16=""),"",(E16-#REF!*J16)^H16*(I16+E16*L16)) ->  | G16: --- | H16: 0.5045 | I16: 7.077319209 | J16: 0 | K16: 0.25 | L16: 0 | M16: 15 | N16: PrB cannot be negative, so "---" is displayed
B17: 47 | C17: 25 | D17: 100 | E17: 100 | F17: =IF(OR(#REF!="", E17=""),"",(E17-#REF!*J17)^H17*(I17+E17*L17)) ->  | G17: 32.40935942 | H17: 0.5 | I17: 3.240935942 | J17: 0 | K17: 0.1 | L17: 0 | M17: 10
B18: 29 | C18: 25 | D18: 150 | E18: 150 | F18: =IF(OR(#REF!="", E18=""),"",(E18-#REF!*J18)^H18*(I18+E18*L18)) ->  | G18: 14.72434445 | H18: 0.502 | I18: 1.190249908 | J18: 0 | K18: 0.2 | L18: 0 | M18: 20
B19: 18 | C19: 25 | D19: 200 | E19: 200 | F19: =IF(OR(#REF!="", E19=""),"",(E19-#REF!*J19)^H19*(I19+E19*L19)) ->  | G19: 6.428803743 | H19: 0.499 | I19: 0.457 | J19: 0 | K19: 0.25 | L19: 0 | M19: 25
B20: 11 | C20: 25 | D20: 250 | E20: 250 | F20: =IF(OR(#REF!="", E20=""),"",(E20-#REF!*J20)^H20*(I20+E20*L20)) ->  | G20: 2.944927036 | H20: 0.48 | I20: 0.208 | J20: 0 | K20: 0.25 | L20: 0 | M20: 25
B21: 7 | C21: 25 | D21: 250 | E21: 250 | F21: =IF(OR(#REF!="", E21=""),"",(E21-#REF!*J21)^H21*(I21+E21*L21)) ->  | G21: 1.13525768 | H21: 0.5 | I21: 0.0718 | J21: 0 | K21: 0.11 | L21: 0 | M21: 25
A23: 340 | B23: Open | C23: 25 | D23: 300 | E23: =IF(OR(C23="",D23="", D23<0),"---", IF(AND(C23>0, D23>=M23,D23>=ABS(C23)*K23),D23,"---")) -> 300 | F23: =IF(OR(#REF!="", E23=""),"",(E23-#REF!*J23)^H23*(I23+E23*L23)) ->  | G23: =IF(E23="---","---", (E23-ABS(C23)*J23)^H23*(I23+E23*L23)) -> 503.6001378 | H23: 0.501 | I23: 28.91 | J23: 0 | K23: 0.4 | L23: 0 | M23: 20 | N23: use when PrA is positive or when "Set Pressure" value of "0" Pa is entered
B24: Open | C24: -25 | D24: 300 | E24: =IF(OR(C24="",D24="", D24<0),"---", IF(AND(C24<0, D24>=M24,D24>=ABS(C24)*K24),D24,"---")) -> 300 | F24: =IF(OR(#REF!="", E24=""),"",(E24-#REF!*J24)^H24*(I24+E24*L24)) ->  | G24: 518.708142 | H24: 0.501 | I24: 29.7773 | J24: 0 | K24: 0.4 | L24: 0 | M24: 20 | N24: use when PrA is negative
B25: 102 | C25: 25 | D25: 300 | E25: =IF(OR(C25="",D25="", D25<0),"---", IF(AND(D25>=M25,D25>=ABS(C25)*K25),D25,"---")) -> 300 | F25: =IF(OR(#REF!="", E25=""),"",(E25-#REF!*J25)^H25*(I25+E25*L25)) ->  | G25: 309.6601487 | H25: 0.59 | I25: 10.7 | J25: 0 | K25: 0.4 | L25: 0 | M25: 100
B26: 74 | C26: 25 | D26: 300 | E26: 300 | F26: =IF(OR(#REF!="", E26=""),"",(E26-#REF!*J26)^H26*(I26+E26*L26)) ->  | G26: 125.7698251 | H26: 0.5045 | I26: 7.077319209 | J26: 0 | K26: 0.25 | L26: 0 | M26: 15
B27: 47 | C27: 25 | D27: 15 | E27: 15 | F27: =IF(OR(#REF!="", E27=""),"",(E27-#REF!*J27)^H27*(I27+E27*L27)) ->  | G27: 12.55209093 | H27: 0.5 | I27: 3.240935942 | J27: 0 | K27: 0.1 | L27: 0 | M27: 10
B28: 29 | C28: 25 | D28: 25 | E28: 25 | F28: =IF(OR(#REF!="", E28=""),"",(E28-#REF!*J28)^H28*(I28+E28*L28)) ->  | G28: 5.989685794 | H28: 0.502 | I28: 1.190249908 | J28: 0 | K28: 0.2 | L28: 0 | M28: 20
B29: 18 | C29: 25 | D29: 35 | E29: 35 | F29: =IF(OR(#REF!="", E29=""),"",(E29-#REF!*J29)^H29*(I29+E29*L29)) ->  | G29: 2.694053117 | H29: 0.499 | I29: 0.457 | J29: 0 | K29: 0.25 | L29: 0 | M29: 25
B30: 11 | C30: 25 | D30: 300 | E30: 300 | F30: =IF(OR(#REF!="", E30=""),"",(E30-#REF!*J30)^H30*(I30+E30*L30)) ->  | G30: 3.214263948 | H30: 0.48 | I30: 0.208 | J30: 0 | K30: 0.25 | L30: 0 | M30: 25
B31: 7 | C31: 25 | D31: 250 | E31: 250 | F31: =IF(OR(#REF!="", E31=""),"",(E31-#REF!*J31)^H31*(I31+E31*L31)) ->  | G31: 1.13525768 | H31: 0.5 | I31: 0.0718 | J31: 0 | K31: 0.11 | L31: 0 | M31: 25
A33: 350 | B33: 102 | C33: 25 | D33: 300 | E33: =IF(OR(C33="",D33="", D33<0),"---", IF(AND(D33>=M33,D33>=ABS(C33)*K33),D33,"---")) -> 300 | F33: =IF(OR(#REF!="", E33=""),"",(E33-#REF!*J33)^H33*(I33+E33*L33)) ->  | G33: =IF(E33="---","---", (E33-ABS(C33)*J33)^H33*(I33+E33*L33)) -> 309.6601487 | H33: 0.59 | I33: 10.7 | J33: 0 | K33: 0.4 | L33: 0 | M33: 100
B34: 74 | C34: 25 | D34: 300 | E34: 300 | F34: =IF(OR(#REF!="", E34=""),"",(E34-#REF!*J34)^H34*(I34+E34*L34)) ->  | G34: 125.7698251 | H34: 0.5045 | I34: 7.077319209 | J34: 0 | K34: 0.25 | L34: 0 | M34: 15
B35: 47 | C35: 25 | D35: 300 | E35: 300 | F35: =IF(OR(#REF!="", E35=""),"",(E35-#REF!*J35)^H35*(I35+E35*L35)) ->  | G35: 56.13465716 | H35: 0.5 | I35: 3.240935942 | J35: 0 | K35: 0.1 | L35: 0 | M35: 10
B36: 29 | C36: 25 | D36: 300 | E36: 300 | F36: =IF(OR(#REF!="", E36=""),"",(E36-#REF!*J36)^H36*(I36+E36*L36)) ->  | G36: 20.85225496 | H36: 0.502 | I36: 1.190249908 | J36: 0 | K36: 0.2 | L36: 0 | M36: 20
B37: 18 | C37: 25 | D37: 300 | E37: 300 | F37: =IF(OR(#REF!="", E37=""),"",(E37-#REF!*J37)^H37*(I37+E37*L37)) ->  | G37: 7.870452572 | H37: 0.499 | I37: 0.457 | J37: 0 | K37: 0.25 | L37: 0 | M37: 25
B38: 11 | C38: 25 | D38: 300 | E38: 300 | F38: =IF(OR(#REF!="", E38=""),"",(E38-#REF!*J38)^H38*(I38+E38*L38)) ->  | G38: 3.214263948 | H38: 0.48 | I38: 0.208 | J38: 0 | K38: 0.25 | L38: 0 | M38: 25
B39: 7 | C39: 25 | D39: 250 | E39: 250 | F39: =IF(OR(#REF!="", E39=""),"",(E39-#REF!*J39)^H39*(I39+E39*L39)) ->  | G39: 1.13525768 | H39: 0.5 | I39: 0.0718 | J39: 0 | K39: 0.11 | L39: 0 | M39: 25
B40: 3 | C40: 25 | D40: 250 | E40: 250 | F40: =IF(OR(#REF!="", E40=""),"",(E40-#REF!*J40)^H40*(I40+E40*L40)) ->  | G40: 0.3143798159 | H40: 0.485 | I40: 0.0216 | J40: 0 | K40: 0.3 | L40: 0 | M40: 25
B41: 2 | C41: 25 | D41: 250 | E41: 250 | F41: =IF(OR(#REF!="", E41=""),"",(E41-#REF!*J41)^H41*(I41+E41*L41)) ->  | G41: 0.1212890407 | H41: 0.53 | I41: 0.0065 | J41: 0 | K41: 0.3 | L41: 0 | M41: 25
B42: 1 | C42: 10 | D42: 10 | E42: --- | F42: =IF(OR(#REF!="", E42=""),"",(E42-#REF!*J42)^H42*(I42+E42*L42)) ->  | G42: --- | H42: 0.5928 | I42: 0.002043638611 | J42: 0 | K42: 0.3 | L42: 0 | M42: 40
A44: 450 | B44: 74 | C44: 251.5 | D44: 1735 | E44: =IF(OR(C44="",D44="", D44<0),"---", IF(AND(C44>0, D44>=M44,D44>=ABS(C44)*K44),D44,"---")) -> 1735 | F44: =IF(OR(#REF!="", E44=""),"",(E44-#REF!*J44)^H44*(I44+E44*L44)) ->  | G44: =IF(E44="---","---", (E44-ABS(C44)*J44)^H44*(I44+E44*L44)) -> 304.933146 | H44: 0.5045 | I44: 7.0791 | J44: 0 | K44: 0.15 | L44: 0 | M44: 250 | N44: use when PrA is positive or when "Set Pressure" value of "0" Pa is entered
B45: 74 | C45: -252.5 | D45: 1845 | E45: =IF(OR(C45="",D45="", D45<0),"---", IF(AND(C45<0, D45>=M45,D45>=ABS(C45)*K45),D45,"---")) -> 1845 | F45: =IF(OR(#REF!="", E45=""),"",(E45-#REF!*J45)^H45*(I45+E45*L45)) ->  | G45: 309.8238413 | H45: 0.5045 | I45: 6.973 | J45: 0 | K45: 0.15 | L45: 0 | M45: 250 | N45: use when PrA is negative
B46: 47 | C46: 250 | D46: 300 | E46: =IF(OR(C46="",D46="", D46<0),"---", IF(AND(D46>=M46,D46>=ABS(C46)*K46),D46,"---")) -> 300 | F46: =IF(OR(#REF!="", E46=""),"",(E46-#REF!*J46)^H46*(I46+E46*L46)) ->  | G46: 54.19965351 | H46: 0.488 | I46: 3.350899 | J46: 0 | K46: 0.12 | L46: 0 | M46: 250
B47: 29 | C47: 250 | D47: 300 | E47: 300 | F47: =IF(OR(#REF!="", E47=""),"",(E47-#REF!*J47)^H47*(I47+E47*L47)) ->  | G47: 18.83528488 | H47: 0.4989 | I47: 1.0943 | J47: 0 | K47: 0.15 | L47: 0 | M47: 250
B48: 18 | C48: 250 | D48: 300 | E48: 300 | F48: =IF(OR(#REF!="", E48=""),"",(E48-#REF!*J48)^H48*(I48+E48*L48)) ->  | G48: 7.431942435 | H48: 0.4993 | I48: 0.4308 | J48: 0 | K48: 0.15 | L48: 0 | M48: 250
B49: 11 | C49: 250 | D49: 300 | E49: 300 | F49: =IF(OR(#REF!="", E49=""),"",(E49-#REF!*J49)^H49*(I49+E49*L49)) ->  | G49: 2.948343008 | H49: 0.5022 | I49: 0.1681 | J49: 0 | K49: 0.14 | L49: 0 | M49: 250
B50: 7 | C50: -251 | D50: 890 | E50: 890 | F50: =IF(OR(#REF!="", E50=""),"",(E50-#REF!*J50)^H50*(I50+E50*L50)) ->  | G50: 1.996048546 | H50: 0.5009 | I50: 0.0665 | J50: 0 | K50: 0.08 | L50: 0 | M50: 250
B51: 3 | C51: 250 | D51: 250 | E51: 250 | F51: =IF(OR(#REF!="", E51=""),"",(E51-#REF!*J51)^H51*(I51+E51*L51)) ->  | G51: 0.293993583 | H51: 0.554 | I51: 0.0138 | J51: 0 | K51: 0.1 | L51: 0 | M51: 250
B52: 2 | C52: 250 | D52: 250 | E52: --- | F52: =IF(OR(#REF!="", E52=""),"",(E52-#REF!*J52)^H52*(I52+E52*L52)) ->  | G52: --- | H52: 0.53 | I52: 0.0065 | J52: 0 | K52: 0.12 | L52: 0 | M52: 350
B53: 1 | C53: 100 | D53: 100 | E53: --- | F53: =IF(OR(#REF!="", E53=""),"",(E53-#REF!*J53)^H53*(I53+E53*L53)) ->  | G53: --- | H53: 0.56 | I53: 0.00204 | J53: 0 | K53: 0.12 | L53: 0 | M53: 350
A55: 3000SR | B55: Open | C55: 25 | D55: 300 | E55: =IF(OR(C55="",D55="", D55<0),"---", IF(AND(D55>=M55,D55>=ABS(C55)*K55),D55,"---")) -> 300 | F55: =IF(OR(#REF!="", E55=""),"",(E55-#REF!*J55)^H55*(I55+E55*L55)) ->  | G55: =IF(E55="---","---", (E55-ABS(C55)*J55)^H55*(I55+E55*L55)) -> 9522.166013 | H55: 0.5214 | I55: 519.6183 | J55: -0.07 | K55: 0.8 | L55: -0.115 | M55: 8.6
B56: A | C56: 25 | D56: 300 | E56: 300 | F56: =IF(OR(#REF!="", E56=""),"",(E56-#REF!*J56)^H56*(I56+E56*L56)) ->  | G56: 4683.733866 | H56: 0.503 | I56: 264.9959 | J56: -0.075 | K56: 1 | L56: 0 | M56: 12
B57: B | C57: 25 | D57: 300 | E57: 300 | F57: =IF(OR(#REF!="", E57=""),"",(E57-#REF!*J57)^H57*(I57+E57*L57)) ->  | G57: 3029.052021 | H57: 0.5 | I57: 174.8824 | J57: 0 | K57: 0.3 | L57: 0 | M57: 10
B58: C8 | C58: 25 | D58: 300 | E58: 300 | F58: =IF(OR(#REF!="", E58=""),"",(E58-#REF!*J58)^H58*(I58+E58*L58)) ->  | G58: 1444.000154 | H58: 0.5 | I58: 78.5 | J58: -0.02 | K58: 0.5 | L58: 0.016 | M58: 10
B59: C6 | C59: 25 | D59: 300 | E59: 300 | F59: =IF(OR(#REF!="", E59=""),"",(E59-#REF!*J59)^H59*(I59+E59*L59)) ->  | G59: 1111.314778 | H59: 0.505 | I59: 61.3 | J59: 0.054 | K59: 0.5 | L59: 0.004 | M59: 10
B60: C4 | C60: 25 | D60: 300 | E60: 300 | F60: =IF(OR(#REF!="", E60=""),"",(E60-#REF!*J60)^H60*(I60+E60*L60)) ->  | G60: 764.7179393 | H60: 0.5077 | I60: 42 | J60: 0.009 | K60: 0.5 | L60: 0.0009 | M60: 10
B61: C2 | C61: 25 | D61: 300 | E61: 300 | F61: =IF(OR(#REF!="", E61=""),"",(E61-#REF!*J61)^H61*(I61+E61*L61)) ->  | G61: 419.2596841 | H61: 0.52 | I61: 22 | J61: 0.11 | K61: 0.5 | L61: -0.001 | M61: 10
B62: C1 | C62: 25 | D62: 300 | E62: 300 | F62: =IF(OR(#REF!="", E62=""),"",(E62-#REF!*J62)^H62*(I62+E62*L62)) ->  | G62: 250.2698201 | H62: 0.541 | I62: 11.9239 | J62: 0.13 | K62: 0.4 | L62: -0.0014 | M62: 10
B63: L4 | C63: 25 | D63: 300 | E63: =IF(OR(C63="",D63="", D63<0),"---", IF(AND(D63>=M63,D63>=ABS(C63)*K63),D63,"---")) -> 300 | F63: =IF(OR(#REF!="", E63=""),"",(E63-#REF!*J63)^H63*(I63+E63*L63)) ->  | G63: =IF(E63="---","---", (E63-ABS(C63)*J63)^H63*(I63+E63*L63)) -> 65.19691882 | H63: 0.48 | I63: 4.0995 | J63: 0.003 | K63: 1 | L63: 0.0004 | M63: 10
B64: L2 | C64: 25 | D64: 300 | E64: 300 | F64: =IF(OR(#REF!="", E64=""),"",(E64-#REF!*J64)^H64*(I64+E64*L64)) ->  | G64: 36.75182847 | H64: 0.502 | I64: 2.0678 | J64: 0 | K64: 0.5 | L64: 0.0001 | M64: 10
B65: L1 | C65: 25 | D65: 300 | E65: 300 | F65: =IF(OR(#REF!="", E65=""),"",(E65-#REF!*J65)^H65*(I65+E65*L65)) ->  | G65: 19.69019098 | H65: 0.4925 | I65: 1.1614 | J65: 0.1 | K65: 0.5 | L65: 0.0001 | M65: 10
G68: P is calculated depending: If PrA<0: P = |PrB|-|PrA| If PrA>0: P = PrB Conditions that must be true, or else “---“ is displayed for flow result: If PrA<0: (|PrB|-|PrA|)>MF, (|PrB|-|PrA|)>PrA*K2 If PrA>0: PrB>=MF, PrB>=|PrA|*K2
C69: Enter Pressures appearing on gauge | E69: Fan Pressure used in flow equations
C70: PrA, Pa | D70: PrB, Pa | E70: P, Pa | F70: CFM calculation | G70: CFM displayed on DM32 | H70: N | I70: K | J70: g | K70: f | L70: a | M70: b | N70: c | O70: d | P70: K2 | Q70: MF
A71: 4000 | B71: Open | C71: 25 | D71: 300 | E71: =IF(OR(C71="",D71="",D71<0),"", IF(AND(C71>=0,D71>=Q71, D71>=ABS(C71)*P71),D71, IF(AND(C71<0, (ABS(D71)-ABS(C71))>=Q71, (ABS(D71)-ABS(C71))>=ABS(C71)*P71),(ABS(D71)-ABS(C71)),"---"))) -> 300 | F71: =IF(OR(#REF!="", E71=""),"",E71^H71*I71) ->  | G71: =IF(E71="---","---", E71^H71*I71) -> 9248.829614 | H71: 0.53 | I71: 450 | P71: 0.2 | Q71: 10 | R71: Flow = PN*K
B72: Ring A | C72: -25 | D72: 300 | E72: =IF(OR(C72="",D72="",D72<0),"", IF(AND(C72>=0,D72>=Q72, D72>=ABS(C72)*P72),D72, IF(AND(C72<0, (ABS(D72)-ABS(C72))>=Q72, (ABS(D72)-ABS(C72))>=ABS(C72)*P72),(ABS(D72)-ABS(C72)),"---"))) -> 275 | F72: =IF(OR(#REF!="", E72=""),"",E72^H72*I72) ->  | G72: =IF(E72="---","---", E72^H72*I72) -> 4572.962197 | H72: 0.485 | I72: 300 | P72: 0.2 | Q72: 20 | R72: Flow = PN*K
B73: B8 | C73: 25 | D73: 300 | E73: =IF(OR(C73="",D73="",D73<0),"", IF(AND(C73>=0,D73>=Q73, D73>=ABS(C73)*P73),D73, IF(AND(C73<0, (ABS(D73)-ABS(C73))>=Q73, (ABS(D73)-ABS(C73))>=ABS(C73)*P73),(ABS(D73)-ABS(C73)),"---"))) -> 300 | F73: =IF(OR(#REF!="", E73=""),"",E73^H73*I73) ->  | G73: =IF(E73="---","---", E73^H73*I73) -> 2465.510029 | H73: 0.52 | I73: 127 | P73: 0.2 | Q73: 15 | R73: Flow = PN*K
B74: B4 | C74: 53.8 | D74: 47.6 | E74: =IF(OR(C74="",D74="",D74<0),"", IF(AND(C74>=0,D74>=Q74, D74>=ABS(C74)*P74),D74, IF(AND(C74<0, (ABS(D74)-ABS(C74))>=Q74, (ABS(D74)-ABS(C74))>=ABS(C74)*P74),(ABS(D74)-ABS(C74)),"---"))) -> 47.6 | F74: =IF(OR(#REF!="", E74=""),"",E74^3*L74+E74^2*M74+E74*N74+O74+(J74-#REF!)*K74) ->  | G74: =IF(E74="---","---", E74^3*L74+E74^2*M74+E74*N74+O74+(J74-ABS(C74))*K74) -> 376.4810402 | J74: 0 | K74: 0.7 | L74: 6.62e-06 | M74: -0.0078 | N74: 4.75 | O74: 205 | P74: 0.2 | Q74: 25 | R74: Flow = P3*a+P2*b+P*c+d+(g-|PrA|)*f
G77: P is calculated depending: If PrA>0: P = |PrB|-PrA If PrA<0: P = PrB Conditions that must be true, or else “---“ is displayed for flow result: If PrA>0: (|PrB|-PrA)>MF, (|PrB|-PrA)>PrA*K2 If PrA<0: PrB>=MF, PrB>=|PrA|*K2
C78: Enter Pressures appearing on gauge | E78: Fan Pressure used in flow equations
C79: PrA, Pa | D79: PrB, Pa | E79: P, Pa | F79: CFM calculation | G79: CFM displayed on DM32 | H79: N | I79: K | J79: K1 | K79: K2 | L79: K3 | M79: MF | X79: -50 and 40 | Y79: 100 | Z79: 180
A80: 1000 2000 3000 | B80: Open | C80: -50 | D80: 180 | E80: =IF(OR(C80="",D80="", D80<0),"---", IF(AND(D80>=M80,D80>=ABS(C80)*K80),D80,"---")) -> 180 | F80: =IF(OR(#REF!="", E80=""),"",(E80-#REF!*J80)^H80*(I80+E80*L80)) ->  | G80: =IF(E80="---","---", (E80-ABS(C80)*J80)^H80*(I80+E80*L80)) -> 7555.95356 | H80: 0.5214 | I80: 519.6183 | J80: -0.07 | K80: 0.8 | L80: -0.115 | M80: 8.6 | N80: Flow = (P-|PrA|)*K1)N*(K+P*K3) | W80: =G80 -> 7555.95356 | X80: 3682.39998 | Y80: 5708.930222 | Z80: 7555.95356
B81: A | C81: 25 | D81: 300 | E81: =IF(OR(C81="",D81="", D81<0),"---", IF(AND(D81>=M81,D81>=ABS(C81)*K81),D81,"---")) -> 300 | F81: =IF(OR(#REF!="", E81=""),"",(E81-#REF!*J81)^H81*(I81+E81*L81)) ->  | G81: =IF(E81="---","---", (E81-ABS(C81)*J81)^H81*(I81+E81*L81)) -> 4683.733866 | H81: 0.503 | I81: 264.9959 | J81: -0.075 | K81: 1 | L81: 0 | M81: 12 | N81: Flow = (P-|PrA|)*K1)N*(K+P*K3) | X81: =X80/X93-1 -> 0.07034682561 | Y81: =Y80/Y93-1 -> 0.0514150187 | Z81: =Z80/Z93-1 -> 0.03844383892
B82: B | C82: 25 | D82: 300 | E82: =IF(OR(C82="",D82="", D82<0),"---", IF(AND(D82>=M82,D82>=ABS(C82)*K82),D82,"---")) -> 300 | F82: =IF(OR(#REF!="", E82=""),"",(E82-#REF!*J82)^H82*(I82+E82*L82)) ->  | G82: =IF(E82="---","---", (E82-ABS(C82)*J82)^H82*(I82+E82*L82)) -> 3029.052021 | H82: 0.5 | I82: 174.8824 | J82: 0 | K82: 0.3 | L82: 0 | M82: 10 | N82: Flow = (P-|PrA|)*K1)N*(K+P*K3)
B83: C8 | C83: 25 | D83: 300 | E83: 300 | F83: =IF(OR(#REF!="", E83=""),"",(E83-#REF!*J83)^H83*(I83+E83*L83)) ->  | G83: 1444.000154 | H83: 0.5 | I83: 78.5 | J83: -0.02 | K83: 0.5 | L83: 0.016 | M83: 10 | N83: Flow = (P-|PrA|)*K1)N*(K+P*K3)
B84: C6 | C84: 25 | D84: 300 | E84: 300 | F84: =IF(OR(#REF!="", E84=""),"",(E84-#REF!*J84)^H84*(I84+E84*L84)) ->  | G84: 1111.314778 | H84: 0.505 | I84: 61.3 | J84: 0.054 | K84: 0.5 | L84: 0.004 | M84: 10 | N84: Flow = (P-|PrA|)*K1)N*(K+P*K3)
B85: C4 | C85: 25 | D85: 300 | E85: 300 | F85: =IF(OR(#REF!="", E85=""),"",(E85-#REF!*J85)^H85*(I85+E85*L85)) ->  | G85: 764.7179393 | H85: 0.5077 | I85: 42 | J85: 0.009 | K85: 0.5 | L85: 0.0009 | M85: 10 | N85: Flow = (P-|PrA|)*K1)N*(K+P*K3)
B86: C2 | C86: 25 | D86: 300 | E86: 300 | F86: =IF(OR(#REF!="", E86=""),"",(E86-#REF!*J86)^H86*(I86+E86*L86)) ->  | G86: 419.2596841 | H86: 0.52 | I86: 22 | J86: 0.11 | K86: 0.5 | L86: -0.001 | M86: 10 | N86: Flow = (P-|PrA|)*K1)N*(K+P*K3)
B87: C1 | C87: 25 | D87: 300 | E87: 300 | F87: =IF(OR(#REF!="", E87=""),"",(E87-#REF!*J87)^H87*(I87+E87*L87)) ->  | G87: 250.2698201 | H87: 0.541 | I87: 11.9239 | J87: 0.13 | K87: 0.4 | L87: -0.0014 | M87: 10 | N87: Flow = (P-|PrA|)*K1)N*(K+P*K3)
B88: L4 | C88: 25 | D88: 300 | E88: 300 | F88: =IF(OR(#REF!="", E88=""),"",(E88-#REF!*J88)^H88*(I88+E88*L88)) ->  | G88: 65.19691882 | H88: 0.48 | I88: 4.0995 | J88: 0.003 | K88: 1 | L88: 0.0004 | M88: 10 | N88: Flow = (P-|PrA|)*K1)N*(K+P*K3)
B89: L2 | C89: 25 | D89: 300 | E89: 300 | F89: =IF(OR(#REF!="", E89=""),"",(E89-#REF!*J89)^H89*(I89+E89*L89)) ->  | G89: 36.75182847 | H89: 0.502 | I89: 2.0678 | J89: 0 | K89: 0.5 | L89: 0.0001 | M89: 10 | N89: Flow = (P-|PrA|)*K1)N*(K+P*K3)
B90: L1 | C90: 25 | D90: 300 | E90: =IF(OR(C90="",D90="", D90<0),"---", IF(AND(D90>=M90,D90>=ABS(C90)*K90),D90,"---")) -> 300 | F90: =IF(OR(#REF!="", E90=""),"",(E90-#REF!*J90)^H90*(I90+E90*L90)) ->  | G90: =IF(E90="---","---", (E90-ABS(C90)*J90)^H90*(I90+E90*L90)) -> 19.69019098 | H90: 0.4925 | I90: 1.1614 | J90: 0.1 | K90: 0.5 | L90: 0.0001 | M90: 10 | N90: Flow = (P-|PrA|)*K1)N*(K+P*K3)
H92: N | I92: K | J92: g | K92: f | L92: a | M92: b | N92: c | O92: d | P92: K2 | Q92: MF
A93: 5000 | B93: Open | C93: -50 | E93: =IF(OR(C93="",D93="",D93<0),"", IF(AND(C93<=0,D93>=Q93, D93>=ABS(C93)*P93),D93, IF(AND(C93>0, (ABS(D93)-C93)>=Q93, (ABS(D93)-C93)>=ABS(C93)*P93),(ABS(D93)-C93),"---"))) ->  | F93: =IF(OR(#REF!="", E93=""),"",E93^H93*I93) ->  | G93: =IF(E93="---","---", E93^H93*I93) ->  | H93: 0.498 | I93: 548 | P93: 0.3 | Q93: 10 | R93: Flow = PN*K | W93: =G93 ->  | X93: 3440.380157 | Y93: 5429.759058 | Z93: 7276.227444
B94: Ring A | C94: -50 | D94: 70 | E94: =IF(OR(C94="",D94="",D94<0),"", IF(AND(C94<=0,D94>=Q94, D94>=ABS(C94)*P94),D94, IF(AND(C94>0, (ABS(D94)-C94)>=Q94, (ABS(D94)-C94)>=ABS(C94)*P94),(ABS(D94)-C94),"---"))) -> 70 | F94: =IF(OR(#REF!="", E94=""),"",E94^H94*I94) ->  | G94: =IF(E94="---","---", E94^H94*I94) -> 2421.704299 | H94: 0.502 | I94: 287 | P94: 0.4 | Q94: 20 | R94: Flow = PN*K
B95: B8 | C95: 50 | D95: 160 | E95: 110 | F95: =IF(OR(#REF!="", E95=""),"",E95^H95*I95) ->  | G95: =IF(E95="---","---", E95^H95*I95) -> 1433.475454 | H95: 0.54 | I95: 113.25 | P95: 0.7 | Q95: 40 | R95: Flow = PN*K
B96: B4 | C96: -50 | D96: 160 | E96: 160 | F96: =IF(OR(#REF!="", E96=""),"",E96^3*L96+E96^2*M96+E96*N96+O96+(J96-#REF!)*K96) ->  | G96: =IF(E96="---","---", E96^3*L96+E96^2*M96+E96*N96+O96+(J96-ABS(C96))*K96) -> 805.3388945 | J96: 29 | K96: -0.19 | L96: 7.942601191e-06 | M96: -0.00864 | N96: 4.9 | O96: 206 | P96: 0.8 | Q96: 25 | R96: Flow = P3*a+P2*b+P*c+d+(g-|PrA|)*f
B97: B2 | C97: -50 | D97: 160 | E97: 160 | F97: =IF(OR(#REF!="", E97=""),"",E97^3*L97+E97^2*M97+E97*N97+O97+(J97-#REF!)*K97) ->  | G97: 361.36448 | J97: 30 | K97: 0.1 | L97: 8.8e-07 | M97: -0.0029 | N97: 2.15 | O97: 90 | P97: 1 | Q97: 30 | R97: Flow = P3*a+P2*b+P*c+d+(g-|PrA|)*f
B98: B1 | C98: -50 | D98: 160 | E98: 160 | F98: =IF(OR(#REF!="", E98=""),"",E98^3*L98+E98^2*M98+E98*N98+O98+(J98-#REF!)*K98) ->  | G98: 186.48 | J98: 30 | K98: 0 | L98: 5e-07 | M98: -0.00128 | N98: 1.02 | O98: 54 | P98: 1 | Q98: 30 | R98: Flow = P3*a+P2*b+P*c+d+(g-|PrA|)*f
B99: B74 | C99: -50 | D99: 160 | E99: 160 | F99: =IF(OR(#REF!="", E99=""),"",E99^3*L99+E99^2*M99+E99*N99+O99+(J99-#REF!)*K99) ->  | G99: 87.712856 | J99: 25 | K99: 0.145 | L99: 7.96e-07 | M99: -0.0009501 | N99: 0.59 | O99: 18 | P99: 0.8 | Q99: 35 | R99: Flow = P3*a+P2*b+P*c+d+(g-|PrA|)*f
B100: B47 | C100: -50 | D100: 160 | E100: 160 | F100: =IF(OR(#REF!="", E100=""),"",E100^3*L100+E100^2*M100+E100*N100+O100+(J100-#REF!)*K100) ->  | G100: 40.67019406 | J100: 25 | K100: 0.09 | L100: 2.69043182e-07 | M100: -0.0003590549536 | N100: 0.2435 | O100: 12.05 | P100: 1 | Q100: 50 | R100: Flow = P3*a+P2*b+P*c+d+(g-|PrA|)*f
B101: B29 | C101: -50 | D101: 160 | E101: 160 | F101: =IF(OR(#REF!="", E101=""),"",E101^3*L101+E101^2*M101+E101*N101+O101+(J101-#REF!)*K101) ->  | G101: 16.260256 | J101: 25 | K101: -0.02 | L101: 1.11e-07 | M101: -0.000149 | N101: 0.092 | O101: 4.4 | P101: 0.6 | Q101: 50 | R101: Flow = P3*a+P2*b+P*c+d+(g-|PrA|)*f
F102: =IF(OR(#REF!="", E102=""),"",E102^3*L102+E102^2*M102+E102*N102+O102+(J102-#REF!)*K102) -> 
A103: 6000 | B103: Open | C103: -50 | F103: =IF(OR(#REF!="", E103=""),"",E103^H103*I103) ->  | G103: =IF(E103="---","---", E103^H103*I103) ->  | H103: 0.498 | I103: 548 | P103: 0.5 | Q103: 25 | R103: Flow = PN*K | W103: =G103 ->  | X103: 3440.380157 | Y103: 5429.759058 | Z103: 7276.227444
B104: Ring A | C104: 50 | D104: 160 | E104: 110 | F104: =IF(OR(#REF!="", E104=""),"",E104^H104*I104) ->  | G104: =IF(E104="---","---", E104^H104*I104) -> 3038.512482 | H104: 0.502 | I104: 287 | P104: 0.5 | Q104: 25 | R104: Flow = PN*K
B105: B8 | C105: 50 | D105: 160 | E105: 110 | F105: =IF(OR(#REF!="", E105=""),"",E105^H105*I105) ->  | G105: =IF(E105="---","---", E105^H105*I105) -> 1433.475454 | H105: 0.54 | I105: 113.25 | P105: 0.8 | Q105: 40 | R105: Flow = PN*K
B106: B4 | C106: -50 | D106: 160 | E106: 160 | F106: =IF(OR(#REF!="", E106=""),"",E106^3*L106+E106^2*M106+E106*N106+O106+(J106-#REF!)*K106) ->  | G106: =IF(E106="---","---", E106^3*L106+E106^2*M106+E106*N106+O106+(J106-ABS(C106))*K106) -> 757.43552 | J106: 0 | K106: 0.7 | L106: 6.62e-06 | M106: -0.0078 | N106: 4.75 | O106: 205 | P106: 0.8 | Q106: 25 | R106: Flow = P3*a+P2*b+P*c+d+(g-|PrA|)*f
B107: B2 | C107: -50 | D107: 160 | E107: 160 | F107: =IF(OR(#REF!="", E107=""),"",E107^3*L107+E107^2*M107+E107*N107+O107+(J107-#REF!)*K107) ->  | G107: 310.068 | J107: 40 | K107: 0.85 | L107: 3e-06 | M107: -0.0037 | N107: 2.2 | O107: 49 | P107: 1 | Q107: 30 | R107: Flow = P3*a+P2*b+P*c+d+(g-|PrA|)*f
B108: B1 | C108: -50 | D108: 160 | E108: 160 | F108: =IF(OR(#REF!="", E108=""),"",E108^3*L108+E108^2*M108+E108*N108+O108+(J108-#REF!)*K108) ->  | G108: 160.38256 | J108: 65 | K108: 0.2 | L108: 1.06e-06 | M108: -0.001382 | N108: 0.937 | O108: 38.5 | P108: 1 | Q108: 30 | R108: Flow = P3*a+P2*b+P*c+d+(g-|PrA|)*f
B109: B74 | C109: -50 | D109: 160 | E109: 160 | F109: =IF(OR(#REF!="", E109=""),"",E109^3*L109+E109^2*M109+E109*N109+O109+(J109-#REF!)*K109) ->  | G109: 87.712856 | J109: 25 | K109: 0.145 | L109: 7.96e-07 | M109: -0.0009501 | N109: 0.59 | O109: 18 | P109: 0.8 | Q109: 35 | R109: Flow = P3*a+P2*b+P*c+d+(g-|PrA|)*f
B110: B47 | C110: -50 | D110: 160 | E110: 160 | F110: =IF(OR(#REF!="", E110=""),"",E110^3*L110+E110^2*M110+E110*N110+O110+(J110-#REF!)*K110) ->  | G110: 40.67019406 | J110: 25 | K110: 0.09 | L110: 2.69043182e-07 | M110: -0.0003590549536 | N110: 0.2435 | O110: 12.05 | P110: 1 | Q110: 50 | R110: Flow = P3*a+P2*b+P*c+d+(g-|PrA|)*f
B111: B29 | C111: -50 | D111: 160 | E111: 160 | F111: =IF(OR(#REF!="", E111=""),"",E111^3*L111+E111^2*M111+E111*N111+O111+(J111-#REF!)*K111) ->  | G111: 16.260256 | J111: 25 | K111: -0.02 | L111: 1.11e-07 | M111: -0.000149 | N111: 0.092 | O111: 4.4 | P111: 0.6 | Q111: 50 | R111: Flow = P3*a+P2*b+P*c+d+(g-|PrA|)*f

Sheet build 70B1 (hidden)
A1: Published Flow Equation Parameters: | C1: "Round" | D1: Date released | G1: Version released
C2: B1 | D2: 2015-11-?? | G2: 2.4.??B1 | K2: "Round B1" changes, from Round B, are highlighted in yellow
C3: B | D3: 2015-06-23 | G3: 2.3.62
C4: A | D4: 2014
C6: Hide detailed specs: | E6: Yes
C10: For sample flow calculations: enter pressure data into Columns C & D
C11: identifies the same Range but depending on PrA sign (or if 'set to 0 Pa' is implemented), different flow equation parameters are used
G13: Flow = (P-|PrA|)*K1)N*(K+P*K3) Since K1 and K3 are 0 for 300 & 340 & 350 & 450 systems, this equation can be simplified to: Flow = PN*K , i.e. no backpressure compensation because PrA becomes irrelevant Condition that must be true, or else “---“ is displayed for flow result: PrB>=MF, PrB>=|PrA|*K2, PrB>0
C14: Enter Pressures appearing on gauge | E14: Fan Pressure used in flow equations | P14: min Fan Pressure, Pa | S14: max Fan Pressure, Pa | V14: min Flow, CFM | Y14: max Flow, CFM | AB14: Master plug S/N
A15: Device | B15: Range | C15: PrA, Pa | D15: PrB, Pa | E15: P, Pa | F15: CFM calculation | G15: CFM displayed on DM32 | H15: build 68 reading | I15: Error | J15: N | K15: K | L15: K1 | M15: K2 | N15: K3 | O15: MF | P15: 0 | Q15: 25 | R15: 50 | S15: 0 | T15: 50 | U15: 25 Pa on 10" flex | V15: 0 | W15: 25 | X15: 250 | Y15: 0 | Z15: 50 | AA15: 25 Pa on 10" flex
A16: 240 | B16: Open | C16: -56.6 | D16: 165 | E16: =IF(OR(C16="",D16="", D16<0),"---", IF(AND(D16>=O16,D16>=ABS(C16)*M16),D16,"---")) -> 165 | F16: =IF(OR(#REF!="", E16=""),"",(E16-#REF!*L16)^J16*(K16+E16*N16)) ->  | G16: =IF(E16="---","---", (E16-ABS(C16)*L16)^J16*(K16+E16*N16)) -> 419.2518294 | H16: 420.3 | I16: =(H16-G16)/H16 -> 0.002493862848 | J16: 0.5115 | K16: 30.7774 | L16: 0 | M16: 0.2 | N16: 0 | O16: 10 | P16: =IF($M16*P$15>$O16, $M16*P$15, $O16) -> 10 | Q16: =IF($M16*Q$15>$O16, $M16*Q$15, $O16) -> 10 | R16: =IF($M16*R$15>$O16, $M16*R$15, $O16) -> 10 | V16: =(P$16-ABS(V$15)*$L16)^$J16*($K16+P$16*$N16) -> 99.93829339 | W16: =(Q$16-ABS(W$15)*$L16)^$J16*($K16+Q$16*$N16) -> 99.93829339 | X16: =(R$16-ABS(X$15)*$L16)^$J16*($K16+R$16*$N16) -> 99.93829339
B17: Mid | C17: 50.9 | D17: 41.5 | E17: =IF(OR(C17="",D17="", D17<0),"---", IF(AND(D17>=O17,D17>=ABS(C17)*M17),D17,"---")) -> 41.5 | F17: =IF(OR(#REF!="", E17=""),"",(E17-#REF!*L17)^J17*(K17+E17*N17)) ->  | G17: =IF(E17="---","---", (E17-ABS(C17)*L17)^J17*(K17+E17*N17)) -> 44.47320448 | H17: 44.53 | I17: =(H17-G17)/H17 -> 0.001275443953 | J17: 0.5415 | K17: 5.9146 | L17: 0 | M17: 0.5 | N17: 0 | O17: 25 | P17: =IF($M17*P$15>$O17, $M17*P$15, $O17) -> 25 | Q17: 25 | R17: 25 | V17: =(P$17-ABS(V$15)*$L17)^$J17*($K17+P$17*$N17) -> 33.79947026 | W17: =(Q$17-ABS(W$15)*$L17)^$J17*($K17+Q$17*$N17) -> 33.79947026 | X17: =(R$17-ABS(X$15)*$L17)^$J17*($K17+R$17*$N17) -> 33.79947026
B18: Low | C18: 50.9 | D18: 41.5 | E18: =IF(OR(C18="",D18="", D18<0),"---", IF(AND(D18>=O18,D18>=ABS(C18)*M18),D18,"---")) -> 41.5 | F18: =IF(OR(#REF!="", E18=""),"",(E18-#REF!*L18)^J18*(K18+E18*N18)) ->  | G18: =IF(E18="---","---", (E18-ABS(C18)*L18)^J18*(K18+E18*N18)) -> 9.94483126 | H18: 9.961 | I18: =(H18-G18)/H18 -> 0.001623204544 | J18: 0.6125 | K18: 1.0056 | L18: -0.024 | M18: 0.5 | N18: -0.0002 | O18: 25 | P18: 25 | Q18: 25 | R18: 25 | V18: =(P$18-ABS(V$15)*$L18)^$J18*($K18+P$18*$N18) -> 7.186190964 | W18: =(Q$18-ABS(W$15)*$L18)^$J18*($K18+Q$18*$N18) -> 7.291342135 | X18: =(R$18-ABS(X$15)*$L18)^$J18*($K18+R$18*$N18) -> 8.198219387
A20: 300 | B20: Open | C20: -56.6 | D20: 165 | E20: =IF(OR(C20="",D20="", D20<0),"---", IF(AND(D20>=O20,D20>=ABS(C20)*M20),D20,"---")) -> 165 | F20: =IF(OR(#REF!="", E20=""),"",(E20-#REF!*L20)^J20*(K20+E20*N20)) ->  | G20: =IF(E20="---","---", (E20-ABS(C20)*L20)^J20*(K20+E20*N20)) -> 373.2566447 | H20: 373.2 | I20: =(H20-G20)/H20 -> -0.0001517809968 | J20: 0.501 | K20: 28.91 | L20: 0 | M20: 0.4 | N20: 0 | O20: 20 | P20: =IF($M20*P$15>$O20, $M20*P$15, $O20) -> 20 | Q20: =IF($M20*Q$15>$O20, $M20*Q$15, $O20) -> 20 | R20: =IF($M20*R$15>$O20, $M20*R$15, $O20) -> 20 | S20: 740 | T20: 705 | U20: 272 | V20: =P20^$J20*$K20 -> 129.6773478 | W20: 129.6773478 | X20: =R20^$J20*$K20 -> 129.6773478 | Y20: 791.6499401 | Z20: 772.6642869 | AA20: 479.4762639
B21: 102 | C21: 53 | D21: 435.5 | E21: =IF(OR(C21="",D21="", D21<0),"---", IF(AND(D21>=O21,D21>=ABS(C21)*M21),D21,"---")) -> 435.5 | F21: =IF(OR(#REF!="", E21=""),"",(E21-#REF!*L21)^J21*(K21+E21*N21)) ->  | G21: =IF(E21="---","---", (E21-ABS(C21)*L21)^J21*(K21+E21*N21)) -> 385.8218256 | H21: 385.9 | I21: =(H21-G21)/H21 -> 0.0002025767417 | J21: 0.59 | K21: 10.7 | L21: 0 | M21: 0.4 | N21: 0 | O21: 100 | P21: =IF($M21*P$15>$O21, $M21*P$15, $O21) -> 100 | Q21: 100 | R21: 100 | S21: 760 | T21: 740 | U21: 695 | V21: 161.9510536 | W21: 161.9510536 | X21: 161.9510536 | Y21: 535.8753709 | Z21: 527.5097514 | AA21: 508.3406178
B22: 74 | C22: 53 | D22: 435.5 | E22: 435.5 | F22: =IF(OR(#REF!="", E22=""),"",(E22-#REF!*L22)^J22*(K22+E22*N22)) ->  | G22: 151.7883047 | H22: 151.8 | I22: 7.704409893e-05 | J22: 0.5045 | K22: 7.077319209 | L22: 0 | M22: 0.25 | N22: 0 | O22: 15 | P22: 15 | Q22: 15 | R22: 15 | S22: 760 | T22: 500 | U22: 330 | V22: 27.74641159 | W22: 27.74641159 | X22: 27.74641159 | Y22: 201.0199874 | Z22: 162.7418135 | AA22: 131.9650926 | AB22: 1026580
B23: 47 | C23: 53 | D23: 435.5 | E23: 435.5 | F23: =IF(OR(#REF!="", E23=""),"",(E23-#REF!*L23)^J23*(K23+E23*N23)) ->  | G23: 67.63391492 | H23: 67.65 | I23: 0.0002377691137 | J23: 0.5 | K23: 3.240935942 | L23: 0 | M23: 0.1 | N23: 0 | O23: 10 | P23: 10 | Q23: 10 | R23: 10 | S23: 730 | T23: 650 | U23: 415 | V23: 10.24873933 | W23: =Q23^$J23*$K23 -> 10.24873933 | X23: 10.24873933 | Y23: 87.5652672 | Z23: 82.62797805 | AA23: 66.02288466 | AB23: 1000962
B24: 29 | C24: 53 | D24: 435.5 | E24: 435.5 | F24: =IF(OR(#REF!="", E24=""),"",(E24-#REF!*L24)^J24*(K24+E24*N24)) ->  | G24: 25.14260153 | H24: 25.14 | I24: -0.0001034815057 | J24: 0.502 | K24: 1.190249908 | L24: 0 | M24: 0.2 | N24: 0 | O24: 20 | P24: 20 | Q24: 20 | R24: 20 | S24: 730 | T24: 690 | U24: 425.7319909 | V24: 5.354947462 | W24: 5.354947462 | X24: 5.354947462 | Y24: 32.58563828 | Z24: 31.67673417 | AA24: 24.85790775 | AB24: 1000986
B25: 18 | C25: 53 | D25: 435.5 | E25: 435.5 | F25: =IF(OR(#REF!="", E25=""),"",(E25-#REF!*L25)^J25*(K25+E25*N25)) ->  | G25: 9.479191381 | H25: 9.481 | I25: 0.0001907624763 | J25: 0.499 | K25: 0.457 | L25: 0 | M25: 0.25 | N25: 0 | O25: 25 | P25: 25 | Q25: 25 | R25: 25 | S25: 730 | T25: 690 | U25: 472.307511 | V25: 2.277656694 | W25: 2.277656694 | X25: 2.277656694 | Y25: 12.26632048 | Z25: 11.92619473 | AA25: 9.870846568 | AB25: 1000405
B26: 11 | C26: 53 | D26: 435.5 | E26: 435.5 | F26: =IF(OR(#REF!="", E26=""),"",(E26-#REF!*L26)^J26*(K26+E26*N26)) ->  | G26: 3.843949305 | H26: 3.845 | I26: 0.000273262675 | J26: 0.48 | K26: 0.208 | L26: 0 | M26: 0.25 | N26: 0 | O26: 25 | P26: 25 | Q26: 25 | R26: 25 | S26: 730 | T26: 690 | U26: 478.7569606 | V26: 0.9751569922 | W26: 0.9751569922 | X26: 0.9751569922 | Y26: 4.925590555 | Z26: 4.794142056 | AA26: 4.022708689 | AB26: 1000481
B27: 7 | C27: 53 | D27: 435.5 | E27: 435.5 | F27: =IF(OR(#REF!="", E27=""),"",(E27-#REF!*L27)^J27*(K27+E27*N27)) ->  | G27: 1.498368119 | H27: 1.499 | I27: 0.0004215350313 | J27: 0.5 | K27: 0.0718 | L27: 0 | M27: 0.11 | N27: 0 | O27: 25 | P27: 25 | Q27: 25 | R27: 25 | S27: 730 | T27: 690 | U27: 479.8076195 | V27: 0.359 | W27: 0.359 | X27: 0.359 | Y27: 1.939929174 | Z27: 1.886031707 | AA27: 1.572743918 | AB27: 1003185
AH28: high | AI28: low | AJ28: delta
A29: 340 | B29: Open | C29: 53 | D29: 435.5 | E29: =IF(OR(C29="",D29="", D29<0),"---", IF(AND(C29>0, D29>=O29,D29>=ABS(C29)*M29),D29,"---")) -> 435.5 | F29: =IF(OR(#REF!="", E29=""),"",(E29-#REF!*L29)^J29*(K29+E29*N29)) ->  | G29: =IF(E29="---","---", (E29-ABS(C29)*L29)^J29*(K29+E29*N29)) -> 606.9894734 | H29: 607.1 | I29: =(H29-G29)/H29 -> 0.0001820565912 | J29: 0.501 | K29: 28.91 | L29: 0 | M29: 0.4 | N29: 0 | O29: 20 | P29: =IF($M29*P$15>$O29, $M29*P$15, $O29) -> 20 | Q29: =IF($M29*Q$15>$O29, $M29*Q$15, $O29) -> 20 | R29: =IF($M29*R$15>$O29, $M29*R$15, $O29) -> 20 | S29: 740 | T29: 705 | U29: 272 | V29: 129.6773478 | W29: 129.6773478 | X29: 129.6773478 | Y29: 791.6499401 | Z29: 772.6642869 | AA29: 479.4762639 | AH29: =IF('Flow charts'!$A$7=$P$15,Y29, IF('Flow charts'!$A$7=$Q$15,Z29, IF('Flow charts'!$A$7=$R$15,AA29,"SELECT BP"))) -> 479.4762639 | AI29: =IF('Flow charts'!$A$7=$P$15,V29, IF('Flow charts'!$A$7=$Q$15,W29, IF('Flow charts'!$A$7=$R$15,X29,"SELECT BP"))) -> 129.6773478 | AJ29: =AH29-AI29 -> 349.7989161
B30: Open* | C30: -56.6 | D30: 165 | E30: =IF(OR(C30="",D30="", D30<0),"---", IF(AND(C30<0, D30>=O30,D30>=ABS(C30)*M30),D30,"---")) -> 165 | F30: =IF(OR(#REF!="", E30=""),"",(E30-#REF!*L30)^J30*(K30+E30*N30)) ->  | G30: 384.454344 | H30: 384.4 | I30: =(H30-G30)/H30 -> -0.0001413735902 | J30: 0.501 | K30: 29.7773 | L30: 0 | M30: 0.4 | N30: 0 | O30: 20 | P30: =IF($M30*P$15>$O30, $M30*P$15, $O30) -> 20 | Q30: 20 | R30: =IF($M30*R$15>$O30, $M30*R$15, $O30) -> 20 | S30: 700 | T30: 665 | U30: 640 | V30: 133.5676682 | W30: 133.5676682 | X30: 133.5676682 | Y30: 793.011407 | Z30: 772.8922645 | AA30: 758.1959903 | AH30: =IF('Flow charts'!$A$7=$P$15,Y30, IF('Flow charts'!$A$7=$Q$15,Z30, IF('Flow charts'!$A$7=$R$15,AA30,"SELECT BP"))) -> 758.1959903 | AI30: =IF('Flow charts'!$A$7=$P$15,V30, IF('Flow charts'!$A$7=$Q$15,W30, IF('Flow charts'!$A$7=$R$15,X30,"SELECT BP"))) -> 133.5676682 | AJ30: =AH30-AI30 -> 624.6283221
B31: 102 | C31: 53 | D31: 435.5 | E31: =IF(OR(C31="",D31="", D31<0),"---", IF(AND(D31>=O31,D31>=ABS(C31)*M31),D31,"---")) -> 435.5 | F31: =IF(OR(#REF!="", E31=""),"",(E31-#REF!*L31)^J31*(K31+E31*N31)) ->  | G31: 385.8218256 | H31: 385.9 | I31: 0.0002025767417 | J31: 0.59 | K31: 10.7 | L31: 0 | M31: 0.4 | N31: 0 | O31: 100 | P31: 100 | Q31: 100 | R31: 100 | S31: 760 | T31: 740 | U31: 695 | V31: 161.9510536 | W31: 161.9510536 | X31: 161.9510536 | Y31: 535.8753709 | Z31: 527.5097514 | AA31: 508.3406178
B32: 74 | C32: 53 | D32: 435.5 | E32: 435.5 | F32: =IF(OR(#REF!="", E32=""),"",(E32-#REF!*L32)^J32*(K32+E32*N32)) ->  | G32: 151.7883047 | H32: 151.8 | I32: 7.704409893e-05 | J32: 0.5045 | K32: 7.077319209 | L32: 0 | M32: 0.25 | N32: 0 | O32: 15 | P32: 15 | Q32: 15 | R32: 15 | S32: 760 | T32: 500 | U32: 330 | V32: 27.74641159 | W32: 27.74641159 | X32: 27.74641159 | Y32: 201.0199874 | Z32: 162.7418135 | AA32: 131.9650926
B33: 47 | C33: -56.6 | D33: 165 | E33: 165 | F33: =IF(OR(#REF!="", E33=""),"",(E33-#REF!*L33)^J33*(K33+E33*N33)) ->  | G33: 41.63057595 | H33: 41.63 | I33: -1.383492432e-05 | J33: 0.5 | K33: 3.240935942 | L33: 0 | M33: 0.1 | N33: 0 | O33: 10 | P33: 10 | Q33: 10 | R33: 10 | S33: 730 | T33: 650 | U33: 415 | V33: 10.24873933 | W33: 10.24873933 | X33: 10.24873933 | Y33: 87.5652672 | Z33: 82.62797805 | AA33: 66.02288466
B34: 29 | C34: 53 | D34: 435.5 | E34: 435.5 | F34: =IF(OR(#REF!="", E34=""),"",(E34-#REF!*L34)^J34*(K34+E34*N34)) ->  | G34: 25.14260153 | H34: 25.14 | I34: -0.0001034815057 | J34: 0.502 | K34: 1.190249908 | L34: 0 | M34: 0.2 | N34: 0 | O34: 20 | P34: 20 | Q34: 20 | R34: 20 | S34: 730 | T34: 690 | U34: 425.7319909 | V34: 5.354947462 | W34: 5.354947462 | X34: 5.354947462 | Y34: 32.58563828 | Z34: 31.67673417 | AA34: 24.85790775
B35: 18 | C35: 53 | D35: 435.5 | E35: 435.5 | F35: =IF(OR(#REF!="", E35=""),"",(E35-#REF!*L35)^J35*(K35+E35*N35)) ->  | G35: 9.479191381 | H35: 9.481 | I35: 0.0001907624763 | J35: 0.499 | K35: 0.457 | L35: 0 | M35: 0.25 | N35: 0 | O35: 25 | P35: 25 | Q35: 25 | R35: 25 | S35: 730 | T35: 690 | U35: 472.307511 | V35: 2.277656694 | W35: 2.277656694 | X35: 2.277656694 | Y35: 12.26632048 | Z35: 11.92619473 | AA35: 9.870846568
B36: 11 | C36: 53 | D36: 435.5 | E36: 435.5 | F36: =IF(OR(#REF!="", E36=""),"",(E36-#REF!*L36)^J36*(K36+E36*N36)) ->  | G36: 3.843949305 | H36: 3.845 | I36: 0.000273262675 | J36: 0.48 | K36: 0.208 | L36: 0 | M36: 0.25 | N36: 0 | O36: 25 | P36: 25 | Q36: 25 | R36: 25 | S36: 730 | T36: 690 | U36: 478.7569606 | V36: =P36^$J36*$K36 -> 0.9751569922 | W36: 0.9751569922 | X36: 0.9751569922 | Y36: 4.925590555 | Z36: 4.794142056 | AA36: 4.022708689
B37: 7 | C37: 53 | D37: 435.5 | E37: 435.5 | F37: =IF(OR(#REF!="", E37=""),"",(E37-#REF!*L37)^J37*(K37+E37*N37)) ->  | G37: 1.498368119 | H37: 1.499 | I37: 0.0004215350313 | J37: 0.5 | K37: 0.0718 | L37: 0 | M37: 0.11 | N37: 0 | O37: 25 | P37: 25 | Q37: 25 | R37: 25 | S37: 730 | T37: 690 | U37: 479.8076195 | V37: 0.359 | W37: 0.359 | X37: 0.359 | Y37: 1.939929174 | Z37: 1.886031707 | AA37: 1.572743918
A39: 350 | B39: 102 | C39: 53 | D39: 435.5 | E39: =IF(OR(C39="",D39="", D39<0),"---", IF(AND(D39>=O39,D39>=ABS(C39)*M39),D39,"---")) -> 435.5 | F39: =IF(OR(#REF!="", E39=""),"",(E39-#REF!*L39)^J39*(K39+E39*N39)) ->  | G39: =IF(E39="---","---", (E39-ABS(C39)*L39)^J39*(K39+E39*N39)) -> 385.8218256 | H39: 385.9 | I39: =(H39-G39)/H39 -> 0.0002025767417 | J39: 0.59 | K39: 10.7 | L39: 0 | M39: 0.4 | N39: 0 | O39: 100 | P39: =IF($M39*P$15>$O39, $M39*P$15, $O39) -> 100 | Q39: =IF($M39*Q$15>$O39, $M39*Q$15, $O39) -> 100 | R39: =IF($M39*R$15>$O39, $M39*R$15, $O39) -> 100 | S39: 760 | T39: 740 | U39: 695 | V39: 161.9510536 | W39: 161.9510536 | X39: 161.9510536 | Y39: 535.8753709 | Z39: 527.5097514 | AA39: 508.3406178 | AH39: =IF('Flow charts'!$A$7=$P$15,Y39, IF('Flow charts'!$A$7=$Q$15,Z39, IF('Flow charts'!$A$7=$R$15,AA39,"SELECT BP"))) -> 508.3406178 | AI39: =IF('Flow charts'!$A$7=$P$15,V39, IF('Flow charts'!$A$7=$Q$15,W39, IF('Flow charts'!$A$7=$R$15,X39,"SELECT BP"))) -> 161.9510536 | AJ39: =AH39-AI39 -> 346.3895642
B40: 74 | C40: 53 | D40: 435.5 | E40: 435.5 | F40: =IF(OR(#REF!="", E40=""),"",(E40-#REF!*L40)^J40*(K40+E40*N40)) ->  | G40: 151.7883047 | H40: 151.8 | I40: =(H40-G40)/H40 -> 7.704409893e-05 | J40: 0.5045 | K40: 7.077319209 | L40: 0 | M40: 0.25 | N40: 0 | O40: 15 | P40: =IF($M40*P$15>$O40, $M40*P$15, $O40) -> 15 | Q40: 15 | R40: =IF($M40*R$15>$O40, $M40*R$15, $O40) -> 15 | S40: 760 | T40: 500 | U40: 330 | V40: 27.74641159 | W40: 27.74641159 | X40: 27.74641159 | Y40: 201.0199874 | Z40: 162.7418135 | AA40: 131.9650926 | AH40: =IF('Flow charts'!$A$7=$P$15,Y40, IF('Flow charts'!$A$7=$Q$15,Z40, IF('Flow charts'!$A$7=$R$15,AA40,"SELECT BP"))) -> 131.9650926 | AI40: =IF('Flow charts'!$A$7=$P$15,V40, IF('Flow charts'!$A$7=$Q$15,W40, IF('Flow charts'!$A$7=$R$15,X40,"SELECT BP"))) -> 27.74641159 | AJ40: =AH40-AI40 -> 104.218681
B41: 47 | C41: 53 | D41: 435.5 | E41: 435.5 | F41: =IF(OR(#REF!="", E41=""),"",(E41-#REF!*L41)^J41*(K41+E41*N41)) ->  | G41: 67.63391492 | H41: 67.65 | I41: 0.0002377691137 | J41: 0.5 | K41: 3.240935942 | L41: 0 | M41: 0.1 | N41: 0 | O41: 10 | P41: 10 | Q41: 10 | R41: 10 | S41: 730 | T41: 650 | U41: 415 | V41: 10.24873933 | W41: 10.24873933 | X41: 10.24873933 | Y41: 87.5652672 | Z41: 82.62797805 | AA41: 66.02288466 | AH41: =IF('Flow charts'!$A$7=$P$15,Y41, IF('Flow charts'!$A$7=$Q$15,Z41, IF('Flow charts'!$A$7=$R$15,AA41,"SELECT BP"))) -> 66.02288466 | AI41: =IF('Flow charts'!$A$7=$P$15,V41, IF('Flow charts'!$A$7=$Q$15,W41, IF('Flow charts'!$A$7=$R$15,X41,"SELECT BP"))) -> 10.24873933 | AJ41: 55.77414533
B42: 29 | C42: 53 | D42: 435.5 | E42: 435.5 | F42: =IF(OR(#REF!="", E42=""),"",(E42-#REF!*L42)^J42*(K42+E42*N42)) ->  | G42: 25.14260153 | H42: 25.14 | I42: -0.0001034815057 | J42: 0.502 | K42: 1.190249908 | L42: 0 | M42: 0.2 | N42: 0 | O42: 20 | P42: 20 | Q42: 20 | R42: 20 | S42: 730 | T42: 690 | U42: 425.7319909 | V42: 5.354947462 | W42: 5.354947462 | X42: 5.354947462 | Y42: 32.58563828 | Z42: 31.67673417 | AA42: 24.85790775 | AH42: =IF('Flow charts'!$A$7=$P$15,Y42, IF('Flow charts'!$A$7=$Q$15,Z42, IF('Flow charts'!$A$7=$R$15,AA42,"SELECT BP"))) -> 24.85790775 | AI42: =IF('Flow charts'!$A$7=$P$15,V42, IF('Flow charts'!$A$7=$Q$15,W42, IF('Flow charts'!$A$7=$R$15,X42,"SELECT BP"))) -> 5.354947462 | AJ42: 19.50296028
B43: 18 | C43: 53 | D43: 435.5 | E43: 435.5 | F43: =IF(OR(#REF!="", E43=""),"",(E43-#REF!*L43)^J43*(K43+E43*N43)) ->  | G43: 9.479191381 | H43: 9.481 | I43: 0.0001907624763 | J43: 0.499 | K43: 0.457 | L43: 0 | M43: 0.25 | N43: 0 | O43: 25 | P43: 25 | Q43: 25 | R43: 25 | S43: 730 | T43: 690 | U43: 472.307511 | V43: 2.277656694 | W43: 2.277656694 | X43: 2.277656694 | Y43: 12.26632048 | Z43: 11.92619473 | AA43: 9.870846568 | AH43: =IF('Flow charts'!$A$7=$P$15,Y43, IF('Flow charts'!$A$7=$Q$15,Z43, IF('Flow charts'!$A$7=$R$15,AA43,"SELECT BP"))) -> 9.870846568 | AI43: =IF('Flow charts'!$A$7=$P$15,V43, IF('Flow charts'!$A$7=$Q$15,W43, IF('Flow charts'!$A$7=$R$15,X43,"SELECT BP"))) -> 2.277656694 | AJ43: 7.593189874
B44: 11 | C44: 53 | D44: 435.5 | E44: 435.5 | F44: =IF(OR(#REF!="", E44=""),"",(E44-#REF!*L44)^J44*(K44+E44*N44)) ->  | G44: 3.843949305 | H44: 3.845 | I44: 0.000273262675 | J44: 0.48 | K44: 0.208 | L44: 0 | M44: 0.25 | N44: 0 | O44: 25 | P44: 25 | Q44: 25 | R44: 25 | S44: 730 | T44: 690 | U44: 478.7569606 | V44: 0.9751569922 | W44: 0.9751569922 | X44: 0.9751569922 | Y44: 4.925590555 | Z44: 4.794142056 | AA44: 4.022708689 | AH44: =IF('Flow charts'!$A$7=$P$15,Y44, IF('Flow charts'!$A$7=$Q$15,Z44, IF('Flow charts'!$A$7=$R$15,AA44,"SELECT BP"))) -> 4.022708689 | AI44: =IF('Flow charts'!$A$7=$P$15,V44, IF('Flow charts'!$A$7=$Q$15,W44, IF('Flow charts'!$A$7=$R$15,X44,"SELECT BP"))) -> 0.9751569922 | AJ44: 3.047551697
B45: 7 | C45: 53 | D45: 435.5 | E45: 435.5 | F45: =IF(OR(#REF!="", E45=""),"",(E45-#REF!*L45)^J45*(K45+E45*N45)) ->  | G45: 1.498368119 | H45: 1.499 | I45: 0.0004215350313 | J45: 0.5 | K45: 0.0718 | L45: 0 | M45: 0.11 | N45: 0 | O45: 25 | P45: 25 | Q45: 25 | R45: 25 | S45: 730 | T45: 690 | U45: 479.8076195 | V45: 0.359 | W45: 0.359 | X45: 0.359 | Y45: 1.939929174 | Z45: 1.886031707 | AA45: 1.572743918 | AH45: =IF('Flow charts'!$A$7=$P$15,Y45, IF('Flow charts'!$A$7=$Q$15,Z45, IF('Flow charts'!$A$7=$R$15,AA45,"SELECT BP"))) -> 1.572743918 | AI45: =IF('Flow charts'!$A$7=$P$15,V45, IF('Flow charts'!$A$7=$Q$15,W45, IF('Flow charts'!$A$7=$R$15,X45,"SELECT BP"))) -> 0.359 | AJ45: =AH45-AI45 -> 1.213743918
B46: 3 | C46: 53 | D46: 435.5 | E46: 435.5 | F46: =IF(OR(#REF!="", E46=""),"",(E46-#REF!*L46)^J46*(K46+E46*N46)) ->  | G46: 0.4114935275 | H46: 0.4116 | I46: 0.0002586796045 | J46: 0.485 | K46: 0.0216 | L46: 0 | M46: 0.3 | N46: 0 | O46: 25 | P46: 25 | Q46: 25 | R46: 25 | S46: 726 | T46: 676 | U46: 494 | V46: 0.1029093074 | W46: 0.1029093074 | X46: 0.1029093074 | Y46: 0.5272395882 | Z46: 0.5093049518 | AA46: 0.4374327766 | AB46: 1000726 | AH46: =IF('Flow charts'!$A$7=$P$15,Y46, IF('Flow charts'!$A$7=$Q$15,Z46, IF('Flow charts'!$A$7=$R$15,AA46,"SELECT BP"))) -> 0.4374327766 | AI46: =IF('Flow charts'!$A$7=$P$15,V46, IF('Flow charts'!$A$7=$Q$15,W46, IF('Flow charts'!$A$7=$R$15,X46,"SELECT BP"))) -> 0.1029093074 | AJ46: 0.3345234692
B47: 2 | C47: 53 | D47: 435.5 | E47: 435.5 | F47: =IF(OR(#REF!="", E47=""),"",(E47-#REF!*L47)^J47*(K47+E47*N47)) ->  | G47: 0.1627710185 | H47: 0.1628 | I47: 0.0001780187846 | J47: 0.53 | K47: 0.0065 | L47: 0 | M47: 0.3 | N47: 0 | O47: 25 | P47: 25 | Q47: 25 | R47: 25 | S47: 727 | T47: 685 | U47: 502 | V47: 0.03579493361 | W47: 0.03579493361 | X47: 0.03579493361 | Y47: 0.2135632859 | Z47: 0.2069328121 | AA47: 0.1755037202 | AB47: 1006308 | AH47: =IF('Flow charts'!$A$7=$P$15,Y47, IF('Flow charts'!$A$7=$Q$15,Z47, IF('Flow charts'!$A$7=$R$15,AA47,"SELECT BP"))) -> 0.1755037202 | AI47: =IF('Flow charts'!$A$7=$P$15,V47, IF('Flow charts'!$A$7=$Q$15,W47, IF('Flow charts'!$A$7=$R$15,X47,"SELECT BP"))) -> 0.03579493361 | AJ47: 0.1397087866
B48: 1 | C48: 53 | D48: 435.5 | E48: 435.5 | F48: =IF(OR(#REF!="", E48=""),"",(E48-#REF!*L48)^J48*(K48+E48*N48)) ->  | G48: 0.074954253 | H48: 0.07508 | I48: 0.001674840226 | J48: 0.5928 | K48: 0.002043638611 | L48: 0 | M48: 0.3 | N48: 0 | O48: 40 | P48: 40 | Q48: 40 | R48: 40 | S48: 727 | T48: 685 | U48: 502 | V48: 0.01820141963 | W48: 0.01820141963 | X48: 0.01820141963 | Y48: 0.1015597675 | Z48: 0.09803958635 | AA48: 0.08154198191 | AB48: 1006322 | AH48: =IF('Flow charts'!$A$7=$P$15,Y48, IF('Flow charts'!$A$7=$Q$15,Z48, IF('Flow charts'!$A$7=$R$15,AA48,"SELECT BP"))) -> 0.08154198191 | AI48: =IF('Flow charts'!$A$7=$P$15,V48, IF('Flow charts'!$A$7=$Q$15,W48, IF('Flow charts'!$A$7=$R$15,X48,"SELECT BP"))) -> 0.01820141963 | AJ48: 0.06334056228
P49: 250 | Q49: 1000 | R49: 4980 | S49: =P49 -> 250 | T49: =Q49 -> 1000 | U49: =R49 -> 4980 | V49: =P49 -> 250 | W49: =Q49 -> 1000 | X49: =R49 -> 4980 | Y49: =P49 -> 250 | Z49: =Q49 -> 1000 | AA49: =R49 -> 4980
A50: 450 | B50: 74 | C50: 53 | D50: 435.5 | E50: =IF(OR(C50="",D50="", D50<0),"---", IF(AND(C50>0, D50>=O50,D50>=ABS(C50)*M50),D50,"---")) -> 435.5 | F50: =IF(OR(#REF!="", E50=""),"",(E50-#REF!*L50)^J50*(K50+E50*N50)) ->  | G50: =IF(E50="---","---", (E50-ABS(C50)*L50)^J50*(K50+E50*N50)) -> 151.8264976 | H50: 151.9 | I50: =(H50-G50)/H50 -> 0.0004838867798 | J50: 0.5045 | K50: 7.0791 | L50: 0 | M50: 0.15 | N50: 0 | O50: 250 | P50: =IF($M50*P$49>$O50, $M50*P$49, $O50) -> 250 | Q50: =IF($M50*Q$49>$O50, $M50*Q$49, $O50) -> 250 | R50: =IF($M50*R$49>$O50, $M50*R$49, $O50) -> 747 | S50: 1520 | T50: 1480 | U50: 1480 | V50: 114.7463241 | W50: 114.7463241 | X50: 199.3279916 | Y50: 285.2450636 | Z50: 281.4330405 | AA50: 281.4330405 | AH50: =IF('Flow charts'!$A$106=$P$49,Y50, IF('Flow charts'!$A$106=$Q$49,Z50, IF('Flow charts'!$A$106=$R$49,AA50,"SELECT BP"))) -> 281.4330405 | AI50: =IF('Flow charts'!$A$106=$P$49,V50, IF('Flow charts'!$A$106=$Q$49,W50, IF('Flow charts'!$A$106=$R$49,X50,"SELECT BP"))) -> 199.3279916 | AJ50: =AH50-AI50 -> 82.10504891
B51: 74* | C51: -50.2 | D51: 515.5 | E51: =IF(OR(C51="",D51="", D51<0),"---", IF(AND(C51<0, D51>=O51,D51>=ABS(C51)*M51),D51,"---")) -> 515.5 | F51: =IF(OR(#REF!="", E51=""),"",(E51-#REF!*L51)^J51*(K51+E51*N51)) ->  | G51: 162.831727 | H51: 162.8 | I51: =(H51-G51)/H51 -> -0.0001948832518 | J51: 0.5045 | K51: 6.973 | L51: 0 | M51: 0.15 | N51: 0 | O51: 250 | P51: =IF($M51*P$49>$O51, $M51*P$49, $O51) -> 250 | Q51: 250 | R51: 747 | S51: 1520 | T51: 1480 | U51: 1480 | V51: 113.0265313 | W51: 113.0265313 | X51: 196.3405073 | Y51: 280.9698731 | Z51: 277.2149837 | AA51: 277.2149837 | AH51: =IF('Flow charts'!$A$106=$P$49,Y51, IF('Flow charts'!$A$106=$Q$49,Z51, IF('Flow charts'!$A$106=$R$49,AA51,"SELECT BP"))) -> 277.2149837 | AI51: =IF('Flow charts'!$A$106=$P$49,V51, IF('Flow charts'!$A$106=$Q$49,W51, IF('Flow charts'!$A$106=$R$49,X51,"SELECT BP"))) -> 196.3405073 | AJ51: =AH51-AI51 -> 80.87447643
B52: 47 | C52: -56.6 | D52: 435.5 | E52: =IF(OR(C52="",D52="", D52<0),"---", IF(AND(D52>=O52,D52>=ABS(C52)*M52),D52,"---")) -> 435.5 | F52: =IF(OR(#REF!="", E52=""),"",(E52-#REF!*L52)^J52*(K52+E52*N52)) ->  | G52: 65.01110677 | H52: 65.02 | I52: =(H52-G52)/H52 -> 0.0001367768859 | J52: 0.488 | K52: 3.350899 | L52: 0 | M52: 0.12 | N52: 0 | O52: 250 | P52: 250 | Q52: 250 | R52: 597.6 | S52: 4985 | T52: 1280 | U52: 4985 | V52: 49.58565588 | W52: 49.58565588 | X52: 75.86643996 | Y52: 213.6101757 | Z52: 110.0220678 | AA52: 213.6101757 | AH52: =IF('Flow charts'!$A$106=$P$49,Y52, IF('Flow charts'!$A$106=$Q$49,Z52, IF('Flow charts'!$A$106=$R$49,AA52,"SELECT BP"))) -> 213.6101757 | AI52: =IF('Flow charts'!$A$106=$P$49,V52, IF('Flow charts'!$A$106=$Q$49,W52, IF('Flow charts'!$A$106=$R$49,X52,"SELECT BP"))) -> 75.86643996 | AJ52: 137.7437358
B53: 29 | C53: -50.2 | D53: 515.5 | E53: 515.5 | F53: =IF(OR(#REF!="", E53=""),"",(E53-#REF!*L53)^J53*(K53+E53*N53)) ->  | G53: 25.53922018 | H53: 25.55 | I53: 0.000421910766 | J53: 0.4989 | K53: 1.1326005 | L53: 0 | M53: 0.15 | N53: 0 | O53: 250 | P53: 250 | Q53: 250 | R53: 747 | S53: 4985 | T53: 1355 | U53: 4985 | V53: 17.79954986 | W53: 17.79954986 | X53: 30.7309791 | Y53: 79.22128794 | Z53: 41.36197458 | AA53: 79.22128794 | AH53: =IF('Flow charts'!$A$106=$P$49,Y53, IF('Flow charts'!$A$106=$Q$49,Z53, IF('Flow charts'!$A$106=$R$49,AA53,"SELECT BP"))) -> 79.22128794 | AI53: =IF('Flow charts'!$A$106=$P$49,V53, IF('Flow charts'!$A$106=$Q$49,W53, IF('Flow charts'!$A$106=$R$49,X53,"SELECT BP"))) -> 30.7309791 | AJ53: 48.49030884
B54: 18 | C54: 53 | D54: 435.5 | E54: 435.5 | F54: =IF(OR(#REF!="", E54=""),"",(E54-#REF!*L54)^J54*(K54+E54*N54)) ->  | G54: 8.952049658 | H54: 8.954 | I54: 0.000217818004 | J54: 0.4993 | K54: 0.4308 | L54: 0 | M54: 0.15 | N54: 0 | O54: 250 | P54: 250 | Q54: 250 | R54: 747 | S54: 4985 | T54: 4985 | U54: 4985 | V54: 6.785270111 | W54: 6.785270111 | X54: 11.71992065 | Y54: 30.23569184 | Z54: 30.23569184 | AA54: 30.23569184 | AH54: =IF('Flow charts'!$A$106=$P$49,Y54, IF('Flow charts'!$A$106=$Q$49,Z54, IF('Flow charts'!$A$106=$R$49,AA54,"SELECT BP"))) -> 30.23569184 | AI54: =IF('Flow charts'!$A$106=$P$49,V54, IF('Flow charts'!$A$106=$Q$49,W54, IF('Flow charts'!$A$106=$R$49,X54,"SELECT BP"))) -> 11.71992065 | AJ54: 18.51577119
B55: 11 | C55: 53 | D55: 435.5 | E55: 435.5 | F55: =IF(OR(#REF!="", E55=""),"",(E55-#REF!*L55)^J55*(K55+E55*N55)) ->  | G55: 3.555228896 | H55: 3.556 | I55: 0.0002168460066 | J55: 0.5022 | K55: 0.1681 | L55: 0 | M55: 0.14 | N55: 0 | O55: 250 | P55: 250 | Q55: 250 | R55: 697.2 | S55: 4985 | T55: 4985 | U55: 4985 | V55: 2.690377274 | W55: 2.690377274 | X55: 4.502998361 | Y55: 12.09303078 | Z55: 12.09303078 | AA55: 12.09303078 | AH55: =IF('Flow charts'!$A$106=$P$49,Y55, IF('Flow charts'!$A$106=$Q$49,Z55, IF('Flow charts'!$A$106=$R$49,AA55,"SELECT BP"))) -> 12.09303078 | AI55: =IF('Flow charts'!$A$106=$P$49,V55, IF('Flow charts'!$A$106=$Q$49,W55, IF('Flow charts'!$A$106=$R$49,X55,"SELECT BP"))) -> 4.502998361 | AJ55: 7.590032415
B56: 7 | C56: 53 | D56: 435.5 | E56: 435.5 | F56: =IF(OR(#REF!="", E56=""),"",(E56-#REF!*L56)^J56*(K56+E56*N56)) ->  | G56: 1.395374603 | H56: 1.396 | I56: 0.0004479918193 | J56: 0.5009 | K56: 0.0665 | L56: 0 | M56: 0.08 | N56: 0 | O56: 250 | P56: 250 | Q56: 250 | R56: 398.4 | S56: 4985 | T56: 4985 | U56: 4985 | V56: 1.056695348 | W56: 1.056695348 | X56: 1.334509278 | Y56: 4.731317854 | Z56: 4.731317854 | AA56: 4.731317854 | AH56: =IF('Flow charts'!$A$106=$P$49,Y56, IF('Flow charts'!$A$106=$Q$49,Z56, IF('Flow charts'!$A$106=$R$49,AA56,"SELECT BP"))) -> 4.731317854 | AI56: =IF('Flow charts'!$A$106=$P$49,V56, IF('Flow charts'!$A$106=$Q$49,W56, IF('Flow charts'!$A$106=$R$49,X56,"SELECT BP"))) -> 1.334509278 | AJ56: 3.396808575
B57: 3 | C57: 53 | D57: 435.5 | E57: 435.5 | F57: =IF(OR(#REF!="", E57=""),"",(E57-#REF!*L57)^J57*(K57+E57*N57)) ->  | G57: 0.3998328998 | H57: 0.3999 | I57: 0.0001677924648 | J57: 0.554 | K57: 0.0138 | L57: 0 | M57: 0.1 | N57: 0 | O57: 250 | P57: 250 | Q57: 250 | R57: 498 | S57: 3500 | T57: 3500 | U57: 3750 | V57: 0.293993583 | W57: 0.293993583 | X57: 0.4306695259 | Y57: 1.268506751 | Z57: 1.268506751 | AA57: 1.317930197 | AH57: =IF('Flow charts'!$A$106=$P$49,Y57, IF('Flow charts'!$A$106=$Q$49,Z57, IF('Flow charts'!$A$106=$R$49,AA57,"SELECT BP"))) -> 1.317930197 | AI57: =IF('Flow charts'!$A$106=$P$49,V57, IF('Flow charts'!$A$106=$Q$49,W57, IF('Flow charts'!$A$106=$R$49,X57,"SELECT BP"))) -> 0.4306695259 | AJ57: 0.8872606707
B58: 2 | C58: 53 | D58: 435.5 | E58: 435.5 | F58: =IF(OR(#REF!="", E58=""),"",(E58-#REF!*L58)^J58*(K58+E58*N58)) ->  | G58: 0.1627710185 | H58: 0.1628 | I58: 0.0001780187846 | J58: 0.53 | K58: 0.0065 | L58: 0 | M58: 0.12 | N58: 0 | O58: 350 | P58: 350 | Q58: 350 | R58: 597.6 | S58: 3500 | T58: 3500 | U58: 3500 | V58: 0.1449670897 | W58: 0.1449670897 | X58: 0.1924912394 | Y58: 0.4912125116 | Z58: 0.4912125116 | AA58: 0.4912125116 | AH58: =IF('Flow charts'!$A$106=$P$49,Y58, IF('Flow charts'!$A$106=$Q$49,Z58, IF('Flow charts'!$A$106=$R$49,AA58,"SELECT BP"))) -> 0.4912125116 | AI58: =IF('Flow charts'!$A$106=$P$49,V58, IF('Flow charts'!$A$106=$Q$49,W58, IF('Flow charts'!$A$106=$R$49,X58,"SELECT BP"))) -> 0.1924912394 | AJ58: 0.2987212723
B59: 1 | C59: 53 | D59: 435.5 | E59: 435.5 | F59: =IF(OR(#REF!="", E59=""),"",(E59-#REF!*L59)^J59*(K59+E59*N59)) ->  | G59: 0.06130043222 | H59: 0.06131 | I59: 0.0001560558167 | J59: 0.56 | K59: 0.00204 | L59: 0 | M59: 0.12 | N59: 0 | O59: 350 | P59: 350 | Q59: 350 | R59: 597.6 | S59: 3500 | T59: 3500 | U59: 3500 | V59: 0.05423857517 | W59: 0.05423857517 | X59: 0.07318466634 | Y59: 0.1969283637 | Z59: 0.1969283637 | AA59: 0.1969283637 | AH59: =IF('Flow charts'!$A$106=$P$49,Y59, IF('Flow charts'!$A$106=$Q$49,Z59, IF('Flow charts'!$A$106=$R$49,AA59,"SELECT BP"))) -> 0.1969283637 | AI59: =IF('Flow charts'!$A$106=$P$49,V59, IF('Flow charts'!$A$106=$Q$49,W59, IF('Flow charts'!$A$106=$R$49,X59,"SELECT BP"))) -> 0.07318466634 | AJ59: 0.1237436973
P60: 0 | Q60: 50 | R60: 75 | S60: 0 | T60: 50 | U60: 75 | V60: 0 | W60: 50 | X60: 75 | Y60: 0 | Z60: 50 | AA60: 75
A61: 3000SR | B61: Open | C61: 53 | D61: 435.5 | E61: =IF(OR(C61="",D61="", D61<0),"---", IF(AND(D61>=O61,D61>=ABS(C61)*M61),D61,"---")) -> 435.5 | F61: =IF(OR(#REF!="", E61=""),"",(E61-#REF!*L61)^J61*(K61+E61*N61)) ->  | G61: =IF(E61="---","---", (E61-ABS(C61)*L61)^J61*(K61+E61*N61)) -> 11208.77125 | H61: 11210 | I61: =(H61-G61)/H61 -> 0.0001096117885 | J61: 0.5214 | K61: 519.6183 | L61: -0.07 | M61: 0.8 | N61: -0.115 | O61: 8.6 | P61: =IF($M61*P$60>$O61, $M61*P$60, $O61) -> 8.6 | Q61: =IF($M61*Q$60>$O61, $M61*Q$60, $O61) -> 40 | R61: =IF($M61*R$60>$O61, $M61*R$60, $O61) -> 60 | V61: =($P61-ABS(V$60)*$L61)^$J61*($K61+$P61*$N61) -> 1592.592041 | W61: =($Q61-ABS(W$60)*$L61)^$J61*($K61+$Q61*$N61) -> 3682.39998 | X61: =($R61-ABS(X$60)*$L61)^$J61*($K61+$R61*$N61) -> 4528.987267
B62: A | C62: -56.6 | D62: 165 | E62: 165 | F62: =IF(OR(#REF!="", E62=""),"",(E62-#REF!*L62)^J62*(K62+E62*N62)) ->  | G62: 3500.923539 | H62: 3500 | I62: =(H62-G62)/H62 -> -0.0002638682351 | J62: 0.503 | K62: 264.9959 | L62: -0.075 | M62: 1 | N62: 0 | O62: 12 | P62: =IF($M62*P$60>$O62, $M62*P$60, $O62) -> 12 | Q62: 50 | R62: 75 | V62: =($P62-ABS(V$60)*$L62)^$J62*($K62+$P62*$N62) -> 924.8415255 | W62: =($Q62-ABS(W$60)*$L62)^$J62*($K62+$Q62*$N62) -> 1966.163023 | X62: =($R62-ABS(X$60)*$L62)^$J62*($K62+$R62*$N62) -> 2410.979
B63: B | C63: 53 | D63: 435.5 | E63: 435.5 | F63: =IF(OR(#REF!="", E63=""),"",(E63-#REF!*L63)^J63*(K63+E63*N63)) ->  | G63: 3649.55728 | H63: 3650 | I63: 0.0001212930434 | J63: 0.5 | K63: 174.8824 | L63: 0 | M63: 0.3 | N63: 0 | O63: 10 | P63: 10 | Q63: 15 | R63: 22.5 | V63: 553.0267067 | W63: 677.3166227 | X63: 829.54006
B64: C8 | C64: 53 | D64: 435.5 | E64: 435.5 | F64: =IF(OR(#REF!="", E64=""),"",(E64-#REF!*L64)^J64*(K64+E64*N64)) ->  | G64: 1785.769955 | H64: 1786 | I64: 0.0001288048207 | J64: 0.5 | K64: 78.5 | L64: -0.02 | M64: 0.5 | N64: 0.016 | O64: 10 | P64: 10 | Q64: 25 | R64: 37.5 | V64: 248.7447607 | W64: 402.3126396 | X64: 493.9793417
B65: C6 | C65: 53 | D65: 435.5 | E65: 435.5 | F65: =IF(OR(#REF!="", E65=""),"",(E65-#REF!*L65)^J65*(K65+E65*N65)) ->  | G65: 1351.677041 | H65: 1352 | I65: 0.0002388750685 | J65: 0.505 | K65: 61.3 | L65: 0.054 | M65: 0.5 | N65: 0.004 | O65: 10 | P65: 10 | Q65: 25 | R65: 37.5 | V65: 196.220226 | W65: 294.4844227 | X65: 361.69452
B66: C4 | C66: 53 | D66: 435.5 | E66: 435.5 | F66: =IF(OR(#REF!="", E66=""),"",(E66-#REF!*L66)^J66*(K66+E66*N66)) ->  | G66: 926.5226654 | H66: 926.7 | I66: 0.0001913613767 | J66: 0.5077 | K66: 42 | L66: 0.009 | M66: 0.5 | N66: 0.0009 | O66: 10 | P66: 10 | Q66: 25 | R66: 37.5 | V66: 135.2204396 | W66: 213.4081646 | X66: 262.2580416
B67: C2 | C67: 53 | D67: 435.5 | E67: 435.5 | F67: =IF(OR(#REF!="", E67=""),"",(E67-#REF!*L67)^J67*(K67+E67*N67)) ->  | G67: 504.6259843 | H67: 504.7 | I67: 0.0001466529379 | J67: 0.52 | K67: 22 | L67: 0.11 | M67: 0.5 | N67: -0.001 | O67: 10 | P67: 10 | Q67: 25 | R67: 37.5 | V67: 72.81573361 | W67: 102.9785759 | X67: 127.07708
B68: C1 | C68: 53 | D68: 435.5 | E68: 435.5 | F68: =IF(OR(#REF!="", E68=""),"",(E68-#REF!*L68)^J68*(K68+E68*N68)) ->  | G68: 300.3098351 | H68: 300.4 | I68: 0.0003001495883 | J68: 0.541 | K68: 11.9239 | L68: 0.13 | M68: 0.4 | N68: -0.0014 | O68: 10 | P68: 10 | Q68: 20 | R68: 30 | V68: 41.39120929 | W68: 48.63040355 | X68: 60.48697043
B69: L4 | C69: 53 | D69: 435.5 | E69: =IF(OR(C69="",D69="", D69<0),"---", IF(AND(D69>=O69,D69>=ABS(C69)*M69),D69,"---")) -> 435.5 | F69: =IF(OR(#REF!="", E69=""),"",(E69-#REF!*L69)^J69*(K69+E69*N69)) ->  | G69: =IF(E69="---","---", (E69-ABS(C69)*L69)^J69*(K69+E69*N69)) -> 78.9663795 | H69: 78.98 | I69: 0.0001724550319 | J69: 0.48 | K69: 4.0995 | L69: 0.003 | M69: 1 | N69: 0.0004 | O69: 10 | P69: 10 | Q69: 50 | R69: 75 | V69: 12.39237188 | W69: 26.89823511 | X69: 32.75673089
B70: L2 | C70: 53 | D70: 435.5 | E70: 435.5 | F70: =IF(OR(#REF!="", E70=""),"",(E70-#REF!*L70)^J70*(K70+E70*N70)) ->  | G70: 44.59973606 | H70: 44.61 | I70: 0.0002300816054 | J70: 0.502 | K70: 2.0678 | L70: 0 | M70: 0.5 | N70: 0.0001 | O70: 10 | P70: 10 | Q70: 25 | R70: 37.5 | V70: 6.572317077 | W70: 10.41835535 | X70: 12.77788916
B71: L1 | C71: 53 | D71: 435.5 | E71: 435.5 | F71: =IF(OR(#REF!="", E71=""),"",(E71-#REF!*L71)^J71*(K71+E71*N71)) ->  | G71: 23.88095559 | H71: 23.89 | I71: 0.0003785855598 | J71: 0.4925 | K71: 1.1614 | L71: 0.1 | M71: 0.5 | N71: 0.0001 | O71: 10 | P71: 10 | Q71: 25 | R71: 37.5 | V71: 3.612897173 | W71: 5.08947448 | X71: 6.221055237
G74: Flow = PN*K (Open, Ring A, B8) Flow = P3*a+P2*b+P*c+d+(g-|PrA|)*f (B4) P is calculated depending: If PrA<0: P = |PrB|-|PrA| If PrA>0: P = PrB Conditions that must be true, or else “---“ is displayed for flow result: If PrA<0: (|PrB|-|PrA|)>MF, (|PrB|-|PrA|)>PrA*K2 If PrA>0: PrB>=MF, PrB>=|PrA|*K2
C75: Enter Pressures appearing on gauge | E75: Fan Pressure used in flow equations | T75: min Fan Pressure, Pa | V75: max Fan Pressure, Pa | X75: min Flow, CFM | Z75: max Flow, CFM
A76: Device | B76: Range | C76: PrA, Pa | D76: PrB, Pa | E76: P, Pa | F76: CFM calculation | G76: CFM displayed on DM32 | H76: build 68 reading | I76: Error | J76: N | K76: K | L76: g | M76: f | N76: a | O76: b | P76: c | Q76: d | R76: K2 | S76: MF | T76: 250 | U76: 500 | V76: 250 | W76: 500 | X76: 250 | Y76: 500 | Z76: 250 | AA76: 500 | AH76: high | AI76: low | AJ76: delta
A77: 4000 | B77: Open | C77: -56.6 | D77: 165 | E77: =IF(OR(C77="",D77="",D77<0),"", IF(AND(C77>=0,D77>=S77, D77>=ABS(C77)*R77),D77, IF(AND(C77<0, (ABS(D77)-ABS(C77))>=S77, (ABS(D77)-ABS(C77))>=ABS(C77)*R77),(ABS(D77)-ABS(C77)),"---"))) -> 108.4 | F77: =IF(OR(#REF!="", E77=""),"",E77^J77*K77) ->  | G77: =IF(E77="---","---", E77^J77*K77) -> 5392.349506 | H77: 5390 | I77: =(H77-G77)/H77 -> -0.0004359010115 | J77: 0.53 | K77: 450 | R77: 0.2 | S77: 10 | T77: =IF($R77*T$76>$S77, $R77*T$76, $S77) -> 50 | U77: =IF($R77*U$76>$S77, $R77*U$76, $S77) -> 100 | V77: 195 | W77: 105 | X77: =T77^$J77*$K77 -> 3578.216517 | Y77: =U77^$J77*$K77 -> 5166.691297 | Z77: 7360.898984 | AA77: 5302.038076 | AH77: =IF('Flow charts'!$A$172=$T$76,Z77, IF('Flow charts'!$A$172=$U$76,AA77, "SELECT BP")) -> 7360.898984 | AI77: =IF('Flow charts'!$A$172=$T$76,X77, IF('Flow charts'!$A$172=$U$76,Y77, "SELECT BP")) -> 3578.216517 | AJ77: =AH77-AI77 -> 3782.682467
B78: Ring A | C78: 53 | D78: 435.5 | E78: =IF(OR(C78="",D78="",D78<0),"", IF(AND(C78>=0,D78>=S78, D78>=ABS(C78)*R78),D78, IF(AND(C78<0, (ABS(D78)-ABS(C78))>=S78, (ABS(D78)-ABS(C78))>=ABS(C78)*R78),(ABS(D78)-ABS(C78)),"---"))) -> 435.5 | F78: =IF(OR(#REF!="", E78=""),"",E78^J78*K78) ->  | G78: =IF(E78="---","---", E78^J78*K78) -> 5715.187882 | H78: 5716 | I78: =(H78-G78)/H78 -> 0.0001420780976 | J78: 0.485 | K78: 300 | R78: 0.2 | S78: 20 | T78: =IF($R78*T$76>$S78, $R78*T$76, $S78) -> 50 | U78: 100 | V78: 395 | W78: 213 | X78: =T78^$J78*$K78 -> 2000.42239 | Y78: 2799.762902 | Z78: 5450.933027 | AA78: 4040.037185 | AH78: =IF('Flow charts'!$A$172=$T$76,Z78, IF('Flow charts'!$A$172=$U$76,AA78, "SELECT BP")) -> 5450.933027 | AI78: =IF('Flow charts'!$A$172=$T$76,X78, IF('Flow charts'!$A$172=$U$76,Y78, "SELECT BP")) -> 2000.42239 | AJ78: =AH78-AI78 -> 3450.510637
B79: B8 | C79: 53 | D79: 435.5 | E79: =IF(OR(C79="",D79="",D79<0),"", IF(AND(C79>=0,D79>=S79, D79>=ABS(C79)*R79),D79, IF(AND(C79<0, (ABS(D79)-ABS(C79))>=S79, (ABS(D79)-ABS(C79))>=ABS(C79)*R79),(ABS(D79)-ABS(C79)),"---"))) -> 435.5 | F79: =IF(OR(#REF!="", E79=""),"",E79^J79*K79) ->  | G79: =IF(E79="---","---", E79^J79*K79) -> 2992.799095 | H79: 2993 | I79: =(H79-G79)/H79 -> 6.712506899e-05 | J79: 0.52 | K79: 127 | R79: 0.2 | S79: 15 | T79: 50 | U79: 100 | V79: 660 | W79: 330 | X79: =T79^$J79*$K79 -> 971.1093223 | Y79: 1392.527309 | Z79: 3715.066289 | AA79: 2590.782589 | AH79: =IF('Flow charts'!$A$172=$T$76,Z79, IF('Flow charts'!$A$172=$U$76,AA79, "SELECT BP")) -> 3715.066289 | AI79: =IF('Flow charts'!$A$172=$T$76,X79, IF('Flow charts'!$A$172=$U$76,Y79, "SELECT BP")) -> 971.1093223 | AJ79: =AH79-AI79 -> 2743.956967
B80: B4 | C80: 53 | D80: 435.5 | E80: =IF(OR(C80="",D80="",D80<0),"", IF(AND(C80>=0,D80>=S80, D80>=ABS(C80)*R80),D80, IF(AND(C80<0, (ABS(D80)-ABS(C80))>=S80, (ABS(D80)-ABS(C80))>=ABS(C80)*R80),(ABS(D80)-ABS(C80)),"---"))) -> 435.5 | F80: =IF(OR(#REF!="", E80=""),"",E80^3*N80+E80^2*O80+E80*P80+Q80+(L80-#REF!)*M80) ->  | G80: =IF(E80="---","---", E80^3*N80+E80^2*O80+E80*P80+Q80+(L80-ABS(C80))*M80) -> 1303.967447 | H80: 1304 | I80: =(H80-G80)/H80 -> 2.496368673e-05 | L80: 0 | M80: 0.7 | N80: 6.62e-06 | O80: -0.0078 | P80: 4.75 | Q80: 205 | R80: 0.2 | S80: 25 | T80: 50 | U80: 100 | V80: 485 | W80: 425 | X80: =T80^3*$N80+T80^2*$O80+T80*$P80+$Q80+($L80-ABS(X$76))*$M80 -> 248.8275 | Y80: =U80^3*$N80+U80^2*$O80+U80*$P80+$Q80+($L80-ABS(Y$76))*$M80 -> 258.62 | Z80: =V80^3*$N80+V80^2*$O80+V80*$P80+$Q80+($L80-ABS(Z$76))*$M80 -> 1254.231908 | AA80: =W80^3*$N80+W80^2*$O80+W80*$P80+$Q80+($L80-ABS(AA$76))*$M80 -> 973.0634375 | AH80: =IF('Flow charts'!$A$172=$T$76,Z80, IF('Flow charts'!$A$172=$U$76,AA80, "SELECT BP")) -> 1254.231908 | AI80: =IF('Flow charts'!$A$172=$T$76,X80, IF('Flow charts'!$A$172=$U$76,Y80, "SELECT BP")) -> 248.8275 | AJ80: =AH80-AI80 -> 1005.404408
G83: Flow = (P-|PrA|)*K1)N*(K+P*K3) (1000, 2000, 3000 fans - all ranges) Flow = PN*K (5000, 6000 fans - Open, Ring A, B8) Flow = P3*a+P2*b+P*c+d+(g-|PrA|)*f (5000, 6000 fans - B4, B2, B1, B74, B47, B29) P is calculated depending: If PrA>0: P = |PrB|-PrA If PrA<0: P = PrB Conditions that must be true, or else “---“ is displayed for flow result: If PrA>0: (|PrB|-PrA)>MF, (|PrB|-PrA)>PrA*K2 If PrA<0: PrB>=MF, PrB>=|PrA|*K2
C84: Enter Pressures appearing on gauge | E84: Fan Pressure used in flow equations | P84: min Fan Pressure, Pa | S84: max Fan Pressure, Pa | V84: min Flow, CFM | Y84: max Flow, CFM
A85: Device | B85: Range | C85: PrA, Pa | D85: PrB, Pa | E85: P, Pa | F85: CFM calculation | G85: CFM displayed on DM32 | H85: build 68 reading | I85: Error | J85: N | K85: K | L85: K1 | M85: K2 | N85: K3 | O85: MF | P85: 0 | Q85: 50 | R85: 75 | S85: 0 | T85: 50 | U85: 75 | V85: 0 | W85: 50 | X85: 75 | Y85: 0 | Z85: 50 | AA85: 75
A86: 1000 2000 3000 | B86: Open | C86: 77.7 | D86: 230.5 | E86: =IF(OR(C86="",D86="",D86<0),"", IF(AND(C86<=0,D86>=O86, D86>=ABS(C86)*M86),D86, IF(AND(C86>0, (ABS(D86)-C86)>=O86, (ABS(D86)-C86)>=ABS(C86)*M86),(ABS(D86)-C86),"---"))) -> 152.8 | F86: =IF(OR(#REF!="", E86=""),"",(E86-#REF!*L86)^J86*(K86+E86*N86)) ->  | G86: =IF(E86="---","---", (E86-ABS(C86)*L86)^J86*(K86+E86*N86)) -> 7038.268737 | H86: 7036 | I86: =(H86-G86)/H86 -> -0.0003224469362 | J86: 0.5214 | K86: 519.6183 | L86: -0.07 | M86: 0.8 | N86: -0.115 | O86: 8.6 | P86: =IF($M86*P$85>$O86, $M86*P$85, $O86) -> 8.6 | Q86: =IF($M86*Q$85>$O86, $M86*Q$85, $O86) -> 40 | R86: =IF($M86*R$85>$O86, $M86*R$85, $O86) -> 60 | V86: =($P86-ABS(V$85)*$L86)^$J86*($K86+$P86*$N86) -> 1592.592041 | W86: =($Q86-ABS(W$85)*$L86)^$J86*($K86+$Q86*$N86) -> 3682.39998 | X86: =($R86-ABS(X$85)*$L86)^$J86*($K86+$R86*$N86) -> 4528.987267
B87: A | C87: -56.6 | D87: 165 | E87: =IF(OR(C87="",D87="",D87<0),"", IF(AND(C87<=0,D87>=O87, D87>=ABS(C87)*M87),D87, IF(AND(C87>0, (ABS(D87)-C87)>=O87, (ABS(D87)-C87)>=ABS(C87)*M87),(ABS(D87)-C87),"---"))) -> 165 | F87: =IF(OR(#REF!="", E87=""),"",(E87-#REF!*L87)^J87*(K87+E87*N87)) ->  | G87: =IF(E87="---","---", (E87-ABS(C87)*L87)^J87*(K87+E87*N87)) -> 3500.923539 | H87: 3500 | I87: =(H87-G87)/H87 -> -0.0002638682351 | J87: 0.503 | K87: 264.9959 | L87: -0.075 | M87: 1 | N87: 0 | O87: 12 | P87: =IF($M87*P$85>$O87, $M87*P$85, $O87) -> 12 | Q87: 50 | R87: 75 | V87: =($P87-ABS(V$85)*$L87)^$J87*($K87+$P87*$N87) -> 924.8415255 | W87: =($Q87-ABS(W$85)*$L87)^$J87*($K87+$Q87*$N87) -> 1966.163023 | X87: =($R87-ABS(X$85)*$L87)^$J87*($K87+$R87*$N87) -> 2410.979
B88: B | C88: 77.7 | D88: 230.5 | E88: 152.8 | F88: =IF(OR(#REF!="", E88=""),"",(E88-#REF!*L88)^J88*(K88+E88*N88)) ->  | G88: =IF(E88="---","---", (E88-ABS(C88)*L88)^J88*(K88+E88*N88)) -> 2161.761519 | H88: 2161 | I88: -0.0003523919651 | J88: 0.5 | K88: 174.8824 | L88: 0 | M88: 0.3 | N88: 0 | O88: 10 | P88: 10 | Q88: 15 | R88: 22.5 | V88: 553.0267067 | W88: 677.3166227 | X88: 829.54006
B89: C8 | C89: 77.7 | D89: 230.5 | E89: 152.8 | F89: =IF(OR(#REF!="", E89=""),"",(E89-#REF!*L89)^J89*(K89+E89*N89)) ->  | G89: 1005.65241 | H89: 1005 | I89: -0.0006491638696 | J89: 0.5 | K89: 78.5 | L89: -0.02 | M89: 0.5 | N89: 0.016 | O89: 10 | P89: 10 | Q89: 25 | R89: 37.5 | V89: 248.7447607 | W89: 402.3126396 | X89: 493.9793417
B90: C6 | C90: 77.7 | D90: 230.5 | E90: 152.8 | F90: =IF(OR(#REF!="", E90=""),"",(E90-#REF!*L90)^J90*(K90+E90*N90)) ->  | G90: 773.8288539 | H90: 773.6 | I90: -0.0002958297467 | J90: 0.505 | K90: 61.3 | L90: 0.054 | M90: 0.5 | N90: 0.004 | O90: 10 | P90: 10 | Q90: 25 | R90: 37.5 | V90: 196.220226 | W90: 294.4844227 | X90: 361.69452
B91: C4 | C91: 77.7 | D91: 230.5 | E91: 152.8 | F91: =IF(OR(#REF!="", E91=""),"",(E91-#REF!*L91)^J91*(K91+E91*N91)) ->  | G91: 540.1781192 | H91: 540 | I91: -0.0003298503435 | J91: 0.5077 | K91: 42 | L91: 0.009 | M91: 0.5 | N91: 0.0009 | O91: 10 | P91: 10 | Q91: 25 | R91: 37.5 | V91: 135.2204396 | W91: 213.4081646 | X91: 262.2580416
B92: C2 | C92: 77.7 | D92: 230.5 | E92: 152.8 | F92: =IF(OR(#REF!="", E92=""),"",(E92-#REF!*L92)^J92*(K92+E92*N92)) ->  | G92: 289.8282459 | H92: 289.7 | I92: -0.0004426853055 | J92: 0.52 | K92: 22 | L92: 0.11 | M92: 0.5 | N92: -0.001 | O92: 10 | P92: 10 | Q92: 25 | R92: 37.5 | V92: 72.81573361 | W92: 102.9785759 | X92: 127.07708
B93: C1 | C93: 77.7 | D93: 230.5 | E93: 152.8 | F93: =IF(OR(#REF!="", E93=""),"",(E93-#REF!*L93)^J93*(K93+E93*N93)) ->  | G93: 171.4343623 | H93: 171.4 | I93: -0.0002004801576 | J93: 0.541 | K93: 11.9239 | L93: 0.13 | M93: 0.4 | N93: -0.0014 | O93: 10 | P93: 10 | Q93: 20 | R93: 30 | V93: 41.39120929 | W93: 48.63040355 | X93: 60.48697043
B94: L4 | C94: 77.7 | D94: 230.5 | E94: 152.8 | F94: =IF(OR(#REF!="", E94=""),"",(E94-#REF!*L94)^J94*(K94+E94*N94)) ->  | G94: 46.4749581 | H94: 46.46 | I94: -0.0003219565249 | J94: 0.48 | K94: 4.0995 | L94: 0.003 | M94: 1 | N94: 0.0004 | O94: 10 | P94: 10 | Q94: 50 | R94: 75 | V94: 12.39237188 | W94: 26.89823511 | X94: 32.75673089
B95: L2 | C95: 77.7 | D95: 230.5 | E95: 152.8 | F95: =IF(OR(#REF!="", E95=""),"",(E95-#REF!*L95)^J95*(K95+E95*N95)) ->  | G95: 26.00973174 | H95: 26 | I95: -0.0003742978165 | J95: 0.502 | K95: 2.0678 | L95: 0 | M95: 0.5 | N95: 0.0001 | O95: 10 | P95: 10 | Q95: 25 | R95: 37.5 | V95: 6.572317077 | W95: 10.41835535 | X95: 12.77788916
B96: L1 | C96: 77.7 | D96: 230.5 | E96: 152.8 | F96: =IF(OR(#REF!="", E96=""),"",(E96-#REF!*L96)^J96*(K96+E96*N96)) ->  | G96: =IF(E96="---","---", (E96-ABS(C96)*L96)^J96*(K96+E96*N96)) -> 13.65137389 | H96: 13.65 | I96: -0.000100651246 | J96: 0.4925 | K96: 1.1614 | L96: 0.1 | M96: 0.5 | N96: 0.0001 | O96: 10 | P96: 10 | Q96: 25 | R96: 37.5 | V96: 3.612897173 | W96: 5.08947448 | X96: 6.221055237
T97: min Fan Pressure, Pa | W97: max Fan Pressure, Pa | Z97: min Flow, CFM | AC97: max Flow, CFM
H98: build 68 reading | I98: Error | J98: N | K98: K | L98: g | M98: f | N98: a | O98: b | P98: c | Q98: d | R98: K2 | S98: MF | T98: 0 | U98: 50 | V98: 75 | W98: 0 | X98: 50 | Y98: 75 | Z98: 0 | AA98: 50 | AB98: 75 | AC98: 0 | AD98: 50 | AE98: 75 | AH98: high | AI98: low | AJ98: delta
A99: 5000 | B99: Open | C99: 53 | D99: 435.5 | E99: =IF(OR(C99="",D99="",D99<0),"", IF(AND(C99<=0,D99>=S99, D99>=ABS(C99)*R99),D99, IF(AND(C99>0, (ABS(D99)-C99)>=S99, (ABS(D99)-C99)>=ABS(C99)*R99),(ABS(D99)-C99),"---"))) -> 382.5 | F99: =IF(OR(#REF!="", E99=""),"",E99^J99*K99) ->  | G99: =IF(E99="---","---", E99^J99*K99) -> 10590.85483 | H99: 10592 | I99: =(H99-G99)/H99 -> 0.000108116057 | J99: 0.498 | K99: 548 | R99: 0.3 | S99: 10 | T99: =IF($R99*T$98>$S99, $R99*T$98, $S99) -> 10 | U99: =IF($R99*U$98>$S99, $R99*U$98, $S99) -> 15 | V99: =IF($R99*V$98>$S99, $R99*V$98, $S99) -> 22.5 | W99: 140 | X99: 110 | Y99: =W99*0.7 -> 98 | Z99: =T99^$J99*$K99 -> 1724.966076 | AA99: 2110.930843 | AB99: 2583.256034 | AC99: 6420.255628 | AD99: 5693.693906 | AE99: 5375.404421 | AH99: =IF('Flow charts'!$A$205=$T$98,AC99, IF('Flow charts'!$A$205=$U$98,AD99, IF('Flow charts'!$A$205=$V$98,AE99,"SELECT BP"))) -> 6420.255628 | AI99: =IF('Flow charts'!$A$205=$T$98,Z99, IF('Flow charts'!$A$205=$U$98,AA99, IF('Flow charts'!$A$205=$V$98,AB99,"SELECT BP"))) -> 1724.966076 | AJ99: =AH99-AI99 -> 4695.289552
B100: Ring A | C100: -56.6 | D100: 165 | E100: =IF(OR(C100="",D100="",D100<0),"", IF(AND(C100<=0,D100>=S100, D100>=ABS(C100)*R100),D100, IF(AND(C100>0, (ABS(D100)-C100)>=S100, (ABS(D100)-C100)>=ABS(C100)*R100),(ABS(D100)-C100),"---"))) -> 165 | F100: =IF(OR(#REF!="", E100=""),"",E100^J100*K100) ->  | G100: =IF(E100="---","---", E100^J100*K100) -> 3724.4216 | H100: 3724 | I100: =(H100-G100)/H100 -> -0.0001132116687 | J100: 0.502 | K100: 287 | R100: 0.4 | S100: 20 | T100: =IF($R100*T$98>$S100, $R100*T$98, $S100) -> 20 | U100: 20 | V100: 30 | W100: 236 | X100: 218.25 | Y100: =W100*0.7 -> 165.2 | Z100: 1291.216165 | AA100: 1291.216165 | AB100: 1582.69331 | AC100: 4457.421692 | AD100: 4285.849648 | AE100: 3726.687171 | AH100: =IF('Flow charts'!$A$205=$T$98,AC100, IF('Flow charts'!$A$205=$U$98,AD100, IF('Flow charts'!$A$205=$V$98,AE100,"SELECT BP"))) -> 4457.421692 | AI100: =IF('Flow charts'!$A$205=$T$98,Z100, IF('Flow charts'!$A$205=$U$98,AA100, IF('Flow charts'!$A$205=$V$98,AB100,"SELECT BP"))) -> 1291.216165 | AJ100: =AH100-AI100 -> 3166.205527
B101: B8 | C101: 53 | D101: 435.5 | E101: 382.5 | F101: =IF(OR(#REF!="", E101=""),"",E101^J101*K101) ->  | G101: =IF(E101="---","---", E101^J101*K101) -> 2809.695061 | H101: 2810 | I101: 0.000108519312 | J101: 0.54 | K101: 113.25 | R101: 0.7 | S101: 40 | T101: 40 | U101: =IF($R101*U$98>$S101, $R101*U$98, $S101) -> 40 | V101: =IF($R101*V$98>$S101, $R101*V$98, $S101) -> 52.5 | W101: 372 | X101: 307.5 | Y101: =W101*0.7 -> 260.4 | Z101: 830.1385957 | AA101: 830.1385957 | AB101: 961.4445335 | AC101: 2767.778926 | AD101: 2497.322187 | AE101: 2282.886605 | AH101: =IF('Flow charts'!$A$205=$T$98,AC101, IF('Flow charts'!$A$205=$U$98,AD101, IF('Flow charts'!$A$205=$V$98,AE101,"SELECT BP"))) -> 2767.778926 | AI101: =IF('Flow charts'!$A$205=$T$98,Z101, IF('Flow charts'!$A$205=$U$98,AA101, IF('Flow charts'!$A$205=$V$98,AB101,"SELECT BP"))) -> 830.1385957 | AJ101: 1937.64033
B102: B4 | C102: 53 | D102: 435.5 | E102: 382.5 | F102: =IF(OR(#REF!="", E102=""),"",E102^3*N102+E102^2*O102+E102*P102+Q102+(L102-#REF!)*M102) ->  | G102: =IF(E102="---","---", E102^3*N102+E102^2*O102+E102*P102+Q102+(L102-ABS(C102))*M102) -> 1265.208965 | H102: 1265 | I102: -0.0001651895705 | L102: 29 | M102: -0.19 | N102: 7.942601191e-06 | O102: -0.00864 | P102: 4.9 | Q102: 206 | R102: 0.8 | S102: 40 | T102: 40 | U102: 40 | V102: 60 | W102: 357 | X102: 315 | Y102: 300 | Z102: =T102^3*$N102+T102^2*$O102+T102*$P102+$Q102+($L102-ABS(Z$98))*$M102 -> 383.1743265 | AA102: 392.6743265 | AB102: 479.3516019 | AC102: 1210.013379 | AD102: 1144.43895 | AE102: =Y102^3*$N102+Y102^2*$O102+Y102*$P102+$Q102+($L102-ABS(Y$98))*$M102 -> 1121.590232 | AH102: =IF('Flow charts'!$A$205=$T$98,AC102, IF('Flow charts'!$A$205=$U$98,AD102, IF('Flow charts'!$A$205=$V$98,AE102,"SELECT BP"))) -> 1210.013379 | AI102: =IF('Flow charts'!$A$205=$T$98,Z102, IF('Flow charts'!$A$205=$U$98,AA102, IF('Flow charts'!$A$205=$V$98,AB102,"SELECT BP"))) -> 383.1743265 | AJ102: 826.8390523
B103: B2 | C103: 53 | D103: 435.5 | E103: 382.5 | F103: =IF(OR(#REF!="", E103=""),"",E103^3*N103+E103^2*O103+E103*P103+Q103+(L103-#REF!)*M103) ->  | G103: 535.0335588 | H103: 535.1 | I103: 0.0001241660437 | L103: 30 | M103: 0.1 | N103: 8.8e-07 | O103: -0.0029 | P103: 2.15 | Q103: 90 | R103: 1 | S103: 50 | T103: 50 | U103: 50 | V103: 75 | W103: 386 | X103: 322.5 | Y103: 300 | Z103: 193.36 | AA103: 188.36 | AB103: 230.80875 | AC103: 541.4225613 | AD103: 509.2738488 | AE103: 493.26 | AH103: =IF('Flow charts'!$A$205=$T$98,AC103, IF('Flow charts'!$A$205=$U$98,AD103, IF('Flow charts'!$A$205=$V$98,AE103,"SELECT BP"))) -> 541.4225613 | AI103: =IF('Flow charts'!$A$205=$T$98,Z103, IF('Flow charts'!$A$205=$U$98,AA103, IF('Flow charts'!$A$205=$V$98,AB103,"SELECT BP"))) -> 193.36 | AJ103: 348.0625613
B104: B1 | C104: 53 | D104: 435.5 | E104: =IF(OR(C104="",D104="",D104<0),"", IF(AND(C104<=0,D104>=S104, D104>=ABS(C104)*R104),D104, IF(AND(C104>0, (ABS(D104)-C104)>=S104, (ABS(D104)-C104)>=ABS(C104)*R104),(ABS(D104)-C104),"---"))) -> 382.5 | F104: =IF(OR(#REF!="", E104=""),"",E104^3*N104+E104^2*O104+E104*P104+Q104+(L104-#REF!)*M104) ->  | G104: =IF(E104="---","---", E104^3*N104+E104^2*O104+E104*P104+Q104+(L104-ABS(C104))*M104) -> 284.8590703 | H104: 284.9 | I104: 0.0001436633468 | L104: 30 | M104: 0 | N104: 5e-07 | O104: -0.00128 | P104: 1.02 | Q104: 54 | R104: 1 | S104: 60 | T104: 60 | U104: 60 | V104: 75 | W104: 379 | X104: 333.75 | Y104: 300 | Z104: 110.7 | AA104: 110.7 | AB104: 123.5109375 | AC104: 283.9394895 | AD104: 270.4350498 | AE104: 258.3 | AH104: =IF('Flow charts'!$A$205=$T$98,AC104, IF('Flow charts'!$A$205=$U$98,AD104, IF('Flow charts'!$A$205=$V$98,AE104,"SELECT BP"))) -> 283.9394895 | AI104: =IF('Flow charts'!$A$205=$T$98,Z104, IF('Flow charts'!$A$205=$U$98,AA104, IF('Flow charts'!$A$205=$V$98,AB104,"SELECT BP"))) -> 110.7 | AJ104: 173.2394895
B105: B74 | C105: 53 | D105: 435.5 | E105: 382.5 | F105: =IF(OR(#REF!="", E105=""),"",E105^3*N105+E105^2*O105+E105*P105+Q105+(L105-#REF!)*M105) ->  | G105: 145.1552958 | H105: 145.1 | I105: -0.000381087612 | L105: 25 | M105: 0.145 | N105: 7.96e-07 | O105: -0.0009501 | P105: 0.59 | Q105: 18 | R105: 0.8 | S105: 35 | T105: 35 | U105: 40 | V105: 60 | W105: 379 | X105: 333.75 | Y105: 300 | Z105: 41.145256 | AA105: 36.505784 | AB105: 42.901576 | AC105: 152.0958773 | AD105: 135.048927 | AE105: 123.733 | AH105: =IF('Flow charts'!$A$205=$T$98,AC105, IF('Flow charts'!$A$205=$U$98,AD105, IF('Flow charts'!$A$205=$V$98,AE105,"SELECT BP"))) -> 152.0958773 | AI105: =IF('Flow charts'!$A$205=$T$98,Z105, IF('Flow charts'!$A$205=$U$98,AA105, IF('Flow charts'!$A$205=$V$98,AB105,"SELECT BP"))) -> 41.145256 | AJ105: 110.9506213
B106: B47 | C106: 53 | D106: 435.5 | E106: 382.5 | F106: =IF(OR(#REF!="", E106=""),"",E106^3*N106+E106^2*O106+E106*P106+Q106+(L106-#REF!)*M106) ->  | G106: 65.19299858 | H106: 65.19 | I106: -4.599760412e-05 | L106: 25 | M106: 0.09 | N106: 2.69043182e-07 | O106: -0.0003590549536 | P106: 0.2435 | Q106: 12.05 | R106: 1 | S106: 50 | T106: 50 | U106: 50 | V106: 75 | W106: 379 | X106: 333.75 | Y106: 300 | Z106: 25.61099301 | AA106: 21.11099301 | AB106: 23.90631848 | AC106: 69.65818183 | AD106: 61.07530647 | AE106: 55.54922009 | AH106: =IF('Flow charts'!$A$205=$T$98,AC106, IF('Flow charts'!$A$205=$U$98,AD106, IF('Flow charts'!$A$205=$V$98,AE106,"SELECT BP"))) -> 69.65818183 | AI106: =IF('Flow charts'!$A$205=$T$98,Z106, IF('Flow charts'!$A$205=$U$98,AA106, IF('Flow charts'!$A$205=$V$98,AB106,"SELECT BP"))) -> 25.61099301 | AJ106: 44.04718882
B107: B29 | C107: 53 | D107: 435.5 | E107: 382.5 | F107: =IF(OR(#REF!="", E107=""),"",E107^3*N107+E107^2*O107+E107*P107+Q107+(L107-#REF!)*M107) ->  | G107: 24.56216636 | H107: 24.57 | I107: 0.0003188294923 | L107: 25 | M107: -0.02 | N107: 1.11e-07 | O107: -0.000149 | P107: 0.092 | Q107: 4.4 | R107: 0.6 | S107: 50 | T107: 50 | U107: 50 | V107: 50 | W107: 379 | X107: 333.75 | Y107: 300 | Z107: 8.141375 | AA107: 9.141375 | AB107: 9.641375 | AC107: 23.40832423 | AD107: 23.13457674 | AE107: 22.587 | AH107: =IF('Flow charts'!$A$205=$T$98,AC107, IF('Flow charts'!$A$205=$U$98,AD107, IF('Flow charts'!$A$205=$V$98,AE107,"SELECT BP"))) -> 23.40832423 | AI107: =IF('Flow charts'!$A$205=$T$98,Z107, IF('Flow charts'!$A$205=$U$98,AA107, IF('Flow charts'!$A$205=$V$98,AB107,"SELECT BP"))) -> 8.141375 | AJ107: 15.26694923
F108: =IF(OR(#REF!="", E108=""),"",E108^3*N108+E108^2*O108+E108*P108+Q108+(L108-#REF!)*M108) -> 
A109: 6000 | B109: Open | C109: 53 | D109: 435.5 | E109: 382.5 | F109: =IF(OR(#REF!="", E109=""),"",E109^J109*K109) ->  | G109: =IF(E109="---","---", E109^J109*K109) -> 10590.85483 | H109: 10592 | I109: =(H109-G109)/H109 -> 0.000108116057 | J109: 0.498 | K109: 548 | R109: 0.5 | S109: 25 | T109: =IF($R109*T$98>$S109, $R109*T$98, $S109) -> 25 | U109: =IF($R109*U$98>$S109, $R109*U$98, $S109) -> 25 | V109: =IF($R109*V$98>$S109, $R109*V$98, $S109) -> 37.5 | W109: 225 | X109: 204 | Y109: 188 | Z109: =T109^$J109*$K109 -> 2722.417218 | AA109: 2722.417218 | AB109: 3331.563764 | AC109: 8131.439826 | AD109: 7744.196816 | AE109: 7435.51694 | AH109: =IF('Flow charts'!$A$238=$T$98,AC109, IF('Flow charts'!$A$238=$U$98,AD109, IF('Flow charts'!$A$238=$V$98,AE109,"SELECT BP"))) -> 7744.196816 | AI109: =IF('Flow charts'!$A$238=$T$98,Z109, IF('Flow charts'!$A$238=$U$98,AA109, IF('Flow charts'!$A$238=$V$98,AB109,"SELECT BP"))) -> 2722.417218 | AJ109: =AH109-AI109 -> 5021.779598
B110: Ring A | C110: -56.6 | D110: 165 | E110: 165 | F110: =IF(OR(#REF!="", E110=""),"",E110^J110*K110) ->  | G110: =IF(E110="---","---", E110^J110*K110) -> 3724.4216 | H110: 3724 | I110: =(H110-G110)/H110 -> -0.0001132116687 | J110: 0.502 | K110: 287 | R110: 0.5 | S110: 25 | T110: =IF($R110*T$98>$S110, $R110*T$98, $S110) -> 25 | U110: 25 | V110: 37.5 | W110: 350 | X110: 275 | Y110: 245 | Z110: 1444.267974 | AA110: 1444.267974 | AB110: 1770.294798 | AC110: 5432.554038 | AD110: 4813.122432 | AE110: 4541.959644 | AH110: =IF('Flow charts'!$A$238=$T$98,AC110, IF('Flow charts'!$A$238=$U$98,AD110, IF('Flow charts'!$A$238=$V$98,AE110,"SELECT BP"))) -> 4813.122432 | AI110: =IF('Flow charts'!$A$238=$T$98,Z110, IF('Flow charts'!$A$238=$U$98,AA110, IF('Flow charts'!$A$238=$V$98,AB110,"SELECT BP"))) -> 1444.267974 | AJ110: =AH110-AI110 -> 3368.854458
B111: B8 | C111: 53 | D111: 435.5 | E111: 382.5 | F111: =IF(OR(#REF!="", E111=""),"",E111^J111*K111) ->  | G111: =IF(E111="---","---", E111^J111*K111) -> 2809.695061 | H111: 2810 | I111: 0.000108519312 | J111: 0.54 | K111: 113.25 | R111: 0.8 | S111: 40 | T111: 40 | U111: =IF($R111*U$98>$S111, $R111*U$98, $S111) -> 40 | V111: =IF($R111*V$98>$S111, $R111*V$98, $S111) -> 60 | W111: 477 | X111: 410 | Y111: 365 | Z111: 830.1385957 | AA111: 830.1385957 | AB111: 1033.332017 | AC111: 3165.469515 | AD111: 2917.034015 | AE111: 2739.531872 | AH111: =IF('Flow charts'!$A$238=$T$98,AC111, IF('Flow charts'!$A$238=$U$98,AD111, IF('Flow charts'!$A$238=$V$98,AE111,"SELECT BP"))) -> 2917.034015 | AI111: =IF('Flow charts'!$A$238=$T$98,Z111, IF('Flow charts'!$A$238=$U$98,AA111, IF('Flow charts'!$A$238=$V$98,AB111,"SELECT BP"))) -> 830.1385957 | AJ111: 2086.895419
B112: B4 | C112: 53 | D112: 435.5 | E112: 382.5 | F112: =IF(OR(#REF!="", E112=""),"",E112^3*N112+E112^2*O112+E112*P112+Q112+(L112-#REF!)*M112) ->  | G112: =IF(E112="---","---", E112^3*N112+E112^2*O112+E112*P112+Q112+(L112-ABS(C112))*M112) -> 1214.055621 | H112: 1214 | I112: -4.581625824e-05 | L112: 0 | M112: 0.7 | N112: 6.62e-06 | O112: -0.0078 | P112: 4.75 | Q112: 205 | R112: 0.8 | S112: 40 | T112: 40 | U112: 40 | V112: 60 | W112: 485 | X112: 425 | Y112: 485 | Z112: =T112^3*$N112+T112^2*$O112+T112*$P112+$Q112+($L112-ABS(Z$98))*$M112 -> 382.94368 | AA112: 347.94368 | AB112: 410.84992 | AC112: 1429.231908 | AD112: 1288.063437 | AE112: =Y112^3*$N112+Y112^2*$O112+Y112*$P112+$Q112+($L112-ABS(Y$98))*$M112 -> 1376.731908 | AH112: =IF('Flow charts'!$A$238=$T$98,AC112, IF('Flow charts'!$A$238=$U$98,AD112, IF('Flow charts'!$A$238=$V$98,AE112,"SELECT BP"))) -> 1288.063437 | AI112: =IF('Flow charts'!$A$238=$T$98,Z112, IF('Flow charts'!$A$238=$U$98,AA112, IF('Flow charts'!$A$238=$V$98,AB112,"SELECT BP"))) -> 347.94368 | AJ112: 940.1197575
B113: B2 | C113: 53 | D113: 435.5 | E113: =IF(OR(C113="",D113="",D113<0),"", IF(AND(C113<=0,D113>=S113, D113>=ABS(C113)*R113),D113, IF(AND(C113>0, (ABS(D113)-C113)>=S113, (ABS(D113)-C113)>=ABS(C113)*R113),(ABS(D113)-C113),"---"))) -> 382.5 | F113: =IF(OR(#REF!="", E113=""),"",E113^3*N113+E113^2*O113+E113*P113+Q113+(L113-#REF!)*M113) ->  | G113: =IF(E113="---","---", E113^3*N113+E113^2*O113+E113*P113+Q113+(L113-ABS(C113))*M113) -> 506.0032969 | H113: 506.1 | I113: 0.0001910751334 | L113: 40 | M113: 0.85 | N113: 3e-06 | O113: -0.0037 | P113: 2.2 | Q113: 49 | R113: 1 | S113: 50 | T113: 50 | U113: 50 | V113: 75 | W113: 466 | X113: 430 | Y113: 402 | Z113: 184.125 | AA113: 141.625 | AB113: 164.703125 | AC113: 608.306888 | AD113: 540.891 | AE113: 500.609624 | AH113: =IF('Flow charts'!$A$238=$T$98,AC113, IF('Flow charts'!$A$238=$U$98,AD113, IF('Flow charts'!$A$238=$V$98,AE113,"SELECT BP"))) -> 540.891 | AI113: =IF('Flow charts'!$A$238=$T$98,Z113, IF('Flow charts'!$A$238=$U$98,AA113, IF('Flow charts'!$A$238=$V$98,AB113,"SELECT BP"))) -> 141.625 | AJ113: 399.266
B114: B1 | C114: 53 | D114: 435.5 | E114: 382.5 | F114: =IF(OR(#REF!="", E114=""),"",E114^3*N114+E114^2*O114+E114*P114+Q114+(L114-#REF!)*M114) ->  | G114: 267.1792066 | H114: 267.2 | I114: 7.781975112e-05 | L114: 65 | M114: 0.2 | N114: 1.06e-06 | O114: -0.001382 | P114: 0.96511 | Q114: 38.5 | R114: 1 | S114: 60 | T114: 60 | U114: 60 | V114: 75 | W114: 475 | X114: 454 | Y114: 415 | Z114: 104.66036 | AA114: 94.66036 | AB114: 101.5566875 | AC114: 311.7156875 | AD114: 293.9988918 | AE114: 274.7674775 | AH114: =IF('Flow charts'!$A$238=$T$98,AC114, IF('Flow charts'!$A$238=$U$98,AD114, IF('Flow charts'!$A$238=$V$98,AE114,"SELECT BP"))) -> 293.9988918 | AI114: =IF('Flow charts'!$A$238=$T$98,Z114, IF('Flow charts'!$A$238=$U$98,AA114, IF('Flow charts'!$A$238=$V$98,AB114,"SELECT BP"))) -> 94.66036 | AJ114: 199.3385318
B115: B74 | C115: 53 | D115: 435.5 | E115: 382.5 | F115: =IF(OR(#REF!="", E115=""),"",E115^3*N115+E115^2*O115+E115*P115+Q115+(L115-#REF!)*M115) ->  | G115: 145.1552958 | H115: 145.1 | I115: -0.000381087612 | L115: 25 | M115: 0.145 | N115: 7.96e-07 | O115: -0.0009501 | P115: 0.59 | Q115: 18 | R115: 0.8 | S115: 35 | T115: 35 | U115: 40 | V115: 60 | W115: 480 | X115: 454 | Y115: 427 | Z115: 41.145256 | AA115: 36.505784 | AB115: 42.901576 | AC115: 173.953192 | AD115: 160.8912129 | AE115: 151.4213856 | AH115: =IF('Flow charts'!$A$238=$T$98,AC115, IF('Flow charts'!$A$238=$U$98,AD115, IF('Flow charts'!$A$238=$V$98,AE115,"SELECT BP"))) -> 160.8912129 | AI115: =IF('Flow charts'!$A$238=$T$98,Z115, IF('Flow charts'!$A$238=$U$98,AA115, IF('Flow charts'!$A$238=$V$98,AB115,"SELECT BP"))) -> 36.505784 | AJ115: 124.3854289
B116: B47 | C116: 53 | D116: 435.5 | E116: 382.5 | F116: =IF(OR(#REF!="", E116=""),"",E116^3*N116+E116^2*O116+E116*P116+Q116+(L116-#REF!)*M116) ->  | G116: 65.19299858 | H116: 65.19 | I116: -4.599760412e-05 | L116: 25 | M116: 0.09 | N116: 2.69043182e-07 | O116: -0.0003590549536 | P116: 0.2435 | Q116: 12.05 | R116: 1 | S116: 50 | T116: 50 | U116: 50 | V116: 75 | W116: 480 | X116: 462 | Y116: 417 | Z116: 25.61099301 | AA116: 21.11099301 | AB116: 23.90631848 | AC116: 78.20776228 | AD116: 72.18952615 | AE116: 66.16257518 | AH116: =IF('Flow charts'!$A$238=$T$98,AC116, IF('Flow charts'!$A$238=$U$98,AD116, IF('Flow charts'!$A$238=$V$98,AE116,"SELECT BP"))) -> 72.18952615 | AI116: =IF('Flow charts'!$A$238=$T$98,Z116, IF('Flow charts'!$A$238=$U$98,AA116, IF('Flow charts'!$A$238=$V$98,AB116,"SELECT BP"))) -> 21.11099301 | AJ116: 51.07853313
B117: B29 | C117: 53 | D117: 435.5 | E117: 382.5 | F117: =IF(OR(#REF!="", E117=""),"",E117^3*N117+E117^2*O117+E117*P117+Q117+(L117-#REF!)*M117) ->  | G117: 24.56216636 | H117: 24.57 | I117: 0.0003188294923 | L117: 25 | M117: -0.02 | N117: 1.11e-07 | O117: -0.000149 | P117: 0.092 | Q117: 4.4 | R117: 0.6 | S117: 50 | T117: 50 | U117: 50 | V117: 50 | W117: 480 | X117: 457 | Y117: 434 | Z117: 8.141375 | AA117: 9.141375 | AB117: 9.641375 | AC117: 26.006112 | AD117: 26.41978222 | AE117: 26.33681794 | AH117: =IF('Flow charts'!$A$238=$T$98,AC117, IF('Flow charts'!$A$238=$U$98,AD117, IF('Flow charts'!$A$238=$V$98,AE117,"SELECT BP"))) -> 26.41978222 | AI117: =IF('Flow charts'!$A$238=$T$98,Z117, IF('Flow charts'!$A$238=$U$98,AA117, IF('Flow charts'!$A$238=$V$98,AB117,"SELECT BP"))) -> 9.141375 | AJ117: 17.27840722

Sheet Flow charts
B1: Legend
B2: Standard Ranges - included with every system with no extra cost
B3: Optional Ranges - ISO 17025 calibration recommended
B4: Not recommended but available if custom sealing performed - ISO 17025 calibration mandatory
A5: 300
A7: 50
A38: 340
A40: 0
A71: 350
A73: 0
A75: =IF(A73='Round B1'!T38, "No Data for Range 11 to 1, @250 Pa", "") -> 
A104: 400
A106: 4980
A137: 3000SR
A139: 75
A170: 4000
A172: 250
A203: 5000
A205: 0
A236: 6000
A238: 50
A269: 7000
A302: * Flow will vary depending on the following factors: voltage, frequency, barometric pressure, backpressure, blade pitch, air temperature, bearing tightness, inlet air turbulence

Sheet build 63 (hidden)
C1: "Round B" released: 2015-06-23, DM32 v2.3.62
C2: "Round A" released: 2014
C4: For sample flow calculations: enter pressure data into Columns C & D
C5: identifies the same Range but depending on PrA sign (or if 'set to 0 Pa' is implemented), different flow coeffcients are used
C6: Changed 2015-07-02
C8: Enter Pressures appearing on gauge | E8: Fan Pressure used in flow equations | G8: P conditions: PrB>=MF, PrB>=|PrA|*K2
A9: Device | B9: Range | C9: PrA, Pa | D9: PrB, Pa | E9: P, Pa | F9: CFM calculation | G9: CFM displayed on DM32 | H9: build 63 reading | I9: Error | J9: N | K9: K | L9: K1 | M9: K2 | N9: K3 | O9: MF | P9: Flow = (P-|PrA|)*K1)N*(K+P*K3) Since K1 and K3 are 0 for 300 & 340 & 350 & 450 systems, this equation can be simplified to: Flow = PN*K
A10: 300 | B10: Open | C10: 50.5 | D10: 214.5 | E10: =IF(OR(C10="",D10="", D10<0),"---", IF(AND(D10>=O10,D10>=ABS(C10)*M10),D10,"---")) -> 214.5 | F10: =IF(OR(#REF!="", E10=""),"",(E10-#REF!*L10)^J10*(K10+E10*N10)) ->  | G10: =IF(E10="---","---", (E10-ABS(C10)*L10)^J10*(K10+E10*N10)) -> 479.4650895 | H10: 425.5 | I10: =(H10-G10)/H10 -> -0.1268274723 | J10: ='Round B1'!I17 -> 0.5115 | K10: ='Round B1'!J17 -> 30.7774 | L10: ='Round B1'!K17 -> 0 | M10: ='Round B1'!L17 -> 0.2 | N10: ='Round B1'!M17 -> 0 | O10: ='Round B1'!N17 -> 10 | P10: PrB cannot be less than MF and PrA*K2, or "---" is displayed
B11: 102 | C11: 50.5 | D11: 214.5 | E11: 214.5 | F11: =IF(OR(#REF!="", E11=""),"",(E11-#REF!*L11)^J11*(K11+E11*N11)) ->  | G11: 259.4240721 | H11: 253.9 | I11: -0.0217568811 | J11: ='Round B1'!I22 -> 0.565 | K11: ='Round B1'!J22 -> 12.49550606 | L11: ='Round B1'!K22 -> 0 | M11: ='Round B1'!L22 -> 0.4 | N11: ='Round B1'!M22 -> 0 | O11: ='Round B1'!N22 -> 100
B12: 74 | C12: 50.5 | D12: 214.5 | E12: 214.5 | F12: =IF(OR(#REF!="", E12=""),"",(E12-#REF!*L12)^J12*(K12+E12*N12)) ->  | G12: 105.0392351 | H12: 106.1 | I12: 0.009997783709 | J12: ='Round B1'!I23 -> 0.501 | K12: ='Round B1'!J23 -> 7.133562575 | L12: ='Round B1'!K23 -> 0 | M12: ='Round B1'!L23 -> 0.25 | N12: ='Round B1'!M23 -> 0 | O12: ='Round B1'!N23 -> 25 | P12: PrB cannot be negative, so "---" is displayed
B13: 47 | C13: 50.5 | D13: 214.5 | E13: 214.5 | F13: =IF(OR(#REF!="", E13=""),"",(E13-#REF!*L13)^J13*(K13+E13*N13)) ->  | G13: 45.55095718 | H13: 47.44 | I13: 0.03981962094 | J13: ='Round B1'!I24 -> 0.497 | K13: ='Round B1'!J24 -> 3.160662626 | L13: ='Round B1'!K24 -> 0 | M13: ='Round B1'!L24 -> 0.1 | N13: ='Round B1'!M24 -> 0 | O13: ='Round B1'!N24 -> 30
B14: 29 | C14: 50.5 | D14: 214.5 | E14: 214.5 | F14: =IF(OR(#REF!="", E14=""),"",(E14-#REF!*L14)^J14*(K14+E14*N14)) ->  | G14: 17.00556617 | H14: 17.61 | I14: 0.03432332919 | J14: ='Round B1'!I25 -> 0.507 | K14: ='Round B1'!J25 -> 1.118297763 | L14: ='Round B1'!K25 -> 0 | M14: ='Round B1'!L25 -> 0.2 | N14: ='Round B1'!M25 -> 0 | O14: ='Round B1'!N25 -> 30
B15: 18 | C15: 50.5 | D15: 214.5 | E15: 214.5 | F15: =IF(OR(#REF!="", E15=""),"",(E15-#REF!*L15)^J15*(K15+E15*N15)) ->  | G15: 6.825283009 | H15: 6.654 | I15: -0.02574136001 | J15: ='Round B1'!I26 -> 0.519 | K15: ='Round B1'!J26 -> 0.4208331057 | L15: ='Round B1'!K26 -> 0 | M15: ='Round B1'!L26 -> 0.25 | N15: ='Round B1'!M26 -> 0 | O15: ='Round B1'!N26 -> 30
B16: 11 | C16: 50.5 | D16: 214.5 | E16: 214.5 | F16: =IF(OR(#REF!="", E16=""),"",(E16-#REF!*L16)^J16*(K16+E16*N16)) ->  | G16: 2.741600489 | H16: 6.654 | I16: 0.587977083 | J16: ='Round B1'!I27 -> 0.492 | K16: ='Round B1'!J27 -> 0.1954078197 | L16: ='Round B1'!K27 -> 0 | M16: ='Round B1'!L27 -> 0.25 | N16: ='Round B1'!M27 -> 0 | O16: ='Round B1'!N27 -> 30
B17: 7 | C17: 50.5 | D17: 214.5 | E17: 214.5 | F17: =IF(OR(#REF!="", E17=""),"",(E17-#REF!*L17)^J17*(K17+E17*N17)) ->  | G17: 1.029770861 | H17: 0.04929 | I17: =(H17-G17)/H17 -> -19.89208483 | J17: ='Round B1'!I28 -> 0.48 | K17: ='Round B1'!J28 -> 0.07828084344 | L17: ='Round B1'!K28 -> 0 | M17: ='Round B1'!L28 -> 0.11 | N17: ='Round B1'!M28 -> 0 | O17: ='Round B1'!N28 -> 30
A19: 340 | B19: Open | C19: 50.3 | D19: 223 | E19: =IF(OR(C19="",D19="", D19<0),"---", IF(AND(C19>0, D19>=O19,D19>=ABS(C19)*M19),D19,"---")) -> 223 | F19: =IF(OR(#REF!="", E19=""),"",(E19-#REF!*L19)^J19*(K19+E19*N19)) ->  | G19: =IF(E19="---","---", (E19-ABS(C19)*L19)^J19*(K19+E19*N19)) -> 412.5290631 | H19: 434.2 | I19: =(H19-G19)/H19 -> 0.04991003425 | J19: ='Round B1'!I30 -> 0.492 | K19: ='Round B1'!J30 -> 28.84619652 | L19: ='Round B1'!K30 -> 0 | M19: ='Round B1'!L30 -> 0.4 | N19: ='Round B1'!M30 -> 0 | O19: ='Round B1'!N30 -> 20 | P19: use when PrA is positive or when "Set Pressure" value of "0" Pa is entered
B20: Open | C20: -50.5 | D20: 94.8 | E20: =IF(OR(C20="",D20="", D20<0),"---", IF(AND(C20<0, D20>=O20,D20>=ABS(C20)*M20),D20,"---")) ->  | F20: =IF(OR(#REF!="", E20=""),"",(E20-#REF!*L20)^J20*(K20+E20*N20)) ->  | H20: 291.2 | I20: =(H20-G20)/H20 ->  | J20: ='Round B1'!#REF! ->  | K20: ='Round B1'!#REF! ->  | L20: ='Round B1'!#REF! ->  | M20: ='Round B1'!#REF! ->  | N20: ='Round B1'!#REF! ->  | O20: ='Round B1'!#REF! ->  | P20: use when PrA is negative
B21: 102 | C21: 50.5 | D21: 214.5 | E21: =IF(OR(C21="",D21="", D21<0),"---", IF(AND(D21>=O21,D21>=ABS(C21)*M21),D21,"---")) -> 214.5 | F21: =IF(OR(#REF!="", E21=""),"",(E21-#REF!*L21)^J21*(K21+E21*N21)) ->  | G21: 259.4240721 | H21: 253.9 | I21: -0.0217568811 | J21: ='Round B1'!I31 -> 0.565 | K21: ='Round B1'!J31 -> 12.49550606 | L21: ='Round B1'!K31 -> 0 | M21: ='Round B1'!L31 -> 0.4 | N21: ='Round B1'!M31 -> 0 | O21: ='Round B1'!N31 -> 100
B22: 74 | C22: 50.5 | D22: 214.5 | E22: 214.5 | F22: =IF(OR(#REF!="", E22=""),"",(E22-#REF!*L22)^J22*(K22+E22*N22)) ->  | G22: 105.0392351 | H22: 106.1 | I22: 0.009997783709 | J22: ='Round B1'!I32 -> 0.501 | K22: ='Round B1'!J32 -> 7.133562575 | L22: ='Round B1'!K32 -> 0 | M22: ='Round B1'!L32 -> 0.25 | N22: ='Round B1'!M32 -> 0 | O22: ='Round B1'!N32 -> 25
B23: 47 | C23: 50.5 | D23: 214.5 | E23: 214.5 | F23: =IF(OR(#REF!="", E23=""),"",(E23-#REF!*L23)^J23*(K23+E23*N23)) ->  | G23: 45.55095718 | H23: 47.44 | I23: 0.03981962094 | J23: ='Round B1'!I33 -> 0.497 | K23: ='Round B1'!J33 -> 3.160662626 | L23: ='Round B1'!K33 -> 0 | M23: ='Round B1'!L33 -> 0.1 | N23: ='Round B1'!M33 -> 0 | O23: ='Round B1'!N33 -> 30
B24: 29 | C24: 50.5 | D24: 214.5 | E24: 214.5 | F24: =IF(OR(#REF!="", E24=""),"",(E24-#REF!*L24)^J24*(K24+E24*N24)) ->  | G24: 17.00556617 | H24: 17.61 | I24: 0.03432332919 | J24: ='Round B1'!I34 -> 0.507 | K24: ='Round B1'!J34 -> 1.118297763 | L24: ='Round B1'!K34 -> 0 | M24: ='Round B1'!L34 -> 0.2 | N24: ='Round B1'!M34 -> 0 | O24: ='Round B1'!N34 -> 30
B25: 18 | C25: 50.5 | D25: 214.5 | E25: 214.5 | F25: =IF(OR(#REF!="", E25=""),"",(E25-#REF!*L25)^J25*(K25+E25*N25)) ->  | G25: 6.825283009 | H25: 6.654 | I25: -0.02574136001 | J25: ='Round B1'!I35 -> 0.519 | K25: ='Round B1'!J35 -> 0.4208331057 | L25: ='Round B1'!K35 -> 0 | M25: ='Round B1'!L35 -> 0.25 | N25: ='Round B1'!M35 -> 0 | O25: ='Round B1'!N35 -> 30
B26: 11 | C26: 50.5 | D26: 214.5 | E26: 214.5 | F26: =IF(OR(#REF!="", E26=""),"",(E26-#REF!*L26)^J26*(K26+E26*N26)) ->  | G26: 2.741600489 | H26: 2.735 | I26: -0.002413341648 | J26: ='Round B1'!I36 -> 0.492 | K26: ='Round B1'!J36 -> 0.1954078197 | L26: ='Round B1'!K36 -> 0 | M26: ='Round B1'!L36 -> 0.25 | N26: ='Round B1'!M36 -> 0 | O26: ='Round B1'!N36 -> 30
B27: 7 | C27: 50.5 | D27: 214.5 | E27: 214.5 | F27: =IF(OR(#REF!="", E27=""),"",(E27-#REF!*L27)^J27*(K27+E27*N27)) ->  | G27: 1.029770861 | H27: 1.051 | I27: 0.0201989904 | J27: ='Round B1'!I37 -> 0.48 | K27: ='Round B1'!J37 -> 0.07828084344 | L27: ='Round B1'!K37 -> 0 | M27: ='Round B1'!L37 -> 0.11 | N27: ='Round B1'!M37 -> 0 | O27: ='Round B1'!N37 -> 30
A29: 350 | B29: 102 | C29: 50.5 | D29: 214.5 | E29: =IF(OR(C29="",D29="", D29<0),"---", IF(AND(D29>=O29,D29>=ABS(C29)*M29),D29,"---")) -> 214.5 | F29: =IF(OR(#REF!="", E29=""),"",(E29-#REF!*L29)^J29*(K29+E29*N29)) ->  | G29: =IF(E29="---","---", (E29-ABS(C29)*L29)^J29*(K29+E29*N29)) -> 259.4240721 | H29: 253.9 | I29: =(H29-G29)/H29 -> -0.0217568811 | J29: ='Round B1'!I39 -> 0.565 | K29: ='Round B1'!J39 -> 12.49550606 | L29: ='Round B1'!K39 -> 0 | M29: ='Round B1'!L39 -> 0.4 | N29: ='Round B1'!M39 -> 0 | O29: ='Round B1'!N39 -> 100
B30: 74 | C30: 50.5 | D30: 214.5 | E30: 214.5 | F30: =IF(OR(#REF!="", E30=""),"",(E30-#REF!*L30)^J30*(K30+E30*N30)) ->  | G30: 105.0392351 | H30: 106.1 | I30: =(H30-G30)/H30 -> 0.009997783709 | J30: ='Round B1'!I40 -> 0.501 | K30: ='Round B1'!J40 -> 7.133562575 | L30: ='Round B1'!K40 -> 0 | M30: ='Round B1'!L40 -> 0.25 | N30: ='Round B1'!M40 -> 0 | O30: ='Round B1'!N40 -> 25
B31: 47 | C31: 50.5 | D31: 214.5 | E31: 214.5 | F31: =IF(OR(#REF!="", E31=""),"",(E31-#REF!*L31)^J31*(K31+E31*N31)) ->  | G31: 45.55095718 | H31: 47.44 | I31: =(H31-G31)/H31 -> 0.03981962094 | J31: ='Round B1'!I41 -> 0.497 | K31: ='Round B1'!J41 -> 3.160662626 | L31: ='Round B1'!K41 -> 0 | M31: ='Round B1'!L41 -> 0.1 | N31: ='Round B1'!M41 -> 0 | O31: ='Round B1'!N41 -> 30
B32: 29 | C32: 50.5 | D32: 214.5 | E32: 214.5 | F32: =IF(OR(#REF!="", E32=""),"",(E32-#REF!*L32)^J32*(K32+E32*N32)) ->  | G32: 17.00556617 | H32: 17.61 | I32: 0.03432332919 | J32: ='Round B1'!I42 -> 0.507 | K32: ='Round B1'!J42 -> 1.118297763 | L32: ='Round B1'!K42 -> 0 | M32: ='Round B1'!L42 -> 0.2 | N32: ='Round B1'!M42 -> 0 | O32: ='Round B1'!N42 -> 30
B33: 18 | C33: 50.5 | D33: 214.5 | E33: 214.5 | F33: =IF(OR(#REF!="", E33=""),"",(E33-#REF!*L33)^J33*(K33+E33*N33)) ->  | G33: 6.825283009 | H33: 6.654 | I33: -0.02574136001 | J33: ='Round B1'!I43 -> 0.519 | K33: ='Round B1'!J43 -> 0.4208331057 | L33: ='Round B1'!K43 -> 0 | M33: ='Round B1'!L43 -> 0.25 | N33: ='Round B1'!M43 -> 0 | O33: ='Round B1'!N43 -> 30
B34: 11 | C34: 50.5 | D34: 214.5 | E34: 214.5 | F34: =IF(OR(#REF!="", E34=""),"",(E34-#REF!*L34)^J34*(K34+E34*N34)) ->  | G34: 2.741600489 | H34: 2.735 | I34: -0.002413341648 | J34: ='Round B1'!I44 -> 0.492 | K34: ='Round B1'!J44 -> 0.1954078197 | L34: ='Round B1'!K44 -> 0 | M34: ='Round B1'!L44 -> 0.25 | N34: ='Round B1'!M44 -> 0 | O34: ='Round B1'!N44 -> 30
B35: 7 | C35: 50.5 | D35: 214.5 | E35: 214.5 | F35: =IF(OR(#REF!="", E35=""),"",(E35-#REF!*L35)^J35*(K35+E35*N35)) ->  | G35: 1.029770861 | H35: 1.051 | I35: 0.0201989904 | J35: ='Round B1'!I45 -> 0.48 | K35: ='Round B1'!J45 -> 0.07828084344 | L35: ='Round B1'!K45 -> 0 | M35: ='Round B1'!L45 -> 0.11 | N35: ='Round B1'!M45 -> 0 | O35: ='Round B1'!N45 -> 30
B36: 3 | C36: 50.5 | D36: 214.5 | F36: =IF(OR(#REF!="", E36=""),"",(E36-#REF!*L36)^J36*(K36+E36*N36)) ->  | H36: 0.2917 | J36: ='Round B1'!#REF! ->  | K36: ='Round B1'!#REF! ->  | L36: ='Round B1'!#REF! ->  | M36: ='Round B1'!#REF! ->  | N36: ='Round B1'!#REF! ->  | O36: ='Round B1'!#REF! -> 
B37: 2 | C37: 50.5 | D37: 214.5 | F37: =IF(OR(#REF!="", E37=""),"",(E37-#REF!*L37)^J37*(K37+E37*N37)) ->  | H37: 0.1118 | J37: ='Round B1'!#REF! ->  | K37: ='Round B1'!#REF! ->  | L37: ='Round B1'!#REF! ->  | M37: ='Round B1'!#REF! ->  | N37: ='Round B1'!#REF! ->  | O37: ='Round B1'!#REF! -> 
B38: 1 | C38: 50.5 | D38: 214.5 | E38: 214.5 | F38: =IF(OR(#REF!="", E38=""),"",(E38-#REF!*L38)^J38*(K38+E38*N38)) ->  | G38: 0.2918743898 | H38: 0.04929 | I38: -4.921574149 | J38: ='Round B1'!I46 -> 0.485 | K38: ='Round B1'!J46 -> 0.0216 | L38: ='Round B1'!K46 -> 0 | M38: ='Round B1'!L46 -> 0.3 | N38: ='Round B1'!M46 -> 0 | O38: ='Round B1'!N46 -> 30
A40: 450 | B40: 74 | C40: 50.9 | D40: 822 | E40: =IF(OR(C40="",D40="", D40<0),"---", IF(AND(C40>0, D40>=O40,D40>=ABS(C40)*M40),D40,"---")) -> 822 | F40: =IF(OR(#REF!="", E40=""),"",(E40-#REF!*L40)^J40*(K40+E40*N40)) ->  | G40: =IF(E40="---","---", (E40-ABS(C40)*L40)^J40*(K40+E40*N40)) -> 208.4762384 | H40: 209.2 | I40: =(H40-G40)/H40 -> 0.003459663401 | J40: ='Round B1'!I48 -> 0.504 | K40: ='Round B1'!J48 -> 7.078824842 | L40: ='Round B1'!K48 -> 0 | M40: ='Round B1'!L48 -> 0.15 | N40: ='Round B1'!M48 -> 0 | O40: ='Round B1'!N48 -> 250 | P40: use when PrA is positive or when "Set Pressure" value of "0" Pa is entered
B41: 74 | C41: -49.4 | D41: 753 | E41: =IF(OR(C41="",D41="", D41<0),"---", IF(AND(C41<0, D41>=O41,D41>=ABS(C41)*M41),D41,"---")) ->  | F41: =IF(OR(#REF!="", E41=""),"",(E41-#REF!*L41)^J41*(K41+E41*N41)) ->  | H41: 197.1 | I41: =(H41-G41)/H41 ->  | J41: ='Round B1'!#REF! ->  | K41: ='Round B1'!#REF! ->  | L41: ='Round B1'!#REF! ->  | M41: ='Round B1'!#REF! ->  | N41: ='Round B1'!#REF! ->  | O41: ='Round B1'!#REF! ->  | P41: use when PrA is negative
B42: 47 | C42: 50.9 | D42: 822 | E42: =IF(OR(C42="",D42="", D42<0),"---", IF(AND(D42>=O42,D42>=ABS(C42)*M42),D42,"---")) -> 822 | F42: =IF(OR(#REF!="", E42=""),"",(E42-#REF!*L42)^J42*(K42+E42*N42)) ->  | G42: 87.45068181 | H42: 85.64 | I42: -0.02114294497 | J42: ='Round B1'!I49 -> 0.4975 | K42: ='Round B1'!J49 -> 3.101804849 | L42: ='Round B1'!K49 -> 0 | M42: ='Round B1'!L49 -> 0.12 | N42: ='Round B1'!M49 -> 0 | O42: ='Round B1'!N49 -> 250
B43: 29 | C43: 50.9 | D43: 822 | E43: 822 | F43: =IF(OR(#REF!="", E43=""),"",(E43-#REF!*L43)^J43*(K43+E43*N43)) ->  | G43: 31.24325232 | H43: 31.13 | I43: -0.003638044386 | J43: ='Round B1'!I50 -> 0.49 | K43: ='Round B1'!J50 -> 1.165383985 | L43: ='Round B1'!K50 -> 0 | M43: ='Round B1'!L50 -> 0.15 | N43: ='Round B1'!M50 -> 0 | O43: ='Round B1'!N50 -> 250
B44: 18 | C44: 50.9 | D44: 822 | E44: 822 | F44: =IF(OR(#REF!="", E44=""),"",(E44-#REF!*L44)^J44*(K44+E44*N44)) ->  | G44: 12.14988761 | H44: 12.29 | I44: 0.01140052004 | J44: ='Round B1'!I51 -> 0.5 | K44: ='Round B1'!J51 -> 0.4237759946 | L44: ='Round B1'!K51 -> 0 | M44: ='Round B1'!L51 -> 0.15 | N44: ='Round B1'!M51 -> 0 | O44: ='Round B1'!N51 -> 250
B45: 11 | C45: 50.9 | D45: 822 | E45: 822 | F45: =IF(OR(#REF!="", E45=""),"",(E45-#REF!*L45)^J45*(K45+E45*N45)) ->  | G45: 5.028703483 | H45: 4.891 | I45: -0.02815446381 | J45: ='Round B1'!I52 -> 0.5 | K45: ='Round B1'!J52 -> 0.1753961755 | L45: ='Round B1'!K52 -> 0 | M45: ='Round B1'!L52 -> 0.14 | N45: ='Round B1'!M52 -> 0 | O45: ='Round B1'!N52 -> 250
B46: 7 | C46: 50.9 | D46: 822 | E46: 822 | F46: =IF(OR(#REF!="", E46=""),"",(E46-#REF!*L46)^J46*(K46+E46*N46)) ->  | G46: 1.77185861 | H46: 1.918 | I46: 0.07619467695 | J46: ='Round B1'!I53 -> 0.5 | K46: ='Round B1'!J53 -> 0.06180066587 | L46: ='Round B1'!K53 -> 0 | M46: ='Round B1'!L53 -> 0.08 | N46: ='Round B1'!M53 -> 0 | O46: ='Round B1'!N53 -> 250
B47: 3 | C47: 50.9 | D47: 822 | E47: 822 | F47: =IF(OR(#REF!="", E47=""),"",(E47-#REF!*L47)^J47*(K47+E47*N47)) ->  | G47: 0.4603340568 | H47: 0.5684 | I47: 0.1901230527 | J47: ='Round B1'!I54 -> 0.513 | K47: ='Round B1'!J54 -> 0.01471444426 | L47: ='Round B1'!K54 -> 0 | M47: ='Round B1'!L54 -> 0.1 | N47: ='Round B1'!M54 -> 0 | O47: ='Round B1'!N54 -> 250
B48: 2 | C48: 50.9 | D48: 822 | F48: =IF(OR(#REF!="", E48=""),"",(E48-#REF!*L48)^J48*(K48+E48*N48)) ->  | H48: 0.2279 | J48: ='Round B1'!#REF! ->  | K48: ='Round B1'!#REF! ->  | L48: ='Round B1'!#REF! ->  | M48: ='Round B1'!#REF! ->  | N48: ='Round B1'!#REF! ->  | O48: ='Round B1'!#REF! -> 
B49: 1 | C49: 50.9 | D49: 822 | F49: =IF(OR(#REF!="", E49=""),"",(E49-#REF!*L49)^J49*(K49+E49*N49)) ->  | H49: 0.08748 | J49: ='Round B1'!#REF! ->  | K49: ='Round B1'!#REF! ->  | L49: ='Round B1'!#REF! ->  | M49: ='Round B1'!#REF! ->  | N49: ='Round B1'!#REF! ->  | O49: ='Round B1'!#REF! -> 
C53: Enter Pressures appearing on gauge | E53: Fan Pressure used in flow equations
C54: PrA, Pa | D54: PrB, Pa | E54: P, Pa | F54: CFM calculation | G54: CFM displayed on DM32 | H54: build 55 reading | I54: Error | J54: N | K54: K | L54: g | M54: f | N54: a | O54: b | P54: c | Q54: d | R54: K2 | S54: MF
A55: 4000 | B55: Open | C55: 59.2 | D55: 267.5 | E55: =IF(OR(C55="",D55="",D55<0),"", IF(AND(C55>=0,D55>=S55, D55>=ABS(C55)*R55),D55, IF(AND(C55<0, (ABS(D55)-ABS(C55))>=S55, (ABS(D55)-ABS(C55))>=ABS(C55)*R55),(ABS(D55)-ABS(C55)),"---"))) -> 267.5 | F55: =IF(OR(#REF!="", E55=""),"",E55^J55*K55) ->  | G55: =IF(E55="---","---", E55^J55*K55) -> 8703.503745 | H55: 8703 | I55: =(H55-G55)/H55 -> -5.788180805e-05 | J55: ='Round B1'!I70 -> 0.53 | K55: ='Round B1'!J70 -> 450 | R55: ='Round B1'!Q70 -> 0.2 | S55: ='Round B1'!R70 -> 10 | T55: Flow = PN*K
B56: Open | C56: -53.8 | D56: 149 | E56: 95.2 | G56: 5033.732079 | H56: 5038 | I56: =(H56-G56)/H56 -> 0.0008471459647 | J56: ='Round B1'!I70 -> 0.53 | K56: ='Round B1'!J70 -> 450 | R56: ='Round B1'!Q70 -> 0.2 | S56: ='Round B1'!R70 -> 10 | T56: Flow = PN*K
B57: Ring A | C57: 59.2 | D57: 267.5 | E57: 267.5 | F57: =IF(OR(#REF!="", E57=""),"",E57^J57*K57) ->  | G57: 4512.043636 | H57: 4512 | I57: -9.671198061e-06 | J57: ='Round B1'!I71 -> 0.485 | K57: ='Round B1'!J71 -> 300 | R57: ='Round B1'!Q71 -> 0.2 | S57: ='Round B1'!R71 -> 20 | T57: Flow = PN*K
B58: Ring A | C58: -49.6 | D58: 176.5 | E58: 126.9 | G58: 3142.679853 | H58: 3144 | I58: 0.0004198939734 | J58: ='Round B1'!I71 -> 0.485 | K58: ='Round B1'!J71 -> 300 | R58: ='Round B1'!Q71 -> 0.2 | S58: ='Round B1'!R71 -> 20 | T58: Flow = PN*K
B59: B8 | C59: 59.2 | D59: 267.5 | E59: 267.5 | F59: =IF(OR(#REF!="", E59=""),"",E59^J59*K59) ->  | G59: 2322.801457 | H59: 2323 | I59: 8.546816445e-05 | J59: ='Round B1'!I72 -> 0.52 | K59: ='Round B1'!J72 -> 127 | R59: ='Round B1'!Q72 -> 0.2 | S59: ='Round B1'!R72 -> 15 | T59: Flow = PN*K
B60: B8 | C60: -49.6 | D60: 176.5 | E60: 126.9 | G60: 1576.172567 | H60: 1577 | I60: 0.000524687953 | J60: ='Round B1'!I72 -> 0.52 | K60: ='Round B1'!J72 -> 127 | R60: ='Round B1'!Q72 -> 0.2 | S60: ='Round B1'!R72 -> 15 | T60: Flow = PN*K
B61: B4 | C61: 59.2 | D61: 267.5 | E61: 267.5 | G61: =IF(E61="---","---", E61^3*N61+E61^2*O61+E61*P61+Q61+(L61-ABS(C61))*M61) -> 1002.761635 | H61: 1003 | I61: 0.0002376517323 | L61: ='Round B1'!K73 -> 0 | M61: ='Round B1'!L73 -> 0.7 | N61: ='Round B1'!M73 -> 6.62e-06 | O61: ='Round B1'!N73 -> -0.0078 | P61: ='Round B1'!O73 -> 4.75 | Q61: ='Round B1'!P73 -> 205 | R61: ='Round B1'!Q73 -> 0.2 | S61: ='Round B1'!R73 -> 25 | T61: Flow = P3*a+P2*b+P*c+d+(g-|PrA|)*f
B62: B4 | C62: -49.6 | D62: 176.5 | E62: 126.9 | F62: =IF(OR(#REF!="", E62=""),"",E62^3*N62+E62^2*O62+E62*P62+Q62+(L62-#REF!)*M62) ->  | G62: =IF(E62="---","---", E62^3*N62+E62^2*O62+E62*P62+Q62+(L62-ABS(C62))*M62) -> 660.9751305 | H62: 661.4 | I62: =(H62-G62)/H62 -> 0.0006423790723 | L62: ='Round B1'!K73 -> 0 | M62: ='Round B1'!L73 -> 0.7 | N62: ='Round B1'!M73 -> 6.62e-06 | O62: ='Round B1'!N73 -> -0.0078 | P62: ='Round B1'!O73 -> 4.75 | Q62: ='Round B1'!P73 -> 205 | R62: ='Round B1'!Q73 -> 0.2 | S62: ='Round B1'!R73 -> 25 | T62: Flow = P3*a+P2*b+P*c+d+(g-|PrA|)*f
E63: =IF(OR(C63="",D63="",D63<0),"", IF(AND(C63<=0,D63>=S63, D63>=ABS(C63)*R63),D63, IF(AND(C63>0, (ABS(D63)-C63)>=S63, (ABS(D63)-C63)>=ABS(C63)*R63),(ABS(D63)-C63),"---"))) ->  | F63: =IF(OR(#REF!="", E63=""),"",E63^3*N63+E63^2*O63+E63*P63+Q63+(L63-#REF!)*M63) -> 
A64: 5000 | B64: Open | C64: 56.2 | D64: 98.2 | E64: =IF(OR(C64="",D64="",D64<0),"", IF(AND(C64<=0,D64>=S64, D64>=ABS(C64)*R64),D64, IF(AND(C64>0, (ABS(D64)-C64)>=S64, (ABS(D64)-C64)>=ABS(C64)*R64),(ABS(D64)-C64),"---"))) -> 42 | F64: =IF(OR(#REF!="", E64=""),"",E64^J64*K64) ->  | G64: =IF(E64="---","---", E64^J64*K64) -> 3647.931022 | H64: 3527 | I64: =(H64-G64)/H64 -> -0.03428721914 | J64: ='Round B1'!I79 -> 0.5214 | K64: ='Round B1'!J79 -> 519.6183 | R64: ='Round B1'!Q92 -> 0.3 | S64: ='Round B1'!R92 -> 10 | T64: Flow = PN*K
B65: Open | C65: -56.2 | D65: 98.2 | E65: =IF(OR(C65="",D65="",D65<0),"", IF(AND(C65<=0,D65>=S65, D65>=ABS(C65)*R65),D65, IF(AND(C65>0, (ABS(D65)-C65)>=S65, (ABS(D65)-C65)>=ABS(C65)*R65),(ABS(D65)-C65),"---"))) -> 98.2 | G65: 5680.301233 | H65: 5406 | I65: =(H65-G65)/H65 -> -0.05074014666 | J65: ='Round B1'!I79 -> 0.5214 | K65: ='Round B1'!J79 -> 519.6183 | R65: ='Round B1'!Q92 -> 0.3 | S65: ='Round B1'!R92 -> 10 | T65: Flow = PN*K
B66: Ring A | C66: 56.2 | D66: 98.2 | E66: 42 | F66: =IF(OR(#REF!="", E66=""),"",E66^J66*K66) ->  | G66: 1906.342761 | H66: 1875 | I66: -0.01671613895 | J66: ='Round B1'!I93 -> 0.503 | K66: ='Round B1'!J93 -> 290.875134 | R66: ='Round B1'!Q93 -> 0.4 | S66: ='Round B1'!R93 -> 20 | T66: Flow = PN*K
B67: Ring A | C67: -54.2 | D67: 99.1 | E67: 99.1 | G67: 2935.835006 | H67: 2884 | I67: -0.01797330319 | J67: ='Round B1'!I93 -> 0.503 | K67: ='Round B1'!J93 -> 290.875134 | R67: ='Round B1'!Q93 -> 0.4 | S67: ='Round B1'!R93 -> 20 | T67: Flow = PN*K
B68: B8 | C68: 56.2 | D68: 98.2 | E68: 42 | F68: =IF(OR(#REF!="", E68=""),"",E68^J68*K68) ->  | G68: 871.3172004 | H68: 852.8 | I68: -0.0217134151 | J68: ='Round B1'!I94 -> 0.527 | K68: ='Round B1'!J94 -> 121.5413095 | R68: ='Round B1'!Q94 -> 0.7 | S68: ='Round B1'!R94 -> 35 | T68: Flow = PN*K
B69: B8 | C69: -54.2 | D69: 99.1 | E69: 99.1 | G69: 1369.792321 | H69: 1355 | I69: =(H69-G69)/H69 -> -0.01091684211 | J69: ='Round B1'!I94 -> 0.527 | K69: ='Round B1'!J94 -> 121.5413095 | R69: ='Round B1'!Q94 -> 0.7 | S69: ='Round B1'!R94 -> 35 | T69: Flow = PN*K
B70: B4 | C70: 53.2 | D70: 152 | E70: 98.8 | F70: =IF(OR(#REF!="", E70=""),"",E70^3*N70+E70^2*O70+E70*P70+Q70+(L70-#REF!)*M70) ->  | G70: =IF(E70="---","---", E70^3*N70+E70^2*O70+E70*P70+Q70+(L70-ABS(C70))*M70) -> 624.0828226 | H70: 618.1 | I70: -0.009679376463 | L70: ='Round B1'!K95 -> 50 | M70: ='Round B1'!L95 -> 0.5885777702 | N70: ='Round B1'!M95 -> 1.765733311e-05 | O70: ='Round B1'!N95 -> -0.01530302203 | P70: ='Round B1'!O95 -> 6.27423903 | Q70: ='Round B1'!P95 -> 138.42172 | R70: ='Round B1'!Q95 -> 0.8 | S70: ='Round B1'!R95 -> 40 | T70: Flow = P3*a+P2*b+P*c+d+(g-|PrA|)*f
B71: B4 | C71: -54.2 | D71: 99.1 | E71: 99.1 | G71: 624.6235725 | H71: 619.3 | I71: -0.008596112571 | L71: ='Round B1'!K95 -> 50 | M71: ='Round B1'!L95 -> 0.5885777702 | N71: ='Round B1'!M95 -> 1.765733311e-05 | O71: ='Round B1'!N95 -> -0.01530302203 | P71: ='Round B1'!O95 -> 6.27423903 | Q71: ='Round B1'!P95 -> 138.42172 | R71: ='Round B1'!Q95 -> 0.8 | S71: ='Round B1'!R95 -> 40 | T71: Flow = P3*a+P2*b+P*c+d+(g-|PrA|)*f
B72: B2 | C72: 53.2 | D72: 152 | E72: 98.8 | F72: =IF(OR(#REF!="", E72=""),"",E72^3*N72+E72^2*O72+E72*P72+Q72+(L72-#REF!)*M72) ->  | G72: 251.8573986 | H72: 272.7 | I72: 0.07643051474 | L72: ='Round B1'!K96 -> 50 | M72: ='Round B1'!L96 -> 0.9181813215 | N72: ='Round B1'!M96 -> 2.530884412e-06 | O72: ='Round B1'!N96 -> -0.00466153594 | P72: ='Round B1'!O96 -> 2.754543965 | Q72: ='Round B1'!P96 -> 25.709077 | R72: ='Round B1'!Q96 -> 1 | S72: ='Round B1'!R96 -> 50 | T72: Flow = P3*a+P2*b+P*c+d+(g-|PrA|)*f
B73: B2 | C73: -54.2 | D73: 99.1 | E73: 99.1 | G73: 251.5111273 | H73: 273 | I73: 0.07871381956 | L73: ='Round B1'!K96 -> 50 | M73: ='Round B1'!L96 -> 0.9181813215 | N73: ='Round B1'!M96 -> 2.530884412e-06 | O73: ='Round B1'!N96 -> -0.00466153594 | P73: ='Round B1'!O96 -> 2.754543965 | Q73: ='Round B1'!P96 -> 25.709077 | R73: ='Round B1'!Q96 -> 1 | S73: ='Round B1'!R96 -> 50 | T73: Flow = P3*a+P2*b+P*c+d+(g-|PrA|)*f
B74: B1 | C74: 53.2 | D74: 152 | E74: 98.8 | F74: =IF(OR(#REF!="", E74=""),"",E74^3*N74+E74^2*O74+E74*P74+Q74+(L74-#REF!)*M74) ->  | G74: 128.4206804 | H74: 142.8 | I74: 0.1006955152 | L74: ='Round B1'!K97 -> 50 | M74: ='Round B1'!L97 -> 0.4473191054 | N74: ='Round B1'!M97 -> 2.736886631e-06 | O74: ='Round B1'!N97 -> -0.003137119515 | P74: ='Round B1'!O97 -> 1.489101759 | Q74: ='Round B1'!P97 -> 10.71211542 | R74: ='Round B1'!Q97 -> 1 | S74: ='Round B1'!R97 -> 60 | T74: Flow = P3*a+P2*b+P*c+d+(g-|PrA|)*f
B75: B1 | C75: -54.2 | D75: 99.1 | E75: 99.1 | G75: 128.2579585 | H75: 143 | I75: 0.1030911992 | L75: ='Round B1'!K97 -> 50 | M75: ='Round B1'!L97 -> 0.4473191054 | N75: ='Round B1'!M97 -> 2.736886631e-06 | O75: ='Round B1'!N97 -> -0.003137119515 | P75: ='Round B1'!O97 -> 1.489101759 | Q75: ='Round B1'!P97 -> 10.71211542 | R75: ='Round B1'!Q97 -> 1 | S75: ='Round B1'!R97 -> 60 | T75: Flow = P3*a+P2*b+P*c+d+(g-|PrA|)*f
B76: B74 | C76: 53.2 | D76: 152 | E76: 98.8 | F76: =IF(OR(#REF!="", E76=""),"",E76^3*N76+E76^2*O76+E76*P76+Q76+(L76-#REF!)*M76) ->  | G76: 65.07218545 | H76: 63.57 | I76: -0.02363041451 | L76: ='Round B1'!K98 -> 30 | M76: ='Round B1'!L98 -> 0.1294871094 | N76: ='Round B1'!M98 -> 1.648017757e-06 | O76: ='Round B1'!N98 -> -0.001494987536 | P76: ='Round B1'!O98 -> 0.6592071026 | Q76: ='Round B1'!P98 -> 15.95045757 | R76: ='Round B1'!Q98 -> 0.8 | S76: ='Round B1'!R98 -> 55 | T76: Flow = P3*a+P2*b+P*c+d+(g-|PrA|)*f
B77: B74 | C77: -54.2 | D77: 99.1 | E77: 99.1 | G77: 65.06622539 | H77: 63.54 | I77: -0.0240199149 | L77: ='Round B1'!K98 -> 30 | M77: ='Round B1'!L98 -> 0.1294871094 | N77: ='Round B1'!M98 -> 1.648017757e-06 | O77: ='Round B1'!N98 -> -0.001494987536 | P77: ='Round B1'!O98 -> 0.6592071026 | Q77: ='Round B1'!P98 -> 15.95045757 | R77: ='Round B1'!Q98 -> 0.8 | S77: ='Round B1'!R98 -> 55 | T77: Flow = P3*a+P2*b+P*c+d+(g-|PrA|)*f
B78: B47 | C78: 53.2 | D78: 152 | E78: 98.8 | F78: =IF(OR(#REF!="", E78=""),"",E78^3*N78+E78^2*O78+E78*P78+Q78+(L78-#REF!)*M78) ->  | G78: 31.43079517 | H78: 30.33 | I78: -0.03629393917 | L78: ='Round B1'!K99 -> 30 | M78: ='Round B1'!L99 -> 0.02354311081 | N78: ='Round B1'!M99 -> 8.29894656e-07 | O78: ='Round B1'!N99 -> -0.0007298364351 | P78: ='Round B1'!O99 -> 0.3072375961 | Q78: ='Round B1'!P99 -> 7.945799898 | R78: ='Round B1'!Q99 -> 0.8 | S78: ='Round B1'!R99 -> 25 | T78: Flow = P3*a+P2*b+P*c+d+(g-|PrA|)*f
B79: B47 | C79: -54.2 | D79: 99.1 | E79: 99.1 | G79: 31.46340598 | H79: 30.29 | I79: -0.03873905529 | L79: ='Round B1'!K99 -> 30 | M79: ='Round B1'!L99 -> 0.02354311081 | N79: ='Round B1'!M99 -> 8.29894656e-07 | O79: ='Round B1'!N99 -> -0.0007298364351 | P79: ='Round B1'!O99 -> 0.3072375961 | Q79: ='Round B1'!P99 -> 7.945799898 | R79: ='Round B1'!Q99 -> 0.8 | S79: ='Round B1'!R99 -> 25 | T79: Flow = P3*a+P2*b+P*c+d+(g-|PrA|)*f
B80: B29 | C80: 53.2 | D80: 152 | E80: 98.8 | G80: 10.78358749 | H80: 12.71 | I80: 0.1515666809 | L80: ='Round B1'!K100 -> 30 | M80: ='Round B1'!L100 -> 0.01765733311 | N80: ='Round B1'!M100 -> 1.442015537e-07 | O80: ='Round B1'!N100 -> -0.0001854019976 | P80: ='Round B1'!O100 -> 0.1000582209 | Q80: ='Round B1'!P100 -> 2.978203517 | R80: ='Round B1'!Q100 -> 0.6 | S80: ='Round B1'!R100 -> 50 | T80: Flow = P3*a+P2*b+P*c+d+(g-|PrA|)*f
B81: B29 | C81: -54.2 | D81: 99.1 | E81: 99.1 | F81: =IF(OR(#REF!="", E81=""),"",E81^3*N81+E81^2*O81+E81*P81+Q81+(L81-#REF!)*M81) ->  | G81: 10.78621101 | H81: 12.75 | I81: 0.1540226662 | L81: ='Round B1'!K100 -> 30 | M81: ='Round B1'!L100 -> 0.01765733311 | N81: ='Round B1'!M100 -> 1.442015537e-07 | O81: ='Round B1'!N100 -> -0.0001854019976 | P81: ='Round B1'!O100 -> 0.1000582209 | Q81: ='Round B1'!P100 -> 2.978203517 | R81: ='Round B1'!Q100 -> 0.6 | S81: ='Round B1'!R100 -> 50 | T81: Flow = P3*a+P2*b+P*c+d+(g-|PrA|)*f
F82: =IF(OR(#REF!="", E82=""),"",E82^3*N82+E82^2*O82+E82*P82+Q82+(L82-#REF!)*M82) -> 
A83: 6000 | B83: Open | C83: 53.2 | D83: 152 | E83: =IF(OR(C83="",D83="",D83<0),"", IF(AND(C83<=0,D83>=S83, D83>=ABS(C83)*R83),D83, IF(AND(C83>0, (ABS(D83)-C83)>=S83, (ABS(D83)-C83)>=ABS(C83)*R83),(ABS(D83)-C83),"---"))) -> 98.8 | F83: =IF(OR(#REF!="", E83=""),"",E83^J83*K83) ->  | G83: =IF(E83="---","---", E83^J83*K83) -> 5493.425418 | H83: 5397 | I83: =(H83-G83)/H83 -> -0.0178664848 | J83: ='Round B1'!I102 -> 0.4925 | K83: ='Round B1'!J102 -> 572.0387349 | R83: ='Round B1'!Q102 -> 0.5 | S83: ='Round B1'!R102 -> 25 | T83: Flow = PN*K
B84: Open | C84: -54.2 | D84: 99.1 | E84: 99.1 | F84: =IF(OR(#REF!="", E84=""),"",E84^J84*K84) ->  | G84: 5501.634216 | H84: 5406 | I84: =(H84-G84)/H84 -> -0.017690384 | J84: ='Round B1'!I102 -> 0.4925 | K84: ='Round B1'!J102 -> 572.0387349 | R84: ='Round B1'!Q102 -> 0.5 | S84: ='Round B1'!R102 -> 25 | T84: Flow = PN*K
B85: Ring A | C85: 53.2 | D85: 152 | E85: 98.8 | F85: =IF(OR(#REF!="", E85=""),"",E85^J85*K85) ->  | G85: 2924.659542 | H85: 2879 | I85: -0.01585951432 | J85: ='Round B1'!I103 -> 0.4951 | K85: ='Round B1'!J103 -> 300.9339281 | R85: ='Round B1'!Q103 -> 0.5 | S85: ='Round B1'!R103 -> 25 | T85: Flow = PN*K
B86: Ring A | C86: -54.2 | D86: 99.1 | E86: 99.1 | F86: =IF(OR(#REF!="", E86=""),"",E86^J86*K86) ->  | G86: 2929.052934 | H86: 2884 | I86: -0.01562168323 | J86: ='Round B1'!I103 -> 0.4951 | K86: ='Round B1'!J103 -> 300.9339281 | R86: ='Round B1'!Q103 -> 0.5 | S86: ='Round B1'!R103 -> 25 | T86: Flow = PN*K
B87: B8 | C87: 53.2 | D87: 152 | E87: 98.8 | F87: =IF(OR(#REF!="", E87=""),"",E87^J87*K87) ->  | G87: 1364.553287 | H87: 1353 | I87: -0.008539014744 | J87: ='Round B1'!I104 -> 0.534 | K87: ='Round B1'!J104 -> 117.4330367 | R87: ='Round B1'!Q104 -> 0.8 | S87: ='Round B1'!R104 -> 40 | T87: Flow = PN*K
B88: B8 | C88: -54.2 | D88: 99.1 | E88: 99.1 | F88: =IF(OR(#REF!="", E88=""),"",E88^J88*K88) ->  | G88: 1366.764289 | H88: 1355 | I88: -0.008682132138 | J88: ='Round B1'!I104 -> 0.534 | K88: ='Round B1'!J104 -> 117.4330367 | R88: ='Round B1'!Q104 -> 0.8 | S88: ='Round B1'!R104 -> 40 | T88: Flow = PN*K
B89: B4 | C89: 53.2 | D89: 152 | E89: 98.8 | F89: =IF(OR(#REF!="", E89=""),"",E89^3*N89+E89^2*O89+E89*P89+Q89+(L89-#REF!)*M89) ->  | G89: =IF(E89="---","---", E89^3*N89+E89^2*O89+E89*P89+Q89+(L89-ABS(C89))*M89) -> 592.9767511 | H89: 567.4 | I89: -0.0450771081 | L89: ='Round B1'!K105 -> 50 | M89: ='Round B1'!L105 -> 0.9240670992 | N89: ='Round B1'!M105 -> 1.38315776e-05 | O89: ='Round B1'!N105 -> -0.01446724159 | P89: ='Round B1'!O105 -> 6.562642138 | Q89: ='Round B1'!P105 -> 75.42624125 | R89: ='Round B1'!Q105 -> 0.8 | S89: ='Round B1'!R105 -> 55 | T89: Flow = P3*a+P2*b+P*c+d+(g-|PrA|)*f
B90: B4 | C90: -54.2 | D90: 99.1 | E90: 99.1 | F90: =IF(OR(#REF!="", E90=""),"",E90^3*N90+E90^2*O90+E90*P90+Q90+(L90-#REF!)*M90) ->  | G90: 593.2844404 | H90: 567.7 | I90: -0.04506683177 | L90: ='Round B1'!K105 -> 50 | M90: ='Round B1'!L105 -> 0.9240670992 | N90: ='Round B1'!M105 -> 1.38315776e-05 | O90: ='Round B1'!N105 -> -0.01446724159 | P90: ='Round B1'!O105 -> 6.562642138 | Q90: ='Round B1'!P105 -> 75.42624125 | R90: ='Round B1'!Q105 -> 0.8 | S90: ='Round B1'!R105 -> 55 | T90: Flow = P3*a+P2*b+P*c+d+(g-|PrA|)*f
B91: B2 | C91: 53.2 | D91: 152 | E91: 98.8 | F91: =IF(OR(#REF!="", E91=""),"",E91^3*N91+E91^2*O91+E91*P91+Q91+(L91-#REF!)*M91) ->  | G91: 231.1616144 | H91: 222 | I91: -0.04126853345 | L91: ='Round B1'!K106 -> 50 | M91: ='Round B1'!L106 -> 1.118297763 | N91: ='Round B1'!M106 -> 4.061186614e-06 | O91: ='Round B1'!N106 -> -0.005102969268 | P91: ='Round B1'!O106 -> 2.715697832 | Q91: ='Round B1'!P106 -> 12.32481851 | R91: ='Round B1'!Q106 -> 1 | S91: ='Round B1'!R106 -> 65 | T91: Flow = P3*a+P2*b+P*c+d+(g-|PrA|)*f
B92: B2 | C92: -54.2 | D92: 99.1 | E92: 99.1 | F92: =IF(OR(#REF!="", E92=""),"",E92^3*N92+E92^2*O92+E92*P92+Q92+(L92-#REF!)*M92) ->  | G92: 230.5908499 | H92: 221.5 | I92: -0.04104221173 | L92: ='Round B1'!K106 -> 50 | M92: ='Round B1'!L106 -> 1.118297763 | N92: ='Round B1'!M106 -> 4.061186614e-06 | O92: ='Round B1'!N106 -> -0.005102969268 | P92: ='Round B1'!O106 -> 2.715697832 | Q92: ='Round B1'!P106 -> 12.32481851 | R92: ='Round B1'!Q106 -> 1 | S92: ='Round B1'!R106 -> 65 | T92: Flow = P3*a+P2*b+P*c+d+(g-|PrA|)*f
B93: B1 | C93: 53.2 | D93: 152 | E93: 98.8 | F93: =IF(OR(#REF!="", E93=""),"",E93^3*N93+E93^2*O93+E93*P93+Q93+(L93-#REF!)*M93) ->  | G93: 117.8444134 | H93: 121 | I93: 0.02607922773 | L93: ='Round B1'!K107 -> 50 | M93: ='Round B1'!L107 -> 0.5120626601 | N93: ='Round B1'!M107 -> 2.207166638e-06 | O93: ='Round B1'!N107 -> -0.002648599966 | P93: ='Round B1'!O107 -> 1.386689227 | Q93: ='Round B1'!P107 -> 6.203609698 | R93: ='Round B1'!Q107 -> 1 | S93: ='Round B1'!R107 -> 70 | T93: Flow = P3*a+P2*b+P*c+d+(g-|PrA|)*f
B94: B1 | C94: -54.2 | D94: 99.1 | E94: 99.1 | F94: =IF(OR(#REF!="", E94=""),"",E94^3*N94+E94^2*O94+E94*P94+Q94+(L94-#REF!)*M94) ->  | G94: 117.6105597 | H94: 121 | I94: 0.02801190311 | L94: ='Round B1'!K107 -> 50 | M94: ='Round B1'!L107 -> 0.5120626601 | N94: ='Round B1'!M107 -> 2.207166638e-06 | O94: ='Round B1'!N107 -> -0.002648599966 | P94: ='Round B1'!O107 -> 1.386689227 | Q94: ='Round B1'!P107 -> 6.203609698 | R94: ='Round B1'!Q107 -> 1 | S94: ='Round B1'!R107 -> 70 | T94: Flow = P3*a+P2*b+P*c+d+(g-|PrA|)*f
B95: B74 | C95: 53.2 | D95: 152 | E95: 98.8 | F95: =IF(OR(#REF!="", E95=""),"",E95^3*N95+E95^2*O95+E95*P95+Q95+(L95-#REF!)*M95) ->  | G95: 61.68178929 | H95: 63.57 | I95: 0.02970285845 | L95: ='Round B1'!K108 -> 30 | M95: ='Round B1'!L108 -> 0.1648017757 | N95: ='Round B1'!M108 -> 1.077097319e-06 | O95: ='Round B1'!N108 -> -0.00117715554 | P95: ='Round B1'!O108 -> 0.612120881 | Q95: ='Round B1'!P108 -> 15.47959536 | R95: ='Round B1'!Q108 -> 0.8 | S95: ='Round B1'!R108 -> 65 | T95: Flow = P3*a+P2*b+P*c+d+(g-|PrA|)*f
B96: B74 | C96: -54.2 | D96: 99.1 | E96: 99.1 | F96: =IF(OR(#REF!="", E96=""),"",E96^3*N96+E96^2*O96+E96*P96+Q96+(L96-#REF!)*M96) ->  | G96: 61.64022743 | H96: 63.54 | I96: 0.0298988443 | L96: ='Round B1'!K108 -> 30 | M96: ='Round B1'!L108 -> 0.1648017757 | N96: ='Round B1'!M108 -> 1.077097319e-06 | O96: ='Round B1'!N108 -> -0.00117715554 | P96: ='Round B1'!O108 -> 0.612120881 | Q96: ='Round B1'!P108 -> 15.47959536 | R96: ='Round B1'!Q108 -> 0.8 | S96: ='Round B1'!R108 -> 65 | T96: Flow = P3*a+P2*b+P*c+d+(g-|PrA|)*f
B97: B47 | C97: 53.2 | D97: 152 | E97: 98.8 | F97: =IF(OR(#REF!="", E97=""),"",E97^3*N97+E97^2*O97+E97*P97+Q97+(L97-#REF!)*M97) ->  | G97: 29.63394094 | H97: 30.33 | I97: 0.02294952398 | L97: ='Round B1'!K109 -> 30 | M97: ='Round B1'!L109 -> 0.02942888851 | N97: ='Round B1'!M109 -> 2.001164419e-07 | O97: ='Round B1'!N109 -> -0.0002942888851 | P97: ='Round B1'!O109 -> 0.2201280861 | Q97: ='Round B1'!P109 -> 11.24772119 | R97: ='Round B1'!Q109 -> 1 | S97: ='Round B1'!R109 -> 50 | T97: Flow = P3*a+P2*b+P*c+d+(g-|PrA|)*f
B98: B47 | C98: -54.2 | D98: 99.1 | E98: 99.1 | F98: =IF(OR(#REF!="", E98=""),"",E98^3*N98+E98^2*O98+E98*P98+Q98+(L98-#REF!)*M98) ->  | G98: 29.65484197 | H98: 30.29 | I98: 0.02096923177 | L98: ='Round B1'!K109 -> 30 | M98: ='Round B1'!L109 -> 0.02942888851 | N98: ='Round B1'!M109 -> 2.001164419e-07 | O98: ='Round B1'!N109 -> -0.0002942888851 | P98: ='Round B1'!O109 -> 0.2201280861 | Q98: ='Round B1'!P109 -> 11.24772119 | R98: ='Round B1'!Q109 -> 1 | S98: ='Round B1'!R109 -> 50 | T98: Flow = P3*a+P2*b+P*c+d+(g-|PrA|)*f
B99: B29 | C99: 53.2 | D99: 152 | E99: 98.8 | F99: =IF(OR(#REF!="", E99=""),"",E99^3*N99+E99^2*O99+E99*P99+Q99+(L99-#REF!)*M99) ->  | G99: 9.728439319 | H99: 12.71 | I99: 0.2345838459 | L99: ='Round B1'!K110 -> 30 | M99: ='Round B1'!L110 -> 0.02354311081 | N99: ='Round B1'!M110 -> 6.612082671e-08 | O99: ='Round B1'!N110 -> -0.0001031776831 | P99: ='Round B1'!O110 -> 0.07869284788 | Q99: ='Round B1'!P110 -> 3.443179956 | R99: ='Round B1'!Q110 -> 0.6 | S99: ='Round B1'!R110 -> 50 | T99: Flow = P3*a+P2*b+P*c+d+(g-|PrA|)*f
B100: B29 | C100: -54.2 | D100: 99.1 | E100: 99.1 | F100: =IF(OR(#REF!="", E100=""),"",E100^3*N100+E100^2*O100+E100*P100+Q100+(L100-#REF!)*M100) ->  | G100: 9.72296106 | H100: 12.75 | I100: 0.2374148188 | L100: ='Round B1'!K110 -> 30 | M100: ='Round B1'!L110 -> 0.02354311081 | N100: ='Round B1'!M110 -> 6.612082671e-08 | O100: ='Round B1'!N110 -> -0.0001031776831 | P100: ='Round B1'!O110 -> 0.07869284788 | Q100: ='Round B1'!P110 -> 3.443179956 | R100: ='Round B1'!Q110 -> 0.6 | S100: ='Round B1'!R110 -> 50 | T100: Flow = P3*a+P2*b+P*c+d+(g-|PrA|)*f

Sheet 340 table (hidden)
C2: Enter Pressures appearing on gauge | E2: Fan Pressure used in flow equations | G2: P conditions: PrB>=MF, PrB>=|PrA|*K2
A3: Device | B3: Range | C3: PrA, Pa | D3: PrB, Pa | E3: P, Pa | F3: CFM calculation | G3: CFM displayed on DM32 | H3: N | I3: K | J3: K1 | K3: K2 | L3: K3 | M3: MF | N3: Flow = (P-|PrA|)*K1)N*(K+P*K3) Since K1 and K3 are 0 for 300 & 340 & 350 & 450 systems, this equation can be simplified to: Flow = PN*K
A4: 340 | B4: Open | C4: 25 | D4: 300 | E4: =IF(OR(C4="",D4="", D4<0),"---", IF(AND(C4>0, D4>=M4,D4>=ABS(C4)*K4),D4,"---")) -> 300 | F4: =IF(OR(#REF!="", E4=""),"",(E4-#REF!*J4)^H4*(I4+E4*L4)) ->  | G4: =IF(E4="---","---", (E4-ABS(C4)*J4)^H4*(I4+E4*L4)) -> 503.6001378 | H4: 0.501 | I4: 28.91 | J4: 0 | K4: 0.4 | L4: 0 | M4: 20 | N4: use when PrA is positive or when "Set Pressure" value of "0" Pa is entered
B5: Open | C5: -25 | D5: 300 | E5: =IF(OR(C5="",D5="", D5<0),"---", IF(AND(C5<0, D5>=M5,D5>=ABS(C5)*K5),D5,"---")) -> 300 | F5: =IF(OR(#REF!="", E5=""),"",(E5-#REF!*J5)^H5*(I5+E5*L5)) ->  | G5: 518.708142 | H5: 0.501 | I5: 29.7773 | J5: 0 | K5: 0.4 | L5: 0 | M5: 20 | N5: use when PrA is negative
B6: 102 | C6: 25 | D6: 300 | E6: =IF(OR(C6="",D6="", D6<0),"---", IF(AND(D6>=M6,D6>=ABS(C6)*K6),D6,"---")) -> 300 | F6: =IF(OR(#REF!="", E6=""),"",(E6-#REF!*J6)^H6*(I6+E6*L6)) ->  | G6: 309.6601487 | H6: 0.59 | I6: 10.7 | J6: 0 | K6: 0.4 | L6: 0 | M6: 100
B7: 74 | C7: 25 | D7: 300 | E7: 300 | F7: =IF(OR(#REF!="", E7=""),"",(E7-#REF!*J7)^H7*(I7+E7*L7)) ->  | G7: 125.7698251 | H7: 0.5045 | I7: 7.077319209 | J7: 0 | K7: 0.25 | L7: 0 | M7: 15
B8: 47 | C8: 25 | D8: 15 | E8: 15 | F8: =IF(OR(#REF!="", E8=""),"",(E8-#REF!*J8)^H8*(I8+E8*L8)) ->  | G8: 12.55209093 | H8: 0.5 | I8: 3.240935942 | J8: 0 | K8: 0.1 | L8: 0 | M8: 10
B9: 29 | C9: 25 | D9: 25 | E9: 25 | F9: =IF(OR(#REF!="", E9=""),"",(E9-#REF!*J9)^H9*(I9+E9*L9)) ->  | G9: 5.989685794 | H9: 0.502 | I9: 1.190249908 | J9: 0 | K9: 0.2 | L9: 0 | M9: 20
B10: 18 | C10: 25 | D10: 35 | E10: 35 | F10: =IF(OR(#REF!="", E10=""),"",(E10-#REF!*J10)^H10*(I10+E10*L10)) ->  | G10: 2.694053117 | H10: 0.499 | I10: 0.457 | J10: 0 | K10: 0.25 | L10: 0 | M10: 25
B11: 11 | C11: 25 | D11: 300 | E11: 300 | F11: =IF(OR(#REF!="", E11=""),"",(E11-#REF!*J11)^H11*(I11+E11*L11)) ->  | G11: 3.214263948 | H11: 0.48 | I11: 0.208 | J11: 0 | K11: 0.25 | L11: 0 | M11: 25
B12: 7 | C12: 25 | D12: 250 | E12: 250 | F12: =IF(OR(#REF!="", E12=""),"",(E12-#REF!*J12)^H12*(I12+E12*L12)) ->  | G12: 1.13525768 | H12: 0.5 | I12: 0.0718 | J12: 0 | K12: 0.11 | L12: 0 | M12: 25
C15: Flow in CFM, induced pressure of: | G15: 25
C17: P (Pa) | D17: Open | E17: 74 | F17: 47 | G17: 29
C18: 10 | D18: =IF($G$15="","", IF(AND(C18>=$M$4,C18>=$G$15*$K$4,C18>0),(C18-$G$15*$J$4)^$H$4*($I$4+C18*$L$4),"---")) -> --- | E18: =IF($G$15="","", IF(AND(C18>=$M$7,C18>=$G$15*$K$7,C18>0),(C18-$G$15*$J$7)^$H$7*($I$7+C18*$L$7),"---")) -> --- | F18: =IF($G$15="","", IF(AND(C18>=$M$8,C18>=$G$15*$K$8,C18>0),(C18-$G$15*$J$8)^$H$8*($I$8+C18*$L$8),"---")) -> 10.24873933 | G18: =IF($G$15="","", IF(AND(C18>=$M$9,C18>=$G$15*$K$9,C18>0),(C18-$G$15*$J$9)^$H$9*($I$9+C18*$L$9),"---")) -> ---
C19: 12 | D19: --- | E19: --- | F19: 11.22693143 | G19: ---
C20: 14 | D20: --- | E20: --- | F20: 12.12647191 | G20: ---
C21: 16 | D21: --- | E21: 28.66469435 | F21: 12.96374377 | G21: ---
C22: 18 | D22: --- | E22: 30.41961848 | F22: 13.75012669 | G22: ---
C23: 20 | D23: 129.6773478 | E23: 32.0802997 | F23: 14.49390615 | G23: 5.354947462
C24: 22 | D24: 136.0197132 | E24: 33.66053594 | F24: 15.20133702 | G24: 5.617386966
C25: 24 | D25: 142.0803191 | E25: 35.17105174 | F25: 15.87727869 | G25: 5.868190444
C26: 26 | D26: 147.8937221 | E26: 36.62037929 | F26: 16.52559561 | G26: 6.108784112
C27: 28 | D27: 153.4879428 | E27: 38.01543907 | F27: 17.14942104 | G27: 6.340324535
C28: 30 | D28: 158.8860763 | E28: 39.36193656 | F28: 17.75133723 | G28: 6.563765039
C29: 32 | D29: 164.1074249 | E29: 40.66464152 | F29: 18.33350226 | G29: 6.779902456
C30: 34 | D30: 169.1683172 | E30: 41.92758979 | F30: 18.89774157 | G30: 6.989410898
C31: 36 | D31: 174.0827123 | E31: 43.15423236 | F31: 19.44561565 | G31: 7.192866699
C32: 38 | D32: 178.8626552 | E32: 44.3475476 | F32: 19.9784709 | G32: 7.390767187
C33: 40 | D33: 183.5186253 | E33: 45.51012723 | F33: 20.49747866 | G33: 7.583545069
C34: 42 | D34: 188.059807 | E34: 46.6442432 | F34: 21.00366546 | G34: 7.771579612
C35: 44 | D35: 192.4943038 | E35: 47.75190032 | F35: 21.49793698 | G35: 7.955205449
C36: 46 | D36: 196.8293079 | E36: 48.83487834 | F36: 21.98109701 | G36: 8.134719607
C37: 48 | D37: 201.0712379 | E37: 49.89476579 | F37: 22.45386286 | G37: 8.310387173
C38: 50 | D38: 205.2258504 | E38: 50.93298757 | F38: 22.91687782 | G38: 8.482445904
C39: 52 | D39: 209.2983318 | E39: 51.95082766 | F39: 23.37072144 | G39: 8.651110016
C40: 54 | D40: 213.2933746 | E40: 52.94944787 | F40: 23.81591804 | G40: 8.816573328
C41: 56 | D41: 217.2152404 | E41: 53.92990356 | F41: 24.25294382 | G41: 8.979011877
C42: 58 | D42: 221.0678138 | E42: 54.89315678 | F42: 24.68223279 | G42: 9.138586128
C43: 60 | D43: 224.8546474 | E43: 55.84008747 | F43: 25.10418186 | G43: 9.29544283
C44: 62 | D44: 228.5789998 | E44: 56.77150291 | F44: 25.51915513 | G44: 9.449716612
C45: 64 | D45: 232.2438694 | E45: 57.6881459 | F45: 25.92748754 | G45: 9.601531331
C46: 66 | D46: 235.8520217 | E46: 58.59070173 | F46: 26.32948806 | G46: 9.75100125
C47: 68 | D47: 239.4060146 | E47: 59.47980424 | F47: 26.72544243 | G47: 9.898232042
C48: 70 | D48: 242.908219 | E48: 60.35604105 | F48: 27.11561551 | G48: 10.04332167
C49: 72 | D49: 246.3608378 | E49: 61.21995817 | F49: 27.50025338 | G49: 10.18636115
C50: 74 | D50: =IF($G$15="","", IF(AND(C50>=$M$4,C50>=$G$15*$K$4,C50>0),(C50-$G$15*$J$4)^$H$4*($I$4+C50*$L$4),"---")) -> 249.7659221 | E50: =IF($G$15="","", IF(AND(C50>=$M$7,C50>=$G$15*$K$7,C50>0),(C50-$G$15*$J$7)^$H$7*($I$7+C50*$L$7),"---")) -> 62.072064 | F50: =IF($G$15="","", IF(AND(C50>=$M$8,C50>=$G$15*$K$8,C50>0),(C50-$G$15*$J$8)^$H$8*($I$8+C50*$L$8),"---")) -> 27.87958514 | G50: =IF($G$15="","", IF(AND(C50>=$M$9,C50>=$G$15*$K$9,C50>0),(C50-$G$15*$J$9)^$H$9*($I$9+C50*$L$9),"---")) -> 10.32743523
C51: 76 | D51: 253.1253852 | E51: 62.91283289 | F51: 28.25382451 | G51: 10.46662296
C52: 78 | D52: 256.4410153 | E52: 63.74270819 | F52: 28.62317122 | G52: 10.60399824
C53: 80 | D53: 259.7144868 | E53: 64.5621051 | F53: 28.98781231 | G53: 10.73963026
C54: 82 | D54: 262.9473702 | E54: 65.37141304 | F54: 29.34792316 | G54: 10.87358391
C55: 84 | D55: 266.1411407 | E55: 66.17099786 | F55: 29.70366855 | G55: 11.00592016
C56: 86 | D56: 269.2971863 | E56: 66.96120381 | F56: 30.05520349 | G56: 11.13669636
C57: 88 | D57: 272.4168146 | E57: 67.74235527 | F57: 30.40267404 | G57: 11.26596656
C58: 90 | D58: 275.5012597 | E58: 68.51475831 | F58: 30.74621798 | G58: 11.39378175
C59: 92 | D59: 278.5516871 | E59: 69.27870212 | F59: 31.08596551 | G59: 11.5201901
C60: 94 | D60: 281.5691996 | E60: 70.03446029 | F60: 31.42203977 | G60: 11.6452372
C61: 96 | D61: 284.5548416 | E61: 70.78229195 | F61: 31.75455739 | G61: 11.7689662
C62: 98 | D62: 287.5096034 | E62: 71.52244283 | F62: 32.08362895 | G62: 11.89141803
C63: 100 | D63: 290.434425 | E63: 72.25514619 | F63: 32.40935942 | G63: 12.01263155
C64: 102 | D64: 293.3301996 | E64: 72.98062372 | F64: 32.73184855 | G64: 12.13264367
C65: 104 | D65: 296.1977769 | E65: 73.69908632 | F65: 33.05119122 | G65: 12.25148952
C66: 106 | D66: 299.0379661 | E66: 74.41073478 | F66: 33.36747777 | G66: 12.36920254
C67: 108 | D67: 301.8515381 | E67: 75.11576052 | F67: 33.68079429 | G67: 12.4858146
C68: 110 | D68: 304.6392286 | E68: 75.81434613 | F68: 33.99122292 | G68: 12.6013561
C69: 112 | D69: 307.4017397 | E69: 76.50666596 | F69: 34.29884207 | G69: 12.71585608
C70: 114 | D70: 310.1397427 | E70: 77.19288661 | F70: 34.60372666 | G70: 12.82934227
C71: 116 | D71: 312.8538792 | E71: 77.87316743 | F71: 34.90594835 | G71: 12.94184121
C72: 118 | D72: 315.5447634 | E72: 78.54766093 | F72: 35.20557572 | G72: 13.05337829
C73: 120 | D73: 318.2129839 | E73: 79.21651322 | F73: 35.50267446 | G73: 13.16397782
C74: 122 | D74: 320.8591043 | E74: 79.87986434 | F74: 35.79730751 | G74: 13.27366313
C75: 124 | D75: 323.4836658 | E75: 80.53784861 | F75: 36.08953528 | G75: 13.38245656
C76: 126 | D76: 326.0871873 | E76: 81.19059499 | F76: 36.37941572 | G76: 13.4903796
C77: 128 | D77: 328.6701677 | E77: 81.83822734 | F77: 36.66700451 | G77: 13.59745284
C78: 130 | D78: 331.2330863 | E78: 82.4808647 | F78: 36.95235515 | G78: 13.70369611
C79: 132 | D79: 333.7764038 | E79: 83.11862158 | F79: 37.2355191 | G79: 13.80912847
C80: 134 | D80: 336.300564 | E80: 83.75160814 | F80: 37.51654588 | G80: 13.91376825
C81: 136 | D81: 338.8059938 | E81: 84.3799305 | F81: 37.79548314 | G81: 14.0176331
C82: 138 | D82: =IF($G$15="","", IF(AND(C82>=$M$4,C82>=$G$15*$K$4,C82>0),(C82-$G$15*$J$4)^$H$4*($I$4+C82*$L$4),"---")) -> 341.2931046 | E82: =IF($G$15="","", IF(AND(C82>=$M$7,C82>=$G$15*$K$7,C82>0),(C82-$G$15*$J$7)^$H$7*($I$7+C82*$L$7),"---")) -> 85.00369085 | F82: =IF($G$15="","", IF(AND(C82>=$M$8,C82>=$G$15*$K$8,C82>0),(C82-$G$15*$J$8)^$H$8*($I$8+C82*$L$8),"---")) -> 38.07237683 | G82: =IF($G$15="","", IF(AND(C82>=$M$9,C82>=$G$15*$K$9,C82>0),(C82-$G$15*$J$9)^$H$9*($I$9+C82*$L$9),"---")) -> 14.12074004
C83: 140 | D83: 343.762293 | E83: 85.62298773 | F83: 38.34727121 | G83: 14.22310547
C84: 142 | D84: 346.2139415 | E84: 86.23791617 | F84: 38.62020897 | G84: 14.32474519
C85: 144 | D85: 348.648419 | E85: 86.84856787 | F85: 38.8912313 | G85: 14.42567446
C86: 146 | D86: 351.066082 | E86: 87.45503135 | F86: 39.16037798 | G86: 14.52590803
C87: 148 | D87: 353.4672744 | E87: 88.05739214 | F87: 39.42768742 | G87: 14.62546011
C88: 150 | D88: 355.8523289 | E88: 88.65573287 | F88: 39.69319674 | G88: 14.72434445
C89: 152 | D89: 358.2215669 | E89: 89.25013345 | F89: 39.95694181 | G89: 14.82257436
C90: 154 | D90: 360.5752994 | E90: 89.84067117 | F90: 40.21895735 | G90: 14.92016268
C91: 156 | D91: 362.9138273 | E91: 90.4274208 | F91: 40.47927694 | G91: 15.01712186
C92: 158 | D92: 365.2374418 | E92: 91.01045475 | F92: 40.7379331 | G92: 15.11346394
C93: 160 | D93: 367.5464251 | E93: 91.58984316 | F93: 40.99495731 | G93: 15.20920059
C94: 162 | D94: 369.8410505 | E94: 92.16565394 | F94: 41.25038008 | G94: 15.30434312
C95: 164 | D95: 372.1215828 | E95: 92.73795298 | F95: 41.50423096 | G95: 15.39890246
C96: 166 | D96: 374.388279 | E96: 93.30680411 | F96: 41.75653864 | G96: 15.49288926
C97: 168 | D97: 376.6413882 | E97: 93.87226928 | F97: 42.00733092 | G97: 15.58631381
C98: 170 | D98: 378.8811521 | E98: 94.4344086 | F98: 42.25663478 | G98: 15.6791861
C99: 172 | D99: 381.1078054 | E99: 94.99328042 | F99: 42.5044764 | G99: 15.77151585
C100: 174 | D100: 383.321576 | E100: 95.5489414 | F100: 42.75088123 | G100: 15.86331248
C101: 176 | D101: 385.5226852 | E101: 96.10144657 | F101: 42.99587396 | G101: 15.95458513
C102: 178 | D102: 387.7113482 | E102: 96.65084943 | F102: 43.23947859 | G102: 16.04534271
C103: 180 | D103: 389.8877738 | E103: 97.19720194 | F103: 43.48171846 | G103: 16.13559386
C104: 182 | D104: 392.0521655 | E104: 97.74055467 | F104: 43.72261625 | G104: 16.22534699
C105: 184 | D105: 394.2047209 | E105: 98.28095678 | F105: 43.96219403 | G105: 16.31461027
C106: 186 | D106: 396.3456324 | E106: 98.81845611 | F106: 44.20047325 | G106: 16.40339166
C107: 188 | D107: 398.475087 | E107: 99.35309921 | F107: 44.4374748 | G107: 16.49169889
C108: 190 | D108: 400.5932672 | E108: 99.88493141 | F108: 44.67321903 | G108: 16.57953952
C109: 192 | D109: 402.7003502 | E109: 100.4139968 | F109: 44.90772573 | G109: 16.66692086
C110: 194 | D110: 404.7965089 | E110: 100.9403385 | F110: 45.14101418 | G110: 16.75385008
C111: 196 | D111: 406.8819118 | E111: 101.4639983 | F111: 45.37310319 | G111: 16.84033414
C112: 198 | D112: 408.9567229 | E112: 101.985017 | F112: 45.60401106 | G112: 16.92637982
C113: 200 | D113: 411.0211022 | E113: 102.5034344 | F113: 45.83375564 | G113: 17.01199374
C114: 202 | D114: =IF($G$15="","", IF(AND(C114>=$M$4,C114>=$G$15*$K$4,C114>0),(C114-$G$15*$J$4)^$H$4*($I$4+C114*$L$4),"---")) -> 413.0752057 | E114: =IF($G$15="","", IF(AND(C114>=$M$7,C114>=$G$15*$K$7,C114>0),(C114-$G$15*$J$7)^$H$7*($I$7+C114*$L$7),"---")) -> 103.0192894 | F114: =IF($G$15="","", IF(AND(C114>=$M$8,C114>=$G$15*$K$8,C114>0),(C114-$G$15*$J$8)^$H$8*($I$8+C114*$L$8),"---")) -> 46.06235434 | G114: =IF($G$15="","", IF(AND(C114>=$M$9,C114>=$G$15*$K$9,C114>0),(C114-$G$15*$J$9)^$H$9*($I$9+C114*$L$9),"---")) -> 17.09718236
C115: 204 | D115: 415.1191855 | E115: 103.5326198 | F115: 46.28982414 | G115: 17.18195196
C116: 206 | D116: 417.1531901 | E116: 104.0434625 | F116: 46.5161816 | G116: 17.26630869
C117: 208 | D117: 419.1773642 | E117: 104.5518535 | F117: 46.74144288 | G117: 17.35025854
C118: 210 | D118: 421.1918493 | E118: 105.0578281 | F118: 46.96562375 | G118: 17.43380735
C119: 212 | D119: 423.1967833 | E119: 105.5614205 | F119: 47.1887396 | G119: 17.51696082
C120: 214 | D120: 425.192301 | E120: 106.0626644 | F120: 47.41080549 | G120: 17.59972455
C121: 216 | D121: 427.178534 | E121: 106.5615923 | F121: 47.63183608 | G121: 17.68210396
C122: 218 | D122: 429.1556109 | E122: 107.0582365 | F122: 47.85184573 | G122: 17.76410438
C123: 220 | D123: 431.1236573 | E123: 107.552628 | F123: 48.07084846 | G123: 17.845731
C124: 222 | D124: 433.0827959 | E124: 108.0447974 | F124: 48.28885796 | G124: 17.9269889
C125: 224 | D125: 435.0331469 | E125: 108.5347748 | F125: 48.50588763 | G125: 18.00788306
C126: 226 | D126: 436.9748276 | E126: 109.0225891 | F126: 48.72195056 | G126: 18.08841831
C127: 228 | D127: 438.9079527 | E127: 109.5082691 | F127: 48.93705956 | G127: 18.16859942
C128: 230 | D128: 440.8326345 | E128: 109.9918426 | F128: 49.15122714 | G128: 18.24843102
C129: 232 | D129: 442.7489828 | E129: 110.4733369 | F129: 49.36446557 | G129: 18.32791765
C130: 234 | D130: 444.6571051 | E130: 110.9527789 | F130: 49.57678683 | G130: 18.40706377
C131: 236 | D131: 446.5571065 | E131: 111.4301948 | F131: 49.78820266 | G131: 18.48587372
C132: 238 | D132: 448.4490901 | E132: 111.90561 | F132: 49.99872454 | G132: 18.56435176
C133: 240 | D133: 450.3331565 | E133: 112.3790498 | F133: 50.20836372 | G133: 18.64250206
C134: 242 | D134: 452.2094045 | E134: 112.8505386 | F134: 50.4171312 | G134: 18.72032871
C135: 244 | D135: 454.0779307 | E135: 113.3201006 | F135: 50.62503778 | G135: 18.7978357
C136: 246 | D136: 455.9388299 | E136: 113.7877593 | F136: 50.83209402 | G136: 18.87502694
C137: 248 | D137: 457.7921947 | E137: 114.2535379 | F137: 51.03831025 | G137: 18.95190629
C138: 250 | D138: 459.6381162 | E138: 114.7174589 | F138: 51.24369664 | G138: 19.02847749
C139: 252 | D139: 461.4766833 | E139: 115.1795445 | F139: 51.44826311 | G139: 19.10474424
C140: 254 | D140: 463.3079834 | E140: 115.6398166 | F140: 51.6520194 | G140: 19.18071014
C141: 256 | D141: 465.1321021 | E141: 116.0982963 | F141: 51.85497507 | G141: 19.25637874
C142: 258 | D142: 466.9491233 | E142: 116.5550046 | F142: 52.05713948 | G142: 19.3317535
C143: 260 | D143: 468.7591294 | E143: 117.0099619 | F143: 52.25852182 | G143: 19.40683785
C144: 262 | D144: 470.5622011 | E144: 117.4631885 | F144: 52.45913109 | G144: 19.48163511
C145: 264 | D145: 472.3584176 | E145: 117.914704 | F145: 52.65897612 | G145: 19.55614856
C146: 266 | D146: =IF($G$15="","", IF(AND(C146>=$M$4,C146>=$G$15*$K$4,C146>0),(C146-$G$15*$J$4)^$H$4*($I$4+C146*$L$4),"---")) -> 474.1478566 | E146: =IF($G$15="","", IF(AND(C146>=$M$7,C146>=$G$15*$K$7,C146>0),(C146-$G$15*$J$7)^$H$7*($I$7+C146*$L$7),"---")) -> 118.3645278 | F146: =IF($G$15="","", IF(AND(C146>=$M$8,C146>=$G$15*$K$8,C146>0),(C146-$G$15*$J$8)^$H$8*($I$8+C146*$L$8),"---")) -> 52.85806559 | G146: =IF($G$15="","", IF(AND(C146>=$M$9,C146>=$G$15*$K$9,C146>0),(C146-$G$15*$J$9)^$H$9*($I$9+C146*$L$9),"---")) -> 19.63038142
C147: 268 | D147: 475.9305943 | E147: 118.8126788 | F147: 53.05640799 | G147: 19.70433684
C148: 270 | D148: 477.7067056 | E148: 119.2591757 | F148: 53.25401169 | G148: 19.77801792
C149: 272 | D149: 479.4762639 | E149: 119.7040367 | F149: 53.45088486 | G149: 19.8514277
C150: 274 | D150: 481.2393413 | E150: 120.1472799 | F150: 53.64703555 | G150: 19.92456915
C151: 276 | D151: 482.9960086 | E151: 120.5889229 | F151: 53.84247167 | G151: 19.99744522
C152: 278 | D152: 484.7463352 | E152: 121.0289829 | F152: 54.03720095 | G152: 20.07005876
C153: 280 | D153: 486.4903896 | E153: 121.467477 | F153: 54.23123103 | G153: 20.14241262
C154: 282 | D154: 488.2282386 | E154: 121.9044219 | F154: 54.42456936 | G154: 20.21450955
C155: 284 | D155: 489.9599482 | E155: 122.3398339 | F155: 54.61722331 | G155: 20.28635229
C156: 286 | D156: 491.685583 | E156: 122.7737293 | F156: 54.80920008 | G156: 20.35794352
C157: 288 | D157: 493.4052066 | E157: 123.2061237 | F157: 55.00050677 | G157: 20.42928586
C158: 290 | D158: 495.1188815 | E158: 123.6370329 | F158: 55.19115034 | G158: 20.50038189
C159: 292 | D159: 496.8266691 | E159: 124.066472 | F159: 55.38113765 | G159: 20.57123417
C160: 294 | D160: 498.5286297 | E160: 124.4944561 | F160: 55.57047543 | G160: 20.64184518
C161: 296 | D161: 500.2248226 | E161: 124.921 | F161: 55.75917029 | G161: 20.71221738
C162: 298 | D162: 501.9153062 | E162: 125.3461183 | F162: 55.94722873 | G162: 20.78235318
C163: 300 | D163: 503.6001378 | E163: 125.7698251 | F163: 56.13465716 | G163: 20.85225496

Sheet 450 table (hidden)
C2: Enter Pressures appearing on gauge | E2: Fan Pressure used in flow equations | G2: P conditions: PrB>=MF, PrB>=|PrA|*K2
A3: Device | B3: Range | C3: PrA, Pa | D3: PrB, Pa | E3: P, Pa | F3: CFM calculation | G3: CFM displayed on DM32 | H3: N | I3: K | J3: K1 | K3: K2 | L3: K3 | M3: MF | N3: Flow = (P-|PrA|)*K1)N*(K+P*K3) Since K1 and K3 are 0 for 300 & 340 & 350 & 450 systems, this equation can be simplified to: Flow = PN*K
A4: 450 | B4: ='Round B1'!B48 -> 74 | C4: 25 | D4: 300 | E4: =IF(OR(C4="",D4="", D4<0),"---", IF(AND(C4>0, D4>=M4,D4>=ABS(C4)*K4),D4,"---")) -> 300 | F4: =IF(OR(#REF!="", E4=""),"",(E4-#REF!*J4)^H4*(I4+E4*L4)) ->  | G4: =IF(E4="---","---", (E4-ABS(C4)*J4)^H4*(I4+E4*L4)) -> 125.4383344 | H4: ='Round B1'!I48 -> 0.504 | I4: ='Round B1'!J48 -> 7.078824842 | J4: ='Round B1'!K48 -> 0 | K4: ='Round B1'!L48 -> 0.15 | L4: ='Round B1'!M48 -> 0 | M4: ='Round B1'!N48 -> 250 | N4: use when PrA is positive or when "Set Pressure" value of "0" Pa is entered
B5: ='Round B1'!#REF! ->  | C5: -25 | D5: 300 | E5: =IF(OR(C5="",D5="", D5<0),"---", IF(AND(C5<0, D5>=M5,D5>=ABS(C5)*K5),D5,"---")) ->  | F5: =IF(OR(#REF!="", E5=""),"",(E5-#REF!*J5)^H5*(I5+E5*L5)) ->  | G5: =IF(E5="---","---", (E5-ABS(C5)*J5)^H5*(I5+E5*L5)) ->  | H5: ='Round B1'!#REF! ->  | I5: ='Round B1'!#REF! ->  | J5: ='Round B1'!#REF! ->  | K5: ='Round B1'!#REF! ->  | L5: ='Round B1'!#REF! ->  | M5: ='Round B1'!#REF! ->  | N5: use when PrA is negative
B6: ='Round B1'!B49 -> 47 | C6: 25 | D6: 300 | E6: =IF(OR(C6="",D6="", D6<0),"---", IF(AND(D6>=M6,D6>=ABS(C6)*K6),D6,"---")) -> 300 | F6: =IF(OR(#REF!="", E6=""),"",(E6-#REF!*J6)^H6*(I6+E6*L6)) ->  | G6: 52.96418511 | H6: ='Round B1'!I49 -> 0.4975 | I6: ='Round B1'!J49 -> 3.101804849 | J6: ='Round B1'!K49 -> 0 | K6: ='Round B1'!L49 -> 0.12 | L6: ='Round B1'!M49 -> 0 | M6: ='Round B1'!N49 -> 250
B7: ='Round B1'!B50 -> 29 | C7: 25 | D7: 300 | E7: 300 | F7: =IF(OR(#REF!="", E7=""),"",(E7-#REF!*J7)^H7*(I7+E7*L7)) ->  | G7: 19.06595047 | H7: ='Round B1'!I50 -> 0.49 | I7: ='Round B1'!J50 -> 1.165383985 | J7: ='Round B1'!K50 -> 0 | K7: ='Round B1'!L50 -> 0.15 | L7: ='Round B1'!M50 -> 0 | M7: ='Round B1'!N50 -> 250
B8: ='Round B1'!B51 -> 18 | C8: 25 | D8: 15 | E8: --- | F8: =IF(OR(#REF!="", E8=""),"",(E8-#REF!*J8)^H8*(I8+E8*L8)) ->  | G8: --- | H8: ='Round B1'!I51 -> 0.5 | I8: ='Round B1'!J51 -> 0.4237759946 | J8: ='Round B1'!K51 -> 0 | K8: ='Round B1'!L51 -> 0.15 | L8: ='Round B1'!M51 -> 0 | M8: ='Round B1'!N51 -> 250
B9: ='Round B1'!B52 -> 11 | C9: 25 | D9: 25 | E9: --- | F9: =IF(OR(#REF!="", E9=""),"",(E9-#REF!*J9)^H9*(I9+E9*L9)) ->  | G9: --- | H9: ='Round B1'!I52 -> 0.5 | I9: ='Round B1'!J52 -> 0.1753961755 | J9: ='Round B1'!K52 -> 0 | K9: ='Round B1'!L52 -> 0.14 | L9: ='Round B1'!M52 -> 0 | M9: ='Round B1'!N52 -> 250
B10: ='Round B1'!B53 -> 7 | C10: 25 | D10: 35 | E10: --- | F10: =IF(OR(#REF!="", E10=""),"",(E10-#REF!*J10)^H10*(I10+E10*L10)) ->  | G10: --- | H10: ='Round B1'!I53 -> 0.5 | I10: ='Round B1'!J53 -> 0.06180066587 | J10: ='Round B1'!K53 -> 0 | K10: ='Round B1'!L53 -> 0.08 | L10: ='Round B1'!M53 -> 0 | M10: ='Round B1'!N53 -> 250
B11: ='Round B1'!B54 -> 3 | C11: 25 | D11: 300 | E11: 300 | F11: =IF(OR(#REF!="", E11=""),"",(E11-#REF!*J11)^H11*(I11+E11*L11)) ->  | G11: 0.2744777012 | H11: ='Round B1'!I54 -> 0.513 | I11: ='Round B1'!J54 -> 0.01471444426 | J11: ='Round B1'!K54 -> 0 | K11: ='Round B1'!L54 -> 0.1 | L11: ='Round B1'!M54 -> 0 | M11: ='Round B1'!N54 -> 250
B12: ='Round B1'!#REF! ->  | C12: 25 | D12: 250 | F12: =IF(OR(#REF!="", E12=""),"",(E12-#REF!*J12)^H12*(I12+E12*L12)) ->  | H12: ='Round B1'!#REF! ->  | I12: ='Round B1'!#REF! ->  | J12: ='Round B1'!#REF! ->  | K12: ='Round B1'!#REF! ->  | L12: ='Round B1'!#REF! ->  | M12: ='Round B1'!#REF! -> 
B13: ='Round B1'!#REF! ->  | H13: ='Round B1'!#REF! ->  | I13: ='Round B1'!#REF! ->  | J13: ='Round B1'!#REF! ->  | K13: ='Round B1'!#REF! ->  | L13: ='Round B1'!#REF! ->  | M13: ='Round B1'!#REF! -> 
C15: Flow in CFM, induced pressure of: | G15: 250
C17: P (Pa) | D17: P (in WC) | E17: =B4 -> 74 | F17: =B5 ->  | G17: =B5&"*" ->  | H17: =B6 -> 47 | I17: =B7 -> 29 | J17: =B8 -> 18 | K17: =B9 -> 11 | L17: =B10 -> 7 | M17: =B11 -> 3 | N17: =B12 ->  | O17: =B13 -> 
C18: 246 | D18: =C18/249.174 -> 0.9872619134 | E18: =IF($G$15="","", IF(AND(C18>=$M$4,C18>=$G$15*$K$4,C18>0),(C18-$G$15*$J$4)^$H$4*($I$4+C18*$L$4),"---")) -> --- | F18: =IF($G$15="","", IF(AND(C18>=$M$5,C18>=$G$15*$K$5,C18>0),(C18-$G$15*$J$5)^$H$5*($I$5+C18*$L$5),"---")) ->  | G18: =IF($G$15="","", IF(AND(C18>=$M$5,C18>=$G$15*$K$5,C18>0),(C18-$G$15*$J$5)^$H$5*($I$5+C18*$L$5),"---")) ->  | H18: =IF($G$15="","", IF(AND(C18>=$M$6,C18>=$G$15*$K$6,C18>0),(C18-$G$15*$J$6)^$H$6*($I$6+C18*$L$6),"---")) -> --- | I18: =IF($G$15="","", IF(AND(C18>=$M$7,C18>=$G$15*$K$7,C18>0),(C18-$G$15*$J$7)^$H$7*($I$7+C18*$L$7),"---")) -> --- | J18: =IF($G$15="","", IF(AND(C18>=$M$8,C18>=$G$15*$K$8,C18>0),(C18-$G$15*$J$8)^$H$8*($I$8+C18*$L$8),"---")) -> --- | K18: =IF($G$15="","", IF(AND(C18>=$M$9,C18>=$G$15*$K$9,C18>0),(C18-$G$15*$J$9)^$H$9*($I$9+C18*$L$9),"---")) -> --- | L18: =IF($G$15="","", IF(AND(C18>=$M$10,C18>=$G$15*$K$10,C18>0),(C18-$G$15*$J$10)^$H$10*($I$10+C18*$L$10),"---")) -> --- | M18: =IF($G$15="","", IF(AND(C18>=$M$11,C18>=$G$15*$K$11,C18>0),(C18-$G$15*$J$11)^$H$11*($I$11+C18*$L$11),"---")) -> --- | N18: =IF($G$15="","", IF(AND(C18>=$M$12,C18>=$G$15*$K$12,C18>0),(C18-$G$15*$J$12)^$H$12*($I$12+C18*$L$12),"---")) ->  | O18: =IF($G$15="","", IF(AND(C18>=$M$13,C18>=$G$15*$K$13,C18>0),(C18-$G$15*$J$13)^$H$13*($I$13+C18*$L$13),"---")) -> 
C19: 248 | D19: =C19/249.174 -> 0.995288433 | E19: =IF($G$15="","", IF(AND(C19>=$M$4,C19>=$G$15*$K$4,C19>0),(C19-$G$15*$J$4)^$H$4*($I$4+C19*$L$4),"---")) -> --- | G19: =IF($G$15="","", IF(AND(C19>=$M$5,C19>=$G$15*$K$5,C19>0),(C19-$G$15*$J$5)^$H$5*($I$5+C19*$L$5),"---")) ->  | H19: =IF($G$15="","", IF(AND(C19>=$M$6,C19>=$G$15*$K$6,C19>0),(C19-$G$15*$J$6)^$H$6*($I$6+C19*$L$6),"---")) -> --- | I19: =IF($G$15="","", IF(AND(C19>=$M$7,C19>=$G$15*$K$7,C19>0),(C19-$G$15*$J$7)^$H$7*($I$7+C19*$L$7),"---")) -> --- | J19: =IF($G$15="","", IF(AND(C19>=$M$8,C19>=$G$15*$K$8,C19>0),(C19-$G$15*$J$8)^$H$8*($I$8+C19*$L$8),"---")) -> --- | K19: =IF($G$15="","", IF(AND(C19>=$M$9,C19>=$G$15*$K$9,C19>0),(C19-$G$15*$J$9)^$H$9*($I$9+C19*$L$9),"---")) -> --- | L19: =IF($G$15="","", IF(AND(C19>=$M$10,C19>=$G$15*$K$10,C19>0),(C19-$G$15*$J$10)^$H$10*($I$10+C19*$L$10),"---")) -> --- | M19: =IF($G$15="","", IF(AND(C19>=$M$11,C19>=$G$15*$K$11,C19>0),(C19-$G$15*$J$11)^$H$11*($I$11+C19*$L$11),"---")) -> --- | N19: =IF($G$15="","", IF(AND(C19>=$M$12,C19>=$G$15*$K$12,C19>0),(C19-$G$15*$J$12)^$H$12*($I$12+C19*$L$12),"---")) ->  | O19: =IF($G$15="","", IF(AND(C19>=$M$13,C19>=$G$15*$K$13,C19>0),(C19-$G$15*$J$13)^$H$13*($I$13+C19*$L$13),"---")) -> 
C20: 250 | D20: 1.003314953 | E20: 114.4255295 | H20: 48.37150778 | I20: 17.43651348 | J20: 6.700486802 | K20: 2.773257038 | L20: 0.9771543254 | M20: 0.2499695385
C21: 275 | D21: 1.103646448 | E21: 120.0562694 | H21: 50.72037849 | I21: 18.27014801 | J21: 7.027529845 | K21: 2.908616519 | L21: 1.024848102 | M21: 0.2624953026
C22: 300 | D22: 1.203977943 | E22: 125.4383344 | H22: 52.96418511 | I22: 19.06595047 | J22: 7.340015536 | K22: 3.037950875 | L22: 1.070418932 | M22: 0.2744777012
C23: 325 | D23: 1.304309438 | E23: 130.6021662 | H23: 55.11584151 | I23: 19.82859272 | J23: 7.639730388 | K23: 3.161999522 | L23: 1.114127348 | M23: 0.2859828753
C24: 350 | D24: 1.404640934 | E24: 135.5724551 | H24: 57.18581601 | I24: 20.5618595 | J24: 7.928122902 | K24: 3.281361979 | L24: 1.15618459 | M24: 0.2970645104
C25: 375 | D25: 1.504972429 | E25: 140.3695557 | H25: 59.18273432 | I25: 21.26886755 | J25: 8.206386847 | K25: 3.396532334 | L25: 1.196764749 | M25: 0.3077668959
C26: 400 | D26: 1.605303924 | E26: 145.010484 | H26: 61.11380389 | I26: 21.95221974 | J26: 8.475519891 | K26: 3.50792351 | L26: 1.236013317 | M26: 0.3181270803
C27: 425 | D27: 1.705635419 | E27: 149.509637 | H27: 62.98512031 | I27: 22.6141163 | J27: 8.736365936 | K27: 3.61588479 | L27: 1.274053366 | M27: 0.3281764291
C28: 450 | D28: 1.805966915 | E28: 153.8793252 | H28: 64.80189352 | I28: 23.25643689 | J28: 8.989646384 | K28: 3.720714753 | L28: 1.310990098 | M28: 0.3379417772
C29: 475 | D29: 1.90629841 | E29: 158.1301728 | H29: 66.56861808 | I29: 23.88080236 | J29: 9.235983675 | K29: 3.822671021 | L29: 1.346914286 | M29: 0.3474462957
C30: 500 | D30: 2.006629905 | E30: 162.2714245 | H30: 68.28920357 | I30: 24.48862201 | J30: 9.475919311 | K30: 3.921977715 | L30: 1.381904899 | M30: 0.3567101575
C31: 525 | D31: 2.1069614 | E31: 166.3111839 | H31: 69.9670759 | I31: 25.08113029 | J31: 9.709927864 | K31: 4.018831255 | L31: 1.416031147 | M31: 0.3657510543
C32: 550 | D32: 2.207292896 | E32: 170.2566022 | H32: 71.60525713 | I32: 25.65941575 | J32: 9.938428017 | K32: 4.113404929 | L32: 1.449354086 | M32: 0.3745846044
C33: 575 | D33: 2.307624391 | E33: 174.1140269 | H33: 73.20642913 | I33: 26.22444402 | J33: 10.16179137 | K33: 4.205852538 | L33: 1.481927908 | M33: 0.3832246783
C34: 600 | D34: 2.407955886 | E34: 177.889124 | H34: 74.77298487 | I34: 26.77707644 | J34: 10.38034952 | K34: 4.296311329 | L34: 1.513800972 | M34: 0.391683661
C35: 625 | D35: 2.508287382 | E35: 181.5869755 | H35: 76.3070702 | I35: 27.31808513 | J35: 10.59439986 | K35: 4.384904388 | L35: 1.545016647 | M35: 0.3999726661
C36: 650 | D36: 2.608618877 | E36: 185.2121606 | H36: 77.81061815 | I36: 27.84816544 | J36: 10.80421033 | K36: 4.471742608 | L36: 1.575614006 | M36: 0.4081017114
C37: 675 | D37: 2.708950372 | E37: 188.768823 | H37: 79.28537736 | I37: 28.36794618 | J37: 11.0100233 | K37: 4.556926312 | L37: 1.605628398 | M37: 0.4160798646
C38: 700 | D38: 2.809281867 | E38: 192.2607263 | H38: 80.73293578 | I38: 28.87799822 | J38: 11.21205893 | K38: 4.640546613 | L38: 1.635091928 | M38: 0.4239153655
C39: 725 | D39: 2.909613363 | E39: 195.6913015 | H39: 82.15474062 | I39: 29.37884168 | J39: 11.41051786 | K39: 4.722686559 | L39: 1.664033855 | M39: 0.4316157275
C40: 750 | D40: 3.009944858 | E40: 199.0636867 | H40: 83.55211523 | I40: 29.87095205 | J40: 11.60558358 | K40: 4.803422092 | L40: 1.692480938 | M40: 0.4391878249
C41: 775 | D41: 3.110276353 | E41: 202.3807609 | H41: 84.92627342 | I41: 30.35476534 | J41: 11.7974244 | K41: 4.882822877 | L41: 1.720457725 | M41: 0.4466379664
C42: 800 | D42: 3.210607848 | E42: 205.6451729 | H42: 86.27833174 | I42: 30.83068253 | J42: 11.98619518 | K42: 4.960953004 | L42: 1.747986797 | M42: 0.4539719582
C43: 825 | D43: 3.310939344 | E43: 208.8593665 | H43: 87.6093201 | I43: 31.29907339 | J43: 12.17203874 | K43: 5.037871591 | L43: 1.775088984 | M43: 0.4611951586
C44: 850 | D44: 3.411270839 | E44: 212.025602 | H44: 88.92019084 | I44: 31.76027976 | J44: 12.35508719 | K44: 5.11363331 | L44: 1.801783549 | M44: 0.4683125248
C45: 875 | D45: 3.511602334 | E45: 215.1459747 | H45: 90.2118267 | I45: 32.21461843 | J45: 12.53546297 | K45: 5.18828884 | L45: 1.82808835 | M45: 0.4753286538
C46: 900 | D46: 3.611933829 | E46: 218.2224318 | H46: 91.48504773 | I46: 32.66238362 | J46: 12.71327984 | K46: 5.261885266 | L46: 1.854019976 | M46: 0.4822478181
C47: 925 | D47: 3.712265325 | E47: 221.2567861 | H47: 92.74061736 | I47: 33.10384918 | J47: 12.8886437 | K47: 5.334466422 | L47: 1.879593874 | M47: 0.489073997
C48: 950 | D48: 3.81259682 | E48: 224.2507289 | H48: 93.9792477 | I48: 33.5392705 | J48: 13.06165337 | K48: 5.406073202 | L48: 1.90482445 | M48: 0.4958109039
C49: 975 | D49: 3.912928315 | E49: 227.2058413 | H49: 95.20160427 | I49: 33.96888622 | J49: 13.23240119 | K49: 5.476743825 | L49: 1.929725173 | M49: 0.5024620106
C50: 1000 | D50: 4.01325981 | E50: =IF($G$15="","", IF(AND(C50>=$M$4,C50>=$G$15*$K$4,C50>0),(C50-$G$15*$J$4)^$H$4*($I$4+C50*$L$4),"---")) -> 230.1236037 | F50: =IF($G$15="","", IF(AND(C50>=$M$5,C50>=$G$15*$K$5,C50>0),(C50-$G$15*$J$5)^$H$5*($I$5+C50*$L$5),"---")) ->  | H50: 96.40831015 | I50: 34.39291969 | J50: 13.4009736 | K50: 5.546514075 | L50: 1.954308651 | M50: 0.5090305691
C51: 1025 | D51: 4.113591306 | E51: 233.0054045 | H51: 97.59994965 | I51: 34.81158036 | J51: 13.56745171 | K51: 5.615417513 | L51: 1.978586708 | M51: 0.5155196299
C52: 1050 | D52: 4.213922801 | E52: 235.8525483 | H52: 98.77707164 | I52: 35.22506492 | J52: 13.73191167 | K52: 5.683485665 | L52: 2.002570453 | M52: 0.52193206
C53: 1075 | D53: 4.314254296 | E53: 238.6662626 | H53: 99.94019248 | I53: 35.63355836 | J53: 13.89442516 | K53: 5.750748192 | L53: 2.026270336 | M53: 0.5282705571
C54: 1100 | D54: 4.414585791 | E54: 241.4477038 | H54: 101.0897986 | I54: 36.03723496 | J54: 14.05505969 | K54: 5.817233039 | L54: 2.049696205 | M54: 0.5345376641
C55: 1125 | D55: 4.514917287 | E55: 244.1979634 | H55: 102.226349 | I55: 36.43625909 | J55: 14.21387897 | K55: 5.882966572 | L55: 2.072857349 | M55: 0.5407357808
C56: 1150 | D56: 4.615248782 | E56: 246.9180724 | H56: 103.3502773 | I56: 36.83078602 | J56: 14.37094317 | K56: 5.947973701 | L56: 2.095762546 | M56: 0.5468671749
C57: 1175 | D57: 4.715580277 | E57: 249.6090062 | H57: 104.4619934 | I57: 37.22096257 | J57: 14.52630923 | K57: 6.012277988 | L57: 2.118420096 | M57: 0.5529339924
C58: 1200 | D58: 4.815911772 | E58: 252.2716887 | H58: 105.5618859 | I58: 37.60692779 | J58: 14.68003107 | K58: 6.075901749 | L58: 2.140837865 | M58: 0.558938266
C59: 1225 | D59: 4.916243268 | E59: 254.906996 | H59: 106.6503229 | I59: 37.98881346 | J59: 14.83215981 | K59: 6.138866143 | L59: 2.163023306 | M59: 0.5648819238
C60: 1250 | D60: 5.016574763 | E60: 257.5157599 | H60: 107.7276539 | I60: 38.36674468 | J60: 14.98274397 | K60: 6.201191255 | L60: 2.184983496 | M60: 0.5707667964
C61: 1275 | D61: 5.116906258 | E61: 260.0987706 | H61: 108.7942111 | I61: 38.74084027 | J61: 15.13182967 | K61: 6.262896171 | L61: 2.206725161 | M61: 0.576594624
C62: 1300 | D62: 5.217237754 | E62: 262.6567801 | H62: 109.8503104 | I62: 39.11121325 | J62: 15.27946078 | K62: 6.323999044 | L62: 2.228254697 | M62: 0.5823670619
C63: 1325 | D63: 5.317569249 | E63: 265.1905042 | H63: 110.8962524 | I63: 39.47797121 | J63: 15.42567904 | K63: 6.38451716 | L63: 2.249578194 | M63: 0.588085687
C64: 1350 | D64: 5.417900744 | E64: 267.7006253 | H64: 111.9323239 | I64: 39.84121665 | J64: 15.57052428 | K64: 6.444466993 | L64: 2.270701457 | M64: 0.5937520024
C65: 1375 | D65: 5.518232239 | E65: 270.1877945 | H65: 112.9587981 | I65: 40.20104734 | J65: 15.71403445 | K65: 6.503864258 | L65: 2.291630024 | M65: 0.5993674421
C66: 1400 | D66: 5.618563735 | E66: 272.6526332 | H66: 113.9759362 | I66: 40.55755662 | J66: 15.8562458 | K66: 6.562723958 | L66: 2.31236918 | M66: 0.6049333758
C67: 1425 | D67: 5.71889523 | E67: 275.0957354 | H67: 114.9839876 | I67: 40.91083363 | J67: 15.99719298 | K67: 6.621060429 | L67: 2.332923977 | M67: 0.6104511124
C68: 1450 | D68: 5.819226725 | E68: 277.5176693 | H68: 115.9831906 | I68: 41.26096365 | J68: 16.13690911 | K68: 6.678887382 | L68: 2.353299245 | M68: 0.615921904
C69: 1475 | D69: 5.91955822 | E69: 279.9189785 | H69: 116.9737736 | I69: 41.60802824 | J69: 16.27542589 | K69: 6.736217939 | L69: 2.373499609 | M69: 0.6213469494
C70: 1500 | D70: 6.019889716 | E70: 282.3001838 | H70: 117.9559552 | I70: 41.95210554 | J70: 16.41277369 | K70: 6.793064668 | L70: 2.393529497 | M70: 0.6267273968
C71: 1525 | D71: 6.120221211 | E71: 284.6617845 | H71: 118.9299449 | I71: 42.2932704 | J71: 16.54898162 | K71: 6.849439615 | L71: 2.413393153 | M71: 0.6320643472
C72: 1550 | D72: 6.220552706 | E72: 287.0042595 | H72: 119.8959437 | I72: 42.63159463 | J72: 16.68407759 | K72: 6.905354336 | L72: 2.433094648 | M72: 0.6373588568
C73: 1575 | D73: 6.320884201 | E73: 289.3280684 | H73: 120.8541444 | I73: 42.96714714 | J73: 16.8180884 | K73: 6.96081992 | L73: 2.452637891 | M73: 0.6426119395
C74: 1600 | D74: 6.421215697 | E74: 291.6336528 | H74: 121.8047324 | I74: 43.29999409 | J74: 16.95103978 | K74: 7.015847021 | L74: 2.472026635 | M74: 0.6478245695
C75: 1625 | D75: 6.521547192 | E75: 293.9214371 | H75: 122.7478856 | I75: 43.63019908 | J75: 17.08295648 | K75: 7.070445876 | L75: 2.491264486 | M75: 0.6529976832
C76: 1650 | D76: 6.621878687 | E76: 296.1918295 | H76: 123.6837752 | I76: 43.95782324 | J76: 17.21386227 | K76: 7.12462633 | L76: 2.510354915 | M76: 0.6581321813
C77: 1675 | D77: 6.722210182 | E77: 298.4452226 | H77: 124.6125661 | I77: 44.28292539 | J77: 17.34378006 | K77: 7.178397857 | L77: 2.529301259 | M77: 0.6632289306
C78: 1700 | D78: 6.822541678 | E78: 300.6819947 | H78: 125.5344167 | I78: 44.60556216 | J78: 17.47273187 | K78: 7.23176958 | L78: 2.548106731 | M78: 0.6682887661
C79: 1725 | D79: 6.922873173 | E79: 302.9025102 | H79: 126.4494799 | I79: 44.9257881 | J79: 17.60073894 | K79: 7.284750285 | L79: 2.566774429 | M79: 0.673312492
C80: 1750 | D80: 7.023204668 | E80: 305.1071203 | H80: 127.3579031 | I80: 45.24365577 | J80: 17.72782174 | K80: 7.337348443 | L80: 2.585307337 | M80: 0.6783008839
C81: 1775 | D81: 7.123536163 | E81: 307.2961636 | H81: 128.2598281 | I81: 45.55921587 | J81: 17.854 | K81: 7.389572223 | L81: 2.603708334 | M81: 0.6832546899
C82: 1800 | D82: 7.223867659 | E82: 309.4699672 | H82: 129.155392 | I82: 45.8725173 | J82: 17.97929277 | K82: 7.441429506 | L82: 2.621980195 | M82: 0.6881746318
C83: 1825 | D83: =C83/249.174 -> 7.324199154 | E83: 311.6288465 | G83: =IF($G$15="","", IF(AND(C83>=$M$5,C83>=$G$15*$K$5,C83>0),(C83-$G$15*$J$5)^$H$5*($I$5+C83*$L$5),"---")) ->  | H83: =IF($G$15="","", IF(AND(C83>=$M$6,C83>=$G$15*$K$6,C83>0),(C83-$G$15*$J$6)^$H$6*($I$6+C83*$L$6),"---")) -> 130.0447271 | I83: =IF($G$15="","", IF(AND(C83>=$M$7,C83>=$G$15*$K$7,C83>0),(C83-$G$15*$J$7)^$H$7*($I$7+C83*$L$7),"---")) -> 46.18360726 | J83: =IF($G$15="","", IF(AND(C83>=$M$8,C83>=$G$15*$K$8,C83>0),(C83-$G$15*$J$8)^$H$8*($I$8+C83*$L$8),"---")) -> 18.10371842 | K83: =IF($G$15="","", IF(AND(C83>=$M$9,C83>=$G$15*$K$9,C83>0),(C83-$G$15*$J$9)^$H$9*($I$9+C83*$L$9),"---")) -> 7.492927903 | L83: =IF($G$15="","", IF(AND(C83>=$M$10,C83>=$G$15*$K$10,C83>0),(C83-$G$15*$J$10)^$H$10*($I$10+C83*$L$10),"---")) -> 2.640125603 | M83: =IF($G$15="","", IF(AND(C83>=$M$11,C83>=$G$15*$K$11,C83>0),(C83-$G$15*$J$11)^$H$11*($I$11+C83*$L$11),"---")) -> 0.6930614067 | N83: =IF($G$15="","", IF(AND(C83>=$M$12,C83>=$G$15*$K$12,C83>0),(C83-$G$15*$J$12)^$H$12*($I$12+C83*$L$12),"---")) ->  | O83: =IF($G$15="","", IF(AND(C83>=$M$13,C83>=$G$15*$K$13,C83>0),(C83-$G$15*$J$13)^$H$13*($I$13+C83*$L$13),"---")) -> 
C84: 1850 | D84: 7.424530649 | E84: 313.7731065 | G84: =IF($G$15="","", IF(AND(C84>=$M$5,C84>=$G$15*$K$5,C84>0),(C84-$G$15*$J$5)^$H$5*($I$5+C84*$L$5),"---")) ->  | H84: 130.9279613 | I84: 46.49253134 | J84: 18.22729473 | K84: 7.544074762 | L84: 2.658147148 | M84: 0.6979156881
C85: 1875 | D85: 7.524862145 | G85: =IF($G$15="","", IF(AND(C85>=$M$5,C85>=$G$15*$K$5,C85>0),(C85-$G$15*$J$5)^$H$5*($I$5+C85*$L$5),"---")) ->  | H85: 131.8052179 | I85: 46.7993336 | J85: 18.35003884 | K85: 7.594877186 | L85: 2.676047331 | M85: 0.7027381267
C86: 1900 | D86: 7.62519364 | G86: =IF($G$15="","", IF(AND(C86>=$M$5,C86>=$G$15*$K$5,C86>0),(C86-$G$15*$J$5)^$H$5*($I$5+C86*$L$5),"---")) ->  | H86: 132.6766163 | I86: 47.10405659 | J86: 18.47196735 | K86: 7.645342042 | L86: 2.693828572 | M86: 0.7075293519
C87: 1925 | D87: 7.725525135 | G87: =IF($G$15="","", IF(AND(C87>=$M$5,C87>=$G$15*$K$5,C87>0),(C87-$G$15*$J$5)^$H$5*($I$5+C87*$L$5),"---")) ->  | H87: 133.542272 | I87: 47.40674151 | J87: 18.5930963 | K87: 7.695475969 | L87: 2.711493211 | M87: 0.7122899725
C88: 1950 | D88: 7.82585663 | H88: 134.4022966 | I88: 47.70742818 | J88: 18.71344122 | K88: 7.745285395 | L88: 2.729043512 | M88: 0.7170205778
C89: 1975 | D89: 7.926188126 | H89: 135.2567983 | I89: 48.00615517 | J89: 18.83301714 | K89: 7.794776541 | L89: 2.746481667 | M89: 0.721721738
C90: 2000 | D90: 8.026519621 | H90: 136.1058817 | I90: 48.30295982 | J90: 18.95183862 | K90: 7.843955429 | L90: 2.763809799 | M90: 0.7263940059
C91: 2025 | D91: 8.126851116 | H91: 136.9496485 | I91: 48.5978783 | J91: 19.06991975 | K91: 7.892827899 | L91: 2.781029964 | M91: 0.7310379169
C92: 2050 | D92: 8.227182611 | H92: 137.7881967 | I92: 48.89094566 | J92: 19.18727421 | K92: 7.941399606 | L92: 2.798144156 | M92: 0.7356539899
C93: 2075 | D93: 8.327514107 | H93: 138.6216219 | I93: 49.18219588 | J93: 19.30391525 | K93: 7.989676036 | L93: 2.815154308 | M93: 0.7402427284
C94: 2100 | D94: 8.427845602 | H94: 139.4500164 | I94: 49.47166192 | J94: 19.41985573 | K94: 8.037662509 | L94: 2.832062294 | M94: 0.7448046206
C95: 2125 | D95: 8.528177097 | H95: 140.27347 | I95: 49.75937577 | J95: 19.53510811 | K95: 8.085364189 | L95: 2.848869932 | M95: 0.7493401404
C96: 2150 | D96: 8.628508592 | H96: 141.0920697 | I96: 50.04536845 | J96: 19.64968451 | K96: 8.132786087 | L96: 2.86557899 | M96: 0.753849748
C97: 2175 | D97: 8.728840088 | H97: 141.9059002 | I97: 50.32967009 | J97: 19.76359667 | K97: 8.179933068 | L97: 2.882191182 | M97: 0.75833389
C98: 2200 | D98: 8.829171583 | H98: 142.7150435 | I98: 50.61230998 | J98: 19.87685603 | K98: 8.226809859 | L98: 2.898708172 | M98: 0.7627930006
C99: 2225 | D99: 8.929503078 | H99: 143.5195795 | I99: 50.89331652 | J99: 19.98947368 | K99: 8.273421053 | L99: 2.915131579 | M99: 0.7672275015
C100: 2250 | D100: 9.029834573 | H100: 144.3195857 | I100: 51.17271737 | J100: 20.10146041 | K100: 8.319771113 | L100: 2.931462976 | M100: 0.771637803
C101: 2275 | D101: 9.130166069 | H101: 145.1151375 | I101: 51.45053939 | J101: 20.21282669 | K101: 8.36586438 | L101: 2.947703892 | M101: 0.7760243036
C102: 2300 | D102: 9.230497564 | H102: 145.9063082 | I102: 51.72680869 | J102: 20.32358273 | K102: 8.411705076 | L102: 2.963855816 | M102: 0.7803873913
C103: 2325 | D103: 9.330829059 | H103: 146.6931694 | I103: 52.00155071 | J103: 20.43373846 | K103: 8.457297308 | L103: 2.979920192 | M103: 0.7847274436
C104: 2350 | D104: 9.431160554 | H104: 147.4757903 | I104: 52.27479016 | J104: 20.54330353 | K104: 8.502645072 | L104: 2.995898431 | M104: 0.7890448278
C105: 2375 | D105: 9.53149205 | H105: 148.2542385 | I105: 52.54655112 | J105: 20.65228734 | K105: 8.547752258 | L105: 3.011791903 | M105: 0.7933399016
C106: 2400 | D106: 9.631823545 | H106: 149.02858 | I106: 52.81685702 | J106: 20.76069904 | K106: 8.592622657 | L106: 3.027601943 | M106: 0.7976130133
C107: 2425 | D107: 9.73215504 | H107: 149.7988788 | I107: 53.08573071 | J107: 20.86854755 | K107: 8.637259959 | L107: 3.043329851 | M107: 0.8018645023
C108: 2450 | D108: 9.832486536 | H108: 150.5651973 | I108: 53.3531944 | J108: 20.97584156 | K108: 8.681667757 | L108: 3.058976894 | M108: 0.8060946992
C109: 2475 | D109: 9.932818031 | H109: 151.3275965 | I109: 53.61926978 | J109: 21.08258954 | K109: 8.725849558 | L109: 3.074544307 | M109: 0.8103039264
C110: 2500 | D110: 10.03314953 | H110: 152.0861356 | I110: 53.88397797 | J110: 21.18879973 | K110: 8.769808776 | L110: 3.090033294 | M110: 0.8144924979
C111: 2525 | D111: 10.13348102 | H111: 152.8408725 | I111: 54.14733954 | J111: 21.29448018 | K111: 8.813548742 | L111: 3.105445027 | M111: 0.8186607203
C112: 2550 | D112: 10.23381252 | H112: 153.5918637 | I112: 54.4093746 | J112: 21.39963875 | K112: 8.857072704 | L112: 3.120780651 | M112: 0.8228088923
C113: 2575 | D113: 10.33414401 | H113: 154.3391642 | I113: 54.67010273 | J113: 21.50428308 | K113: 8.900383832 | L113: 3.136041283 | M113: 0.8269373057
C114: 2600 | D114: 10.43447551 | H114: 155.0828277 | I114: 54.92954304 | J114: 21.60842066 | K114: 8.943485216 | L114: 3.151228012 | M114: 0.831046245
C115: 2625 | D115: 10.534807 | H115: 155.8229066 | I115: 55.18771418 | J115: 21.71205876 | K115: 8.986379876 | L115: 3.166341902 | M115: 0.8351359881
C116: 2650 | D116: 10.6351385 | H116: 156.5594521 | I116: 55.44463437 | J116: 21.81520451 | K116: 9.029070757 | L116: 3.181383991 | M116: 0.839206806
C117: 2675 | D117: 10.73546999 | H117: 157.2925142 | I117: 55.70032137 | J117: 21.91786487 | K117: 9.071560736 | L117: 3.196355293 | M117: 0.8432589638
C118: 2700 | D118: 10.83580149 | H118: 158.0221416 | I118: 55.95479256 | J118: 22.02004661 | K118: 9.113852624 | L118: 3.211256797 | M118: 0.8472927202
C119: 2725 | D119: 10.93613298 | H119: 158.748382 | I119: 56.20806489 | J119: 22.12175637 | K119: 9.155949165 | L119: 3.226089471 | M119: 0.851308328
C120: 2750 | D120: 11.03646448 | H120: 159.4712821 | I120: 56.46015494 | J120: 22.22300064 | K120: 9.197853041 | L120: 3.240854259 | M120: 0.8553060341
C121: 2775 | D121: 11.13679597 | H121: 160.1908873 | I121: 56.71107888 | J121: 22.32378574 | K121: 9.239566874 | L121: 3.255552087 | M121: 0.8592860802
C122: 2800 | D122: 11.23712747 | H122: 160.9072421 | I122: 56.96085256 | J122: 22.42411786 | K122: 9.281093227 | L122: 3.270183855 | M122: 0.8632487022
C123: 2825 | D123: 11.33745896 | H123: 161.62039 | I123: 57.20949144 | J123: 22.52400307 | K123: 9.322434604 | L123: 3.284750448 | M123: 0.867194131
C124: 2850 | D124: 11.43779046 | H124: 162.3303737 | I124: 57.45701066 | J124: 22.62344728 | K124: 9.363593456 | L124: 3.299252728 | M124: 0.8711225924
C125: 2875 | D125: 11.53812195 | H125: 163.0372347 | I125: 57.70342501 | J125: 22.72245627 | K125: 9.404572179 | L125: 3.313691539 | M125: 0.8750343071
C126: 2900 | D126: 11.63845345 | H126: 163.7410136 | I126: 57.94874897 | J126: 22.82103572 | K126: 9.445373117 | L126: 3.328067709 | M126: 0.8789294914
C127: 2925 | D127: 11.73878495 | H127: 164.4417504 | I127: 58.1929967 | J127: 22.91919117 | K127: 9.485998566 | L127: 3.342382045 | M127: 0.8828083567
C128: 2950 | D128: 11.83911644 | H128: 165.1394841 | I128: 58.43618206 | J128: 23.01692803 | K128: 9.526450769 | L128: 3.356635338 | M128: 0.8866711099
C129: 2975 | D129: 11.93944794 | H129: 165.8342527 | I129: 58.67831861 | J129: 23.11425163 | K129: 9.566731924 | L129: 3.370828362 | M129: 0.8905179537
C130: 3000 | D130: 12.03977943 | H130: 166.5260937 | I130: 58.91941965 | J130: 23.21116715 | K130: 9.606844183 | L130: 3.384961877 | M130: 0.8943490864
C131: 3025 | D131: 12.14011093 | H131: 167.2150437 | I131: 59.15949816 | J131: 23.3076797 | K131: 9.646789654 | L131: 3.399036623 | M131: 0.8981647025
C132: 3050 | D132: 12.24044242 | H132: 167.9011384 | I132: 59.39856689 | J132: 23.40379425 | K132: 9.686570398 | L132: 3.413053328 | M132: 0.9019649921
C133: 3075 | D133: 12.34077392 | H133: 168.5844129 | I133: 59.63663831 | J133: 23.49951569 | K133: 9.726188439 | L133: 3.427012705 | M133: 0.9057501417
C134: 3100 | D134: 12.44110541 | H134: 169.2649017 | I134: 59.87372463 | J134: 23.5948488 | K134: 9.765645755 | L134: 3.44091545 | M134: 0.909520334
C135: 3125 | D135: 12.54143691 | H135: 169.9426383 | I135: 60.10983782 | J135: 23.68979828 | K135: 9.804944287 | L135: 3.454762249 | M135: 0.913275748
C136: 3150 | D136: 12.6417684 | H136: 170.617656 | I136: 60.34498963 | J136: 23.78436871 | K136: 9.844085936 | L136: 3.46855377 | M136: 0.9170165593
C137: 3175 | D137: 12.7420999 | H137: 171.2899869 | I137: 60.57919154 | J137: 23.87856459 | K137: 9.883072568 | L137: 3.48229067 | M137: 0.9207429397
C138: 3200 | D138: 12.84243139 | H138: 171.9596628 | I138: 60.81245483 | J138: 23.97239036 | K138: 9.921906009 | L138: 3.495973594 | M138: 0.9244550579
C139: 3225 | D139: 12.94276289 | H139: 172.6267148 | I139: 61.04479054 | J139: 24.06585032 | K139: 9.96058805 | L139: 3.509603172 | M139: 0.9281530793
C140: 3250 | D140: 13.04309438 | H140: 173.2911735 | I140: 61.27620952 | J140: 24.15894874 | K140: 9.999120449 | L140: 3.523180024 | M140: 0.9318371661
C141: 3275 | D141: 13.14342588 | H141: 173.9530687 | I141: 61.5067224 | J141: 24.25168976 | K141: 10.03750493 | L141: 3.536704757 | M141: 0.9355074775
C142: 3300 | D142: 13.24375737 | H142: 174.6124298 | I142: 61.73633959 | J142: 24.34407749 | K142: 10.07574318 | L142: 3.550177967 | M142: 0.9391641694
C143: 3325 | D143: 13.34408887 | H143: 175.2692855 | I143: 61.96507133 | J143: 24.43611592 | K143: 10.11383687 | L143: 3.563600238 | M143: 0.942807395
C144: 3350 | D144: 13.44442036 | H144: 175.9236642 | I144: 62.19292764 | J144: 24.52780898 | K144: 10.15178761 | L144: 3.576972143 | M144: 0.9464373046
C145: 3375 | D145: 13.54475186 | H145: 176.5755935 | I145: 62.41991838 | J145: 24.61916054 | K145: 10.189597 | L145: 3.590294246 | M145: 0.9500540458
C146: 3400 | D146: 13.64508336 | H146: 177.2251007 | I146: 62.6460532 | J146: 24.71017438 | K146: 10.22726662 | L146: 3.603567098 | M146: 0.9536577632
C147: 3425 | D147: =C147/249.174 -> 13.74541485 | H147: =IF($G$15="","", IF(AND(C147>=$M$6,C147>=$G$15*$K$6,C147>0),(C147-$G$15*$J$6)^$H$6*($I$6+C147*$L$6),"---")) -> 177.8722125 | I147: =IF($G$15="","", IF(AND(C147>=$M$7,C147>=$G$15*$K$7,C147>0),(C147-$G$15*$J$7)^$H$7*($I$7+C147*$L$7),"---")) -> 62.8713416 | J147: =IF($G$15="","", IF(AND(C147>=$M$8,C147>=$G$15*$K$8,C147>0),(C147-$G$15*$J$8)^$H$8*($I$8+C147*$L$8),"---")) -> 24.80085423 | K147: =IF($G$15="","", IF(AND(C147>=$M$9,C147>=$G$15*$K$9,C147>0),(C147-$G$15*$J$9)^$H$9*($I$9+C147*$L$9),"---")) -> 10.264798 | L147: =IF($G$15="","", IF(AND(C147>=$M$10,C147>=$G$15*$K$10,C147>0),(C147-$G$15*$J$10)^$H$10*($I$10+C147*$L$10),"---")) -> 3.616791242 | M147: =IF($G$15="","", IF(AND(C147>=$M$11,C147>=$G$15*$K$11,C147>0),(C147-$G$15*$J$11)^$H$11*($I$11+C147*$L$11),"---")) -> 0.9572485991 | N147: =IF($G$15="","", IF(AND(C147>=$M$12,C147>=$G$15*$K$12,C147>0),(C147-$G$15*$J$12)^$H$12*($I$12+C147*$L$12),"---")) ->  | O147: =IF($G$15="","", IF(AND(C147>=$M$13,C147>=$G$15*$K$13,C147>0),(C147-$G$15*$J$13)^$H$13*($I$13+C147*$L$13),"---")) -> 
C148: 3450 | D148: 13.84574635 | H148: 178.516955 | I148: 63.09579288 | J148: 24.89120372 | K148: 10.30219265 | L148: 3.62996721 | M148: 0.960826693 | N148: =IF($G$15="","", IF(AND(C148>=$M$12,C148>=$G$15*$K$12,C148>0),(C148-$G$15*$J$12)^$H$12*($I$12+C148*$L$12),"---")) ->  | O148: =IF($G$15="","", IF(AND(C148>=$M$13,C148>=$G$15*$K$13,C148>0),(C148-$G$15*$J$13)^$H$13*($I$13+C148*$L$13),"---")) -> 
C149: 3475 | D149: 13.94607784 | H149: 179.1593541 | I149: 63.31941619 | J149: 24.98122645 | K149: 10.33945206 | L149: 3.643095524 | M149: 0.9643921819 | N149: =IF($G$15="","", IF(AND(C149>=$M$12,C149>=$G$15*$K$12,C149>0),(C149-$G$15*$J$12)^$H$12*($I$12+C149*$L$12),"---")) ->  | O149: =IF($G$15="","", IF(AND(C149>=$M$13,C149>=$G$15*$K$13,C149>0),(C149-$G$15*$J$13)^$H$13*($I$13+C149*$L$13),"---")) -> 
C150: 3500 | D150: 14.04640934 | H150: 179.799435 | I150: 63.54222051 | J150: 25.07092594 | K150: 10.37657768 | L150: 3.656176699 | M150: 0.9679452006 | N150: =IF($G$15="","", IF(AND(C150>=$M$12,C150>=$G$15*$K$12,C150>0),(C150-$G$15*$J$12)^$H$12*($I$12+C150*$L$12),"---")) ->  | O150: =IF($G$15="","", IF(AND(C150>=$M$13,C150>=$G$15*$K$13,C150>0),(C150-$G$15*$J$13)^$H$13*($I$13+C150*$L$13),"---")) -> 
C151: 3525 | D151: 14.14674083 | H151: 180.4372225 | I151: 63.76421465 | J151: 25.16030564 | K151: 10.41357094 | L151: 3.669211239 | M151: 0.9714858811
C152: 3550 | D152: 14.24707233 | H152: 181.0727412 | I152: 63.98540727 | J152: 25.24936895 | K152: 10.45043326 | L152: 3.682199638 | M152: 0.9750143535
C153: 3575 | D153: 14.34740382 | H153: 181.7060148 | I153: 64.20580689 | J153: 25.3381192 | K153: 10.487166 | L153: 3.695142383 | M153: 0.9785307453
C154: 3600 | D154: 14.44773532 | H154: 182.337067 | I154: 64.42542186 | J154: 25.42655967 | K154: 10.52377053 | L154: 3.708039952 | M154: 0.982035182
C155: 3625 | D155: 14.54806681 | H155: 182.9659209 | I155: 64.64426039 | J155: 25.51469359 | K155: 10.56024818 | L155: 3.720892816 | M155: 0.9855277867
C156: 3650 | D156: 14.64839831 | H156: 183.5925993 | I156: 64.86233056 | J156: 25.60252412 | K156: 10.59660026 | L156: 3.733701435 | M156: 0.9890086807
C157: 3675 | D157: 14.7487298 | H157: 184.2171245 | I157: 65.0796403 | J157: 25.69005438 | K157: 10.63282806 | L157: 3.746466263 | M157: 0.992477983
C158: 3700 | D158: 14.8490613 | H158: 184.8395184 | I158: 65.29619741 | J158: 25.77728741 | K158: 10.66893284 | L158: 3.759187747 | M158: 0.9959358106
C159: 3725 | D159: 14.94939279 | H159: 185.4598027 | I159: 65.51200955 | J159: 25.86422623 | K159: 10.70491586 | L159: 3.771866325 | M159: 0.9993822787
C160: 3750 | D160: 15.04972429 | H160: 186.0779986 | I160: 65.72708426 | J160: 25.9508738 | K160: 10.74077832 | L160: 3.784502429 | M160: 1.002817501
C161: 3775 | D161: 15.15005578 | H161: 186.694127 | I161: 65.94142895 | J161: 26.03723302 | K161: 10.77652144 | L161: 3.797096482
C162: 3800 | D162: 15.25038728 | H162: 187.3082084 | I162: 66.15505091 | J162: 26.12330675 | K162: 10.8121464 | L162: 3.809648901
C163: 3825 | D163: 15.35071877 | H163: 187.9202631 | I163: 66.3679573 | J163: 26.20909781 | K163: 10.84765437 | L163: 3.822160097
C164: 3850 | D164: 15.45105027 | H164: 188.5303108 | I164: 66.58015519 | J164: 26.29460896 | K164: 10.88304648 | L164: 3.834630473
C165: 3875 | D165: 15.55138177 | H165: 189.1383712 | I165: 66.79165149 | J165: 26.37984292 | K165: 10.91832388 | L165: 3.847060426
C166: 3900 | D166: 15.65171326 | H166: 189.7444635 | I166: 67.00245304 | J166: 26.46480238 | K166: 10.95348765 | L166: 3.859450347
C167: 3925 | D167: 15.75204476 | H167: 190.3486066 | I167: 67.21256656 | J167: 26.54948996 | K167: 10.9885389 | L167: 3.871800619
C168: 3950 | D168: 15.85237625 | H168: 190.9508191 | I168: 67.42199864 | J168: 26.63390827 | K168: 11.0234787 | L168: 3.884111622
C169: 3975 | D169: 15.95270775 | H169: 191.5511194 | I169: 67.63075579 | J169: 26.71805985 | K169: 11.0583081 | L169: 3.896383727
C170: 4000 | D170: 16.05303924 | H170: 192.1495255 | I170: 67.83884441 | J170: 26.80194721 | K170: 11.09302815 | L170: 3.908617301
C171: 4025 | D171: 16.15337074 | H171: 192.7460551 | I171: 68.04627079 | J171: 26.88557283 | K171: 11.12763987 | L171: 3.920812705
C172: 4050 | D172: 16.25370223 | H172: 193.3407258 | I172: 68.25304115 | J172: 26.96893915 | K172: 11.16214426 | L172: 3.932970293
C173: 4075 | D173: 16.35403373 | H173: 193.9335548 | I173: 68.45916158 | J173: 27.05204856 | K173: 11.19654232 | L173: 3.945090415
C174: 4100 | D174: 16.45436522 | H174: 194.5245589 | I174: 68.6646381 | J174: 27.13490342 | K174: 11.23083503 | L174: 3.957173415
C175: 4125 | D175: 16.55469672 | H175: 195.113755 | I175: 68.86947662 | J175: 27.21750606 | K175: 11.26502334 | L175: 3.969219633
C176: 4150 | D176: 16.65502821 | H176: 195.7011594 | I176: 69.07368298 | J176: 27.29985876 | K176: 11.29910821 | L176: 3.981229402
C177: 4175 | D177: 16.75535971 | H177: 196.2867884 | I177: 69.27726291 | J177: 27.38196378 | K177: 11.33309057 | L177: 3.993203052
C178: 4200 | D178: 16.8556912 | H178: 196.8706579 | I178: 69.48022208 | J178: 27.46382335 | K178: 11.36697133 | L178: 4.005140905
C179: 4225 | D179: 16.9560227 | H179: 197.4527835 | I179: 69.68256605 | J179: 27.54543965 | K179: 11.40075141 | L179: 4.017043282
C180: 4250 | D180: 17.05635419 | H180: 198.0331809 | I180: 69.88430031 | J180: 27.62681483 | K180: 11.43443169 | L180: 4.028910496
C181: 4275 | D181: 17.15668569 | H181: 198.6118651 | I181: 70.08543028 | J181: 27.70795102 | K181: 11.46801306 | L181: 4.040742858
C182: 4300 | D182: 17.25701718 | H182: 199.1888514 | I182: 70.28596127 | J182: 27.78885032 | K182: 11.50149638 | L182: 4.052540672
C183: 4325 | D183: 17.35734868 | H183: 199.7641544 | I183: 70.48589854 | J183: 27.86951479 | K183: 11.53488251 | L183: 4.06430424
C184: 4350 | D184: 17.45768018 | H184: 200.3377888 | I184: 70.68524726 | J184: 27.94994646 | K184: 11.56817228 | L184: 4.076033858
C185: 4375 | D185: 17.55801167 | H185: 200.9097689 | I185: 70.88401254 | J185: 28.03014733 | K185: 11.60136653 | L185: 4.087729819
C186: 4400 | D186: 17.65834317 | H186: 201.480109 | I186: 71.0821994 | J186: 28.11011938 | K186: 11.63446608 | L186: 4.09939241
C187: 4425 | D187: 17.75867466 | H187: 202.048823 | I187: 71.27981279 | J187: 28.18986456 | K187: 11.66747172 | L187: 4.111021915
C188: 4450 | D188: 17.85900616 | H188: 202.6159247 | I188: 71.4768576 | J188: 28.26938479 | K188: 11.70038426 | L188: 4.122618615
C189: 4475 | D189: 17.95933765 | H189: 203.1814278 | I189: 71.67333865 | J189: 28.34868196 | K189: 11.73320448 | L189: 4.134182785
C190: 4500 | D190: 18.05966915 | H190: 203.7453455 | I190: 71.86926069 | J190: 28.42775793 | K190: 11.76593314 | L190: 4.145714698
C191: 4525 | D191: 18.16000064 | H191: 204.3076911 | I191: 72.0646284 | J191: 28.50661455 | K191: 11.79857102 | L191: 4.157214623
C192: 4550 | D192: 18.26033214 | H192: 204.8684777 | I192: 72.2594464 | J192: 28.58525364 | K192: 11.83111887 | L192: 4.168682823
C193: 4575 | D193: 18.36066363 | H193: 205.4277181 | I193: 72.45371924 | J193: 28.66367698 | K193: 11.86357742 | L193: 4.18011956
C194: 4600 | D194: 18.46099513 | H194: 205.985425 | I194: 72.64745141 | J194: 28.74188634 | K194: 11.8959474 | L194: 4.191525091
C195: 4625 | D195: 18.56132662 | H195: 206.5416108 | I195: 72.84064735 | J195: 28.81988346 | K195: 11.92822954 | L195: 4.202899671
C196: 4650 | D196: 18.66165812 | H196: 207.096288 | I196: 73.03331142 | J196: 28.89767006 | K196: 11.96042455 | L196: 4.214243551
C197: 4675 | D197: 18.76198961 | H197: 207.6494686 | I197: 73.22544794 | J197: 28.97524784 | K197: 11.99253313 | L197: 4.225556977
C198: 4700 | D198: 18.86232111 | H198: 208.2011648 | I198: 73.41706117 | J198: 29.05261847 | K198: 12.02455598 | L198: 4.236840193
C199: 4725 | D199: 18.9626526 | H199: 208.7513883 | I199: 73.60815529 | J199: 29.12978359 | K199: 12.05649376 | L199: 4.24809344
C200: 4750 | D200: 19.0629841 | H200: 209.3001509 | I200: 73.79873445 | J200: 29.20674484 | K200: 12.08834717 | L200: 4.259316956
C201: 4775 | D201: 19.16331559 | H201: 209.847464 | I201: 73.98880275 | J201: 29.28350383 | K201: 12.12011686 | L201: 4.270510976
C202: 4800 | D202: 19.26364709 | H202: 210.3933391 | I202: 74.1783642 | J202: 29.36006214 | K202: 12.1518035 | L202: 4.281675729
C203: 4825 | D203: 19.36397859 | H203: 210.9377873 | I203: 74.3674228 | J203: 29.43642134 | K203: 12.18340772 | L203: 4.292811446
... 6 more rows
